Anno ;Numero Mandato;Importo Pagato;Beneficiario;Data di pagamento;Categoria
2016;13572;3182,5;PROGETTO LIGURIA LAVORO CONS.COOP.SOC.SCSRL;01/07/2016;USCITE CORRENTI - ACQUISTO DI BENI E DI SERVIZI
2016;13573;493,67;SERENITA'  SRL;01/07/2016;USCITE CORRENTI - ACQUISTO DI BENI E DI SERVIZI
2016;13574;12653,92;KUWAIT PETROLEUM ITALIA SPA;01/07/2016;USCITE CORRENTI - ACQUISTO DI BENI E DI SERVIZI
2016;13575;9343,38;KUWAIT PETROLEUM ITALIA SPA;01/07/2016;USCITE CORRENTI - ACQUISTO DI BENI E DI SERVIZI
2016;13576;23912;RIAL SRL;01/07/2016;USCITE CORRENTI - ACQUISTO DI BENI E DI SERVIZI
2016;13577;2000;SLOW FOOD ITALIA;01/07/2016;USCITE CORRENTI - ACQUISTO DI BENI E DI SERVIZI
2016;13578;251,57;TE.BE.SCO. SRL;01/07/2016;USCITE CORRENTI - ACQUISTO DI BENI E DI SERVIZI
2016;13579;827,97;TE.BE.SCO. SRL;01/07/2016;USCITE CORRENTI - ACQUISTO DI BENI E DI SERVIZI
2016;13580;16470;AZIENDA SERVIZI TERRITORIALI GENOVA SPA - ASTER;01/07/2016;USCITE CORRENTI - ACQUISTO DI BENI E DI SERVIZI
2016;13581;435,75;PROVINCIA REL.S.BENEDETTO-PICC.COTT.DON ORIONE;01/07/2016;USCITE CORRENTI - ACQUISTO DI BENI E DI SERVIZI
2016;13582;396,99;UGO TESI S.R.L.;01/07/2016;USCITE CORRENTI - ACQUISTO DI BENI E DI SERVIZI
2016;13583;99,27;UGO TESI S.R.L.;01/07/2016;USCITE CORRENTI - ACQUISTO DI BENI E DI SERVIZI
2016;13584;22825,09;VILLA PERLA SERVICE SOC. COOP. SOC. A R.L. ONLUS;01/07/2016;USCITE CORRENTI - ACQUISTO DI BENI E DI SERVIZI
2016;13584;5784,98;VILLA PERLA SERVICE SOC. COOP. SOC. A R.L. ONLUS;01/07/2016;USCITE CORRENTI - ACQUISTO DI BENI E DI SERVIZI
2016;13584;7841,2;VILLA PERLA SERVICE SOC. COOP. SOC. A R.L. ONLUS;01/07/2016;USCITE CORRENTI - ACQUISTO DI BENI E DI SERVIZI
2016;13584;16425,21;VILLA PERLA SERVICE SOC. COOP. SOC. A R.L. ONLUS;01/07/2016;USCITE CORRENTI - ACQUISTO DI BENI E DI SERVIZI
2016;13584;30826,41;VILLA PERLA SERVICE SOC. COOP. SOC. A R.L. ONLUS;01/07/2016;USCITE CORRENTI - ACQUISTO DI BENI E DI SERVIZI
2016;13569;15035;AZIENDA SANITARIA 3 GENOVESE;01/07/2016;USCITE CORRENTI - ACQUISTO DI BENI E DI SERVIZI
2016;13570;645,54;ESSEDIEMME COOPERATIVA SOCIALE;01/07/2016;USCITE CORRENTI - ACQUISTO DI BENI E DI SERVIZI
2016;13571;86436,57;POSTE ITALIANE SPA D.A.C./S.C.A./SERVIZI VARI;01/07/2016;USCITE CORRENTI - ACQUISTO DI BENI E DI SERVIZI
2016;13571;36460,38;POSTE ITALIANE SPA D.A.C./S.C.A./SERVIZI VARI;01/07/2016;USCITE CORRENTI - ACQUISTO DI BENI E DI SERVIZI
2016;13571;10038,26;POSTE ITALIANE SPA D.A.C./S.C.A./SERVIZI VARI;01/07/2016;USCITE CORRENTI - ACQUISTO DI BENI E DI SERVIZI
2016;13572;15911,21;PROGETTO LIGURIA LAVORO CONS.COOP.SOC.SCSRL;01/07/2016;USCITE CORRENTI - ACQUISTO DI BENI E DI SERVIZI
2016;13572;2015,62;PROGETTO LIGURIA LAVORO CONS.COOP.SOC.SCSRL;01/07/2016;USCITE CORRENTI - ACQUISTO DI BENI E DI SERVIZI
2016;13572;8462,46;PROGETTO LIGURIA LAVORO CONS.COOP.SOC.SCSRL;01/07/2016;USCITE CORRENTI - ACQUISTO DI BENI E DI SERVIZI
2016;13584;17945,24;VILLA PERLA SERVICE SOC. COOP. SOC. A R.L. ONLUS;01/07/2016;USCITE CORRENTI - ACQUISTO DI BENI E DI SERVIZI
2016;13584;6193,27;VILLA PERLA SERVICE SOC. COOP. SOC. A R.L. ONLUS;01/07/2016;USCITE CORRENTI - ACQUISTO DI BENI E DI SERVIZI
2016;13584;3866,49;VILLA PERLA SERVICE SOC. COOP. SOC. A R.L. ONLUS;01/07/2016;USCITE CORRENTI - ACQUISTO DI BENI E DI SERVIZI
2016;13584;7093,49;VILLA PERLA SERVICE SOC. COOP. SOC. A R.L. ONLUS;01/07/2016;USCITE CORRENTI - ACQUISTO DI BENI E DI SERVIZI
2016;13585;1464,04;AGORA'CONSORZIO SOCIALE SOC.COOP A R.L.(SERV.PER MINORI E ST;01/07/2016;USCITE CORRENTI - ACQUISTO DI BENI E DI SERVIZI
2016;13586;2578,47;COMUNICAZIONE AL CUBO SRL;01/07/2016;USCITE CORRENTI - ACQUISTO DI BENI E DI SERVIZI
2016;13587;2349,72;COMUNICAZIONE AL CUBO SRL;01/07/2016;USCITE CORRENTI - ACQUISTO DI BENI E DI SERVIZI
2016;13588;418;CAIROCAR SRL;01/07/2016;USCITE CORRENTI - ACQUISTO DI BENI E DI SERVIZI
2016;13589;880,89;SE.GE.SA. SERVIZI E GESTIONI SOCIO ASSISTENZIALI SRL;01/07/2016;USCITE CORRENTI - ACQUISTO DI BENI E DI SERVIZI
2016;13590;3029,04;COOP.SOCIALE LA SALLE SOC.COOP.A R.L.  - ONLUS;01/07/2016;USCITE CORRENTI - ACQUISTO DI BENI E DI SERVIZI
2016;13590;2423,23;COOP.SOCIALE LA SALLE SOC.COOP.A R.L.  - ONLUS;01/07/2016;USCITE CORRENTI - ACQUISTO DI BENI E DI SERVIZI
2016;13591;1008;EDUCARE PER AMORE COOP. SOCIALE ONLUS;01/07/2016;USCITE CORRENTI - ACQUISTO DI BENI E DI SERVIZI
2016;13592;2403,4;SILVESTRI SRL;01/07/2016;USCITE CORRENTI - ACQUISTO DI BENI E DI SERVIZI
2016;13595;2063,36;L' AURORA SOC.COOP.SOC. ONLUS;01/07/2016;USCITE CORRENTI - ACQUISTO DI BENI E DI SERVIZI
2016;13595;5351,84;L' AURORA SOC.COOP.SOC. ONLUS;01/07/2016;USCITE CORRENTI - ACQUISTO DI BENI E DI SERVIZI
2016;13597;5520,51;COOP.SOCIALE LA SALLE SOC.COOP.A R.L.  - ONLUS;01/07/2016;USCITE CORRENTI - ACQUISTO DI BENI E DI SERVIZI
2016;13597;6816,82;COOP.SOCIALE LA SALLE SOC.COOP.A R.L.  - ONLUS;01/07/2016;USCITE CORRENTI - ACQUISTO DI BENI E DI SERVIZI
2016;13602;4567,68;RINA CHECK SRL;04/07/2016;USCITE IN CONTO CAPITALE - INVESTIMENTI FISSI LORDI E ACQUISTO DI TERRENI
2016;13603;2405,43;VILLANI, DANIELE;04/07/2016;USCITE IN CONTO CAPITALE - INVESTIMENTI FISSI LORDI E ACQUISTO DI TERRENI
2016;13604;1976;OTTO BOCK SOLUZIONI ORTOPEDICHE SRL;04/07/2016;USCITE IN CONTO CAPITALE - INVESTIMENTI FISSI LORDI E ACQUISTO DI TERRENI
2016;13605;3403,69;ENI SPA;04/07/2016;USCITE IN CONTO CAPITALE - INVESTIMENTI FISSI LORDI E ACQUISTO DI TERRENI
2016;13606;3111;UNIVERSITA' GENOVA;04/07/2016;USCITE IN CONTO CAPITALE - INVESTIMENTI FISSI LORDI E ACQUISTO DI TERRENI
2016;13607;22532,54;DI SANTO,VITO;04/07/2016;USCITE IN CONTO CAPITALE - INVESTIMENTI FISSI LORDI E ACQUISTO DI TERRENI
2016;13608;10201,27;DIVERSI CONTRIBUTI  C. D Q. GHETTO;04/07/2016;USCITE IN CONTO CAPITALE - CONTRIBUTI AGLI INVESTIMENTI
2016;13609;24491,21;TECNOLOGIE COSTRUZIONI TURCO SRL;04/07/2016;USCITE IN CONTO CAPITALE - INVESTIMENTI FISSI LORDI E ACQUISTO DI TERRENI
2016;13610;2432,51;TECNOLOGIE COSTRUZIONI TURCO SRL;04/07/2016;USCITE IN CONTO CAPITALE - INVESTIMENTI FISSI LORDI E ACQUISTO DI TERRENI
2016;13611;499,59;LEMCOLOR GROUP SRL;04/07/2016;USCITE CORRENTI - ACQUISTO DI BENI E DI SERVIZI
2016;13612;4220,46;ASS.NUOVO BUON PASTORE - ORG. DI VOLONT.;04/07/2016;USCITE CORRENTI - ACQUISTO DI BENI E DI SERVIZI
2016;13613;2929,5;CENTRO DI SOLID.L'ANCORA COOP.SOCIALE A  R.L. ONLUS;04/07/2016;USCITE CORRENTI - ACQUISTO DI BENI E DI SERVIZI
2016;13614;3464,3;CRESCEREINSIEME SOC.COOP.SOC. A R.L. ONLUS;04/07/2016;USCITE CORRENTI - ACQUISTO DI BENI E DI SERVIZI
2016;13615;8452,49;LA COMUNITA' SOC.COOP.SOCIALE ONLUS;04/07/2016;USCITE CORRENTI - ACQUISTO DI BENI E DI SERVIZI
2016;13616;227;DIVERSI RIMBORSI ONERI A DATORI DI LAVORO PER ASSENZE RETRIB;04/07/2016;USCITE CORRENTI - ACQUISTO DI BENI E DI SERVIZI
2016;13617;13119,49;LA COMUNITA' SOC.COOP.SOCIALE ONLUS;04/07/2016;USCITE CORRENTI - ACQUISTO DI BENI E DI SERVIZI
2016;13618;900;BENELLI, VALENTINA;04/07/2016;USCITE CORRENTI - ACQUISTO DI BENI E DI SERVIZI
2016;13620;17255,15;AGORA'CONSORZIO SOCIALE SOC.COOP A R.L.(SERV.PER MINORI E ST;04/07/2016;USCITE CORRENTI - ACQUISTO DI BENI E DI SERVIZI
2016;13622;5673;CASA DELL'ANGELO CUSTODE - IST.SUORE BENEDETTINE PROVVID.;04/07/2016;USCITE CORRENTI - ACQUISTO DI BENI E DI SERVIZI
2016;13622;1023,27;CASA DELL'ANGELO CUSTODE - IST.SUORE BENEDETTINE PROVVID.;04/07/2016;USCITE CORRENTI - ACQUISTO DI BENI E DI SERVIZI
2016;13622;1116,3;CASA DELL'ANGELO CUSTODE - IST.SUORE BENEDETTINE PROVVID.;04/07/2016;USCITE CORRENTI - ACQUISTO DI BENI E DI SERVIZI
2016;13622;5814;CASA DELL'ANGELO CUSTODE - IST.SUORE BENEDETTINE PROVVID.;04/07/2016;USCITE CORRENTI - ACQUISTO DI BENI E DI SERVIZI
2016;13623;9958,88;COOPSSE SOC. COOP.SOCIALE ONLUS;04/07/2016;USCITE CORRENTI - ACQUISTO DI BENI E DI SERVIZI
2016;13624;17096,4;COOPSSE SOC. COOP.SOCIALE ONLUS;04/07/2016;USCITE CORRENTI - ACQUISTO DI BENI E DI SERVIZI
2016;13625;2727,5;FED.REG.SOLIDARIETA' E LAVORO ONLUS;04/07/2016;USCITE CORRENTI - ACQUISTO DI BENI E DI SERVIZI
2016;13626;1234,35;AGORA'CONSORZIO SOCIALE SOC.COOP A R.L.(SERV.PER MINORI E ST;04/07/2016;USCITE CORRENTI - ACQUISTO DI BENI E DI SERVIZI
2016;13627;11958,93;TELEVIDEO LIGURIA S.A.S. DI ALFREDO CRETTI;04/07/2016;USCITE IN CONTO CAPITALE - CONTRIBUTI AGLI INVESTIMENTI
2016;13628;20291,04;LAMP ARREDO SRL;04/07/2016;USCITE IN CONTO CAPITALE - INVESTIMENTI FISSI LORDI E ACQUISTO DI TERRENI
2016;13629;3742,39;IGUZZINI ILLUMINAZIONE S.P.A.;04/07/2016;USCITE IN CONTO CAPITALE - INVESTIMENTI FISSI LORDI E ACQUISTO DI TERRENI
2016;13630;2156,35;COMUNICAZIONE AL CUBO SRL;04/07/2016;USCITE IN CONTO CAPITALE - INVESTIMENTI FISSI LORDI E ACQUISTO DI TERRENI
2016;13631;4149,98;AZIENDA SERVIZI TERRITORIALI GENOVA SPA - ASTER;04/07/2016;USCITE IN CONTO CAPITALE - INVESTIMENTI FISSI LORDI E ACQUISTO DI TERRENI
2016;13632;2346,67;DIVERSI ASSEGNATARI CONTRIBUTI L.13/89 PER ELIMINAZIONE BAR-;04/07/2016;USCITE IN CONTO CAPITALE - CONTRIBUTI AGLI INVESTIMENTI
2016;13633;19526,94;DIVERSI ASSEGNATARI CONTRIBUTI L.13/89 PER ELIMINAZIONE BAR-;04/07/2016;USCITE IN CONTO CAPITALE - CONTRIBUTI AGLI INVESTIMENTI
2016;13634;10860,41;RENAULT ITALIA SPA;04/07/2016;USCITE IN CONTO CAPITALE - INVESTIMENTI FISSI LORDI E ACQUISTO DI TERRENI
2016;13635;384,3;ENERGETIC S.P.A.;04/07/2016;USCITE IN CONTO CAPITALE - INVESTIMENTI FISSI LORDI E ACQUISTO DI TERRENI
2016;13636;8380;PROVINCIA REL.S.BENEDETTO-PICC.COTT.DON ORIONE;04/07/2016;USCITE CORRENTI - ACQUISTO DI BENI E DI SERVIZI
2016;13636;8880;PROVINCIA REL.S.BENEDETTO-PICC.COTT.DON ORIONE;04/07/2016;USCITE CORRENTI - ACQUISTO DI BENI E DI SERVIZI
2016;13637;3189,01;PORTO ANTICO DI GENOVA SPA;04/07/2016;USCITE CORRENTI - ACQUISTO DI BENI E DI SERVIZI
2016;13638;18353,16;OMNIA CONSORZIO OPPORTUNITA' LAVORATIVE SOC. CONS.COOP .SOC.;04/07/2016;USCITE CORRENTI - ACQUISTO DI BENI E DI SERVIZI
2016;13639;7577,75;LA SCOPA MERAVIGLIANTE COOPERATIVA SOCIALE - ONLUS;04/07/2016;USCITE CORRENTI - ACQUISTO DI BENI E DI SERVIZI
2016;13640;257,49;PUPPO DI STEFANO TAVERNA E C. SAS;04/07/2016;USCITE CORRENTI - ACQUISTO DI BENI E DI SERVIZI
2016;13640;846,06;PUPPO DI STEFANO TAVERNA E C. SAS;04/07/2016;USCITE CORRENTI - ACQUISTO DI BENI E DI SERVIZI
2016;13641;2270;ASS. AUGENBLICK;04/07/2016;USCITE CORRENTI - TRASFERIMENTI CORRENTI
2016;13642;5725;COMPAGNIA TEATRO AKROPOLIS;04/07/2016;USCITE CORRENTI - TRASFERIMENTI CORRENTI
2016;13643;10716,87;AUTORITA' PORTUALE DI GENOVA;04/07/2016;USCITE CORRENTI - ACQUISTO DI BENI E DI SERVIZI
2016;13644;207,22;PUPPO DI STEFANO TAVERNA E C. SAS;04/07/2016;USCITE CORRENTI - ACQUISTO DI BENI E DI SERVIZI
2016;13645;5639,39;AUTORITA' PORTUALE DI GENOVA;04/07/2016;USCITE CORRENTI - ACQUISTO DI BENI E DI SERVIZI
2016;13646;10,31;AUTORITA' PORTUALE DI GENOVA;04/07/2016;USCITE CORRENTI - ACQUISTO DI BENI E DI SERVIZI
2016;13647;4805;ASS.RETEDANZACONTEMPOLIGURE;04/07/2016;USCITE CORRENTI - TRASFERIMENTI CORRENTI
2016;13648;3107,72;ASS.NUOVO BUON PASTORE - ORG. DI VOLONT.;04/07/2016;USCITE CORRENTI - ACQUISTO DI BENI E DI SERVIZI
2016;13649;2718,41;AUTORITA' PORTUALE DI GENOVA;04/07/2016;USCITE CORRENTI - ACQUISTO DI BENI E DI SERVIZI
2016;13650;1572,16;AUTORITA' PORTUALE DI GENOVA;04/07/2016;USCITE CORRENTI - ACQUISTO DI BENI E DI SERVIZI
2016;13651;213,75;CARTOLIBRERIA MONTEZOVETTO DI FERRARIS ENRICA INDIVID.;04/07/2016;USCITE CORRENTI - ACQUISTO DI BENI E DI SERVIZI
2016;13652;880;EMMAUS GENOVA - SOC.COOP. SOCIALE;04/07/2016;USCITE CORRENTI - ACQUISTO DI BENI E DI SERVIZI
2016;13653;8759;CASA DELL'ANGELO CUSTODE - IST.SUORE BENEDETTINE PROVVID.;04/07/2016;USCITE CORRENTI - ACQUISTO DI BENI E DI SERVIZI
2016;13653;8379;CASA DELL'ANGELO CUSTODE - IST.SUORE BENEDETTINE PROVVID.;04/07/2016;USCITE CORRENTI - ACQUISTO DI BENI E DI SERVIZI
2016;13654;1492,44;AZIENDA SERVIZI FUNEBRI DEL COMUNE DI GENOVA - SRL;04/07/2016;USCITE CORRENTI - ACQUISTO DI BENI E DI SERVIZI
2016;13655;434;DIVERSI BORSE LAVORO MINORI E GIOVANI (PIL);04/07/2016;USCITE CORRENTI - TRASFERIMENTI CORRENTI
2016;13656;1647,96;ASS. A BRACCIA APERTE - ORG. VOLONT.;04/07/2016;USCITE CORRENTI - ACQUISTO DI BENI E DI SERVIZI
2016;13657;7752;IST.SUORE POVERE BONAERENSI S. GIUSEPPE;04/07/2016;USCITE CORRENTI - ACQUISTO DI BENI E DI SERVIZI
2016;13658;3295,92;ASS. CASA PIM PAM;04/07/2016;USCITE CORRENTI - ACQUISTO DI BENI E DI SERVIZI
2016;13659;1647;ASS. CASA PIM PAM;04/07/2016;USCITE CORRENTI - ACQUISTO DI BENI E DI SERVIZI
2016;13661;401,79;DHL EXPRESS (ITALY) SRL;05/07/2016;USCITE CORRENTI - ACQUISTO DI BENI E DI SERVIZI
2016;13661;46,91;DHL EXPRESS (ITALY) SRL;05/07/2016;USCITE CORRENTI - ACQUISTO DI BENI E DI SERVIZI
2016;13662;15250;ALL.FENSTER SRL;05/07/2016;USCITE IN CONTO CAPITALE - INVESTIMENTI FISSI LORDI E ACQUISTO DI TERRENI
2016;13663;4453;DATA MANAGEMENT PA SPA;05/07/2016;USCITE IN CONTO CAPITALE - INVESTIMENTI FISSI LORDI E ACQUISTO DI TERRENI
2016;13664;41432,07;TASSISTRO GIAN BRUNO SRL;05/07/2016;USCITE CORRENTI -ALTRE SPESE CORRENTI
2016;13665;62965,31;TASSISTRO GIAN BRUNO SRL;05/07/2016;USCITE IN CONTO CAPITALE - INVESTIMENTI FISSI LORDI E ACQUISTO DI TERRENI
2016;13666;502,98;AUSER LIGURIA E GENOVA - ORG. VOLONT.;05/07/2016;USCITE CORRENTI - ACQUISTO DI BENI E DI SERVIZI
2016;13667;38172,51;SOGECO COSTRUZIONI DI MASSIMILIANO LANGOSCO DI LANGOSCO IND.;05/07/2016;USCITE IN CONTO CAPITALE - INVESTIMENTI FISSI LORDI E ACQUISTO DI TERRENI
2016;13668;117,12;UGO TESI S.R.L.;05/07/2016;USCITE CORRENTI - ACQUISTO DI BENI E DI SERVIZI
2016;13669;198,45;UGO TESI S.R.L.;05/07/2016;USCITE CORRENTI - ACQUISTO DI BENI E DI SERVIZI
2016;13670;305;C.R.D. SRL;05/07/2016;USCITE CORRENTI - ACQUISTO DI BENI E DI SERVIZI
2016;13671;2985;ASS. SHALOM - ORG.VOLONT.;05/07/2016;USCITE CORRENTI - ACQUISTO DI BENI E DI SERVIZI
2016;13672;2569,8;DIVERSI SUSSIDI A CITTADINI BISOGNOSI;05/07/2016;USCITE CORRENTI - TRASFERIMENTI CORRENTI
2016;13673;1000;CENTRO VELICO INTERFORZE  - ORG. DI VOLONT.;05/07/2016;USCITE CORRENTI - ACQUISTO DI BENI E DI SERVIZI
2016;13674;1400;DIVERSI CONTRIBUTI PER AFFIDI ANZIANI;05/07/2016;USCITE CORRENTI - TRASFERIMENTI CORRENTI
2016;13675;8500;LUNARIA TEATRO ASSOCIAZIONE CULTURALE;05/07/2016;USCITE CORRENTI - TRASFERIMENTI CORRENTI
2016;13676;40,04;DIVERSI SUSSIDI A CITTADINI BISOGNOSI;05/07/2016;USCITE CORRENTI - TRASFERIMENTI CORRENTI
2016;13677;73,2;C.D.F. ELECTRONIC DI BACCINI ALESS.INDIV;05/07/2016;USCITE CORRENTI - ACQUISTO DI BENI E DI SERVIZI
2016;13678;179,7;DIVERSI RIMBORSI ONERI A DATORI DI LAVORO PER ASSENZE RETRIB;05/07/2016;USCITE CORRENTI - ACQUISTO DI BENI E DI SERVIZI
2016;13679;12357,98;AGORA'CONSORZIO SOCIALE SOC.COOP A R.L.(SERV.PER MINORI E ST;05/07/2016;USCITE CORRENTI - ACQUISTO DI BENI E DI SERVIZI
2016;13680;7000;ASS.SPORT.DILETT.ARDITA SAVATE BOXING CLUB;05/07/2016;USCITE CORRENTI - ACQUISTO DI BENI E DI SERVIZI
2016;13681;24795;CASA DELL'ANGELO CUSTODE - IST.SUORE BENEDETTINE PROVVID.;05/07/2016;USCITE CORRENTI - ACQUISTO DI BENI E DI SERVIZI
2016;13682;94,06;DIVERSI RIMBORSI ONERI A DATORI DI LAVORO PER ASSENZE RETRIB;05/07/2016;USCITE CORRENTI - ACQUISTO DI BENI E DI SERVIZI
2016;13683;116,61;DIVERSI RIMBORSI ONERI A DATORI DI LAVORO PER ASSENZE RETRIB;05/07/2016;USCITE CORRENTI - ACQUISTO DI BENI E DI SERVIZI
2016;13684;2790;U.D.I. - CENTRO  PER NON SUBIRE VIOLENZA - ORG;05/07/2016;USCITE CORRENTI - ACQUISTO DI BENI E DI SERVIZI
2016;13685;2850;CASA DELL'ANGELO CUSTODE - IST.SUORE BENEDETTINE PROVVID.;05/07/2016;USCITE CORRENTI - ACQUISTO DI BENI E DI SERVIZI
2016;13685;2945;CASA DELL'ANGELO CUSTODE - IST.SUORE BENEDETTINE PROVVID.;05/07/2016;USCITE CORRENTI - ACQUISTO DI BENI E DI SERVIZI
2016;13686;894,47;OFFICINA SIMONE DI BRUZZONE SIMONE IND.;05/07/2016;USCITE CORRENTI - ACQUISTO DI BENI E DI SERVIZI
2016;13687;3397,23;LA COMUNITA' SOC.COOP.SOCIALE ONLUS;05/07/2016;USCITE CORRENTI - ACQUISTO DI BENI E DI SERVIZI
2016;13688;274,55;PREFABBRICATI FOCO F.LLI BISIO S.R.L.;05/07/2016;USCITE CORRENTI - ACQUISTO DI BENI E DI SERVIZI
2016;13689;473,22;STUDIO MARTIGNONE ASSOCIATI;05/07/2016;USCITE IN CONTO CAPITALE - INVESTIMENTI FISSI LORDI E ACQUISTO DI TERRENI
2016;13690;392,76;STUDIO MARTIGNONE ASSOCIATI;05/07/2016;USCITE IN CONTO CAPITALE - INVESTIMENTI FISSI LORDI E ACQUISTO DI TERRENI
2016;13690;8072,52;STUDIO MARTIGNONE ASSOCIATI;05/07/2016;USCITE IN CONTO CAPITALE - INVESTIMENTI FISSI LORDI E ACQUISTO DI TERRENI
2016;13690;5564,07;STUDIO MARTIGNONE ASSOCIATI;05/07/2016;USCITE IN CONTO CAPITALE - INVESTIMENTI FISSI LORDI E ACQUISTO DI TERRENI
2016;13691;35200,65;F.LLI BIANCHI SRL;05/07/2016;USCITE IN CONTO CAPITALE - INVESTIMENTI FISSI LORDI E ACQUISTO DI TERRENI
2016;13692;33323,1;T.M.G. - SCAVI SRL;05/07/2016;USCITE IN CONTO CAPITALE - INVESTIMENTI FISSI LORDI E ACQUISTO DI TERRENI
2016;13693;90619,64;L'EDILBIT  S.R.L.;05/07/2016;USCITE IN CONTO CAPITALE - INVESTIMENTI FISSI LORDI E ACQUISTO DI TERRENI
2016;13694;9044,12;CASA DELL'ANGELO CUSTODE - IST.SUORE BENEDETTINE PROVVID.;05/07/2016;USCITE CORRENTI - ACQUISTO DI BENI E DI SERVIZI
2016;13695;25764;CASA DELL'ANGELO CUSTODE - IST.SUORE BENEDETTINE PROVVID.;05/07/2016;USCITE CORRENTI - ACQUISTO DI BENI E DI SERVIZI
2016;13695;9643,74;CASA DELL'ANGELO CUSTODE - IST.SUORE BENEDETTINE PROVVID.;05/07/2016;USCITE CORRENTI - ACQUISTO DI BENI E DI SERVIZI
2016;13696;3861,5;CROCE ROSSA ITALIANA - COMITATO LOCALE GENOVA;05/07/2016;USCITE CORRENTI - ACQUISTO DI BENI E DI SERVIZI
2016;13698;180,34;VENTURA SPA;05/07/2016;USCITE CORRENTI - ACQUISTO DI BENI E DI SERVIZI
2016;13699;5733,41;TANZI SAS DI TANZI GIANMARCO & C;05/07/2016;USCITE CORRENTI - ACQUISTO DI BENI E DI SERVIZI
2016;13700;875;ISTITUTO COMPRENSIVO QUARTO;05/07/2016;USCITE CORRENTI - TRASFERIMENTI CORRENTI
2016;13701;2575;CROCE ROSSA ITALIANA - COMITATO LOCALE GENOVA;05/07/2016;USCITE CORRENTI - ACQUISTO DI BENI E DI SERVIZI
2016;13702;147,29;S.I.A.E.;05/07/2016;USCITE CORRENTI - ACQUISTO DI BENI E DI SERVIZI
2016;13703;753,25;CENTRO SOCIO-ASSIST.SANITARIO PEGLIESE - ORG.VOLONT.;05/07/2016;USCITE CORRENTI - ACQUISTO DI BENI E DI SERVIZI
2016;13703;275;CENTRO SOCIO-ASSIST.SANITARIO PEGLIESE - ORG.VOLONT.;05/07/2016;USCITE CORRENTI - ACQUISTO DI BENI E DI SERVIZI
2016;13704;377,56;PULITORI ED AFFINI SPA;05/07/2016;USCITE CORRENTI - ACQUISTO DI BENI E DI SERVIZI
2016;13705;450;ISTITUTO COMPRENSIVO MOLASSANA;05/07/2016;USCITE CORRENTI - TRASFERIMENTI CORRENTI
2016;13706;200;ASS. CULTURALE SAETA;05/07/2016;USCITE CORRENTI - TRASFERIMENTI CORRENTI
2016;13710;1091,9;DITTA GIUSEPPE LANG ARTI GRAFICHE S.R.L.;05/07/2016;USCITE CORRENTI - ACQUISTO DI BENI E DI SERVIZI
2016;13711;8500;AZIENDA SERVIZI TERRITORIALI GENOVA SPA - ASTER;05/07/2016;USCITE CORRENTI - ACQUISTO DI BENI E DI SERVIZI
2016;13712;21,96;UGO TESI S.R.L.;05/07/2016;USCITE CORRENTI - ACQUISTO DI BENI E DI SERVIZI
2016;13713;456,33;ELIOCIANOGRAFICA SNC DI OLIBANO G.& C.;05/07/2016;USCITE CORRENTI - ACQUISTO DI BENI E DI SERVIZI
2016;13714;77,2;VENTURA SPA;05/07/2016;USCITE CORRENTI - ACQUISTO DI BENI E DI SERVIZI
2016;13715;246,98;VENTURA SPA;05/07/2016;USCITE CORRENTI - ACQUISTO DI BENI E DI SERVIZI
2016;13716;8,2;FASTWEB SPA;05/07/2016;USCITE CORRENTI - ACQUISTO DI BENI E DI SERVIZI
2016;13716;63,66;FASTWEB SPA;05/07/2016;USCITE CORRENTI - ACQUISTO DI BENI E DI SERVIZI
2016;13716;5,84;FASTWEB SPA;05/07/2016;USCITE CORRENTI - ACQUISTO DI BENI E DI SERVIZI
2016;13716;13,71;FASTWEB SPA;05/07/2016;USCITE CORRENTI - ACQUISTO DI BENI E DI SERVIZI
2016;13716;55,99;FASTWEB SPA;05/07/2016;USCITE CORRENTI - ACQUISTO DI BENI E DI SERVIZI
2016;13716;15,12;FASTWEB SPA;05/07/2016;USCITE CORRENTI - ACQUISTO DI BENI E DI SERVIZI
2016;13716;41;FASTWEB SPA;05/07/2016;USCITE CORRENTI - ACQUISTO DI BENI E DI SERVIZI
2016;13716;273,42;FASTWEB SPA;05/07/2016;USCITE CORRENTI - ACQUISTO DI BENI E DI SERVIZI
2016;13716;22,08;FASTWEB SPA;05/07/2016;USCITE CORRENTI - ACQUISTO DI BENI E DI SERVIZI
2016;13716;25,57;FASTWEB SPA;05/07/2016;USCITE CORRENTI - ACQUISTO DI BENI E DI SERVIZI
2016;13717;927,3;FASTWEB SPA;05/07/2016;USCITE CORRENTI - ACQUISTO DI BENI E DI SERVIZI
2016;13717;71,86;FASTWEB SPA;05/07/2016;USCITE CORRENTI - ACQUISTO DI BENI E DI SERVIZI
2016;13717;15,84;FASTWEB SPA;05/07/2016;USCITE CORRENTI - ACQUISTO DI BENI E DI SERVIZI
2016;13718;37,23;FASTWEB SPA;05/07/2016;USCITE CORRENTI - ACQUISTO DI BENI E DI SERVIZI
2016;13718;327,52;FASTWEB SPA;05/07/2016;USCITE CORRENTI - ACQUISTO DI BENI E DI SERVIZI
2016;13718;96,69;FASTWEB SPA;05/07/2016;USCITE CORRENTI - ACQUISTO DI BENI E DI SERVIZI
2016;13718;75,03;FASTWEB SPA;05/07/2016;USCITE CORRENTI - ACQUISTO DI BENI E DI SERVIZI
2016;13718;53,26;FASTWEB SPA;05/07/2016;USCITE CORRENTI - ACQUISTO DI BENI E DI SERVIZI
2016;13718;184,06;FASTWEB SPA;05/07/2016;USCITE CORRENTI - ACQUISTO DI BENI E DI SERVIZI
2016;13718;91,83;FASTWEB SPA;05/07/2016;USCITE CORRENTI - ACQUISTO DI BENI E DI SERVIZI
2016;13718;80,81;FASTWEB SPA;05/07/2016;USCITE CORRENTI - ACQUISTO DI BENI E DI SERVIZI
2016;13718;41,51;FASTWEB SPA;05/07/2016;USCITE CORRENTI - ACQUISTO DI BENI E DI SERVIZI
2016;13718;82,55;FASTWEB SPA;05/07/2016;USCITE CORRENTI - ACQUISTO DI BENI E DI SERVIZI
2016;13718;233,8;FASTWEB SPA;05/07/2016;USCITE CORRENTI - ACQUISTO DI BENI E DI SERVIZI
2016;13718;386,52;FASTWEB SPA;05/07/2016;USCITE CORRENTI - ACQUISTO DI BENI E DI SERVIZI
2016;13719;20,71;FASTWEB SPA;05/07/2016;USCITE CORRENTI - ACQUISTO DI BENI E DI SERVIZI
2016;13719;25,08;FASTWEB SPA;05/07/2016;USCITE CORRENTI - ACQUISTO DI BENI E DI SERVIZI
2016;13719;74,29;FASTWEB SPA;05/07/2016;USCITE CORRENTI - ACQUISTO DI BENI E DI SERVIZI
2016;13719;22,29;FASTWEB SPA;05/07/2016;USCITE CORRENTI - ACQUISTO DI BENI E DI SERVIZI
2016;13719;76,96;FASTWEB SPA;05/07/2016;USCITE CORRENTI - ACQUISTO DI BENI E DI SERVIZI
2016;13719;38,14;FASTWEB SPA;05/07/2016;USCITE CORRENTI - ACQUISTO DI BENI E DI SERVIZI
2016;13719;12,78;FASTWEB SPA;05/07/2016;USCITE CORRENTI - ACQUISTO DI BENI E DI SERVIZI
2016;13720;240,74;FASTWEB SPA;05/07/2016;USCITE CORRENTI - ACQUISTO DI BENI E DI SERVIZI
2016;13720;51,84;FASTWEB SPA;05/07/2016;USCITE CORRENTI - ACQUISTO DI BENI E DI SERVIZI
2016;13721;136,55;FASTWEB SPA;05/07/2016;USCITE CORRENTI - ACQUISTO DI BENI E DI SERVIZI
2016;13721;136,92;FASTWEB SPA;05/07/2016;USCITE CORRENTI - ACQUISTO DI BENI E DI SERVIZI
2016;13721;44,03;FASTWEB SPA;05/07/2016;USCITE CORRENTI - ACQUISTO DI BENI E DI SERVIZI
2016;13721;1,39;FASTWEB SPA;05/07/2016;USCITE CORRENTI - ACQUISTO DI BENI E DI SERVIZI
2016;13721;21,48;FASTWEB SPA;05/07/2016;USCITE CORRENTI - ACQUISTO DI BENI E DI SERVIZI
2016;13721;105,58;FASTWEB SPA;05/07/2016;USCITE CORRENTI - ACQUISTO DI BENI E DI SERVIZI
2016;13721;43,23;FASTWEB SPA;05/07/2016;USCITE CORRENTI - ACQUISTO DI BENI E DI SERVIZI
2016;13721;18,16;FASTWEB SPA;05/07/2016;USCITE CORRENTI - ACQUISTO DI BENI E DI SERVIZI
2016;13721;406,27;FASTWEB SPA;05/07/2016;USCITE CORRENTI - ACQUISTO DI BENI E DI SERVIZI
2016;13721;233,64;FASTWEB SPA;05/07/2016;USCITE CORRENTI - ACQUISTO DI BENI E DI SERVIZI
2016;13721;206,76;FASTWEB SPA;05/07/2016;USCITE CORRENTI - ACQUISTO DI BENI E DI SERVIZI
2016;13721;6,73;FASTWEB SPA;05/07/2016;USCITE CORRENTI - ACQUISTO DI BENI E DI SERVIZI
2016;13722;9,54;FASTWEB SPA;05/07/2016;USCITE CORRENTI - ACQUISTO DI BENI E DI SERVIZI
2016;13723;49,38;FASTWEB SPA;05/07/2016;USCITE CORRENTI - ACQUISTO DI BENI E DI SERVIZI
2016;13723;50,84;FASTWEB SPA;05/07/2016;USCITE CORRENTI - ACQUISTO DI BENI E DI SERVIZI
2016;13723;75,57;FASTWEB SPA;05/07/2016;USCITE CORRENTI - ACQUISTO DI BENI E DI SERVIZI
2016;13724;81,77;FASTWEB SPA;05/07/2016;USCITE CORRENTI - ACQUISTO DI BENI E DI SERVIZI
2016;13724;126,16;FASTWEB SPA;05/07/2016;USCITE CORRENTI - ACQUISTO DI BENI E DI SERVIZI
2016;13724;0,37;FASTWEB SPA;05/07/2016;USCITE CORRENTI - ACQUISTO DI BENI E DI SERVIZI
2016;13724;3,22;FASTWEB SPA;05/07/2016;USCITE CORRENTI - ACQUISTO DI BENI E DI SERVIZI
2016;13724;93,01;FASTWEB SPA;05/07/2016;USCITE CORRENTI - ACQUISTO DI BENI E DI SERVIZI
2016;13724;3,13;FASTWEB SPA;05/07/2016;USCITE CORRENTI - ACQUISTO DI BENI E DI SERVIZI
2016;13725;270,64;FASTWEB SPA;05/07/2016;USCITE CORRENTI - ACQUISTO DI BENI E DI SERVIZI
2016;13725;24,76;FASTWEB SPA;05/07/2016;USCITE CORRENTI - ACQUISTO DI BENI E DI SERVIZI
2016;13725;1,35;FASTWEB SPA;05/07/2016;USCITE CORRENTI - ACQUISTO DI BENI E DI SERVIZI
2016;13725;4,79;FASTWEB SPA;05/07/2016;USCITE CORRENTI - ACQUISTO DI BENI E DI SERVIZI
2016;13725;103,61;FASTWEB SPA;05/07/2016;USCITE CORRENTI - ACQUISTO DI BENI E DI SERVIZI
2016;13725;139,38;FASTWEB SPA;05/07/2016;USCITE CORRENTI - ACQUISTO DI BENI E DI SERVIZI
2016;13725;3,62;FASTWEB SPA;05/07/2016;USCITE CORRENTI - ACQUISTO DI BENI E DI SERVIZI
2016;13725;115,14;FASTWEB SPA;05/07/2016;USCITE CORRENTI - ACQUISTO DI BENI E DI SERVIZI
2016;13725;15,88;FASTWEB SPA;05/07/2016;USCITE CORRENTI - ACQUISTO DI BENI E DI SERVIZI
2016;13725;153,82;FASTWEB SPA;05/07/2016;USCITE CORRENTI - ACQUISTO DI BENI E DI SERVIZI
2016;13726;176,06;FASTWEB SPA;05/07/2016;USCITE CORRENTI - ACQUISTO DI BENI E DI SERVIZI
2016;13727;16,39;FASTWEB SPA;05/07/2016;USCITE CORRENTI - ACQUISTO DI BENI E DI SERVIZI
2016;13727;62,22;FASTWEB SPA;05/07/2016;USCITE CORRENTI - ACQUISTO DI BENI E DI SERVIZI
2016;13727;204,92;FASTWEB SPA;05/07/2016;USCITE CORRENTI - ACQUISTO DI BENI E DI SERVIZI
2016;13728;299,87;FASTWEB SPA;05/07/2016;USCITE CORRENTI - ACQUISTO DI BENI E DI SERVIZI
2016;13728;5,38;FASTWEB SPA;05/07/2016;USCITE CORRENTI - ACQUISTO DI BENI E DI SERVIZI
2016;13728;14,25;FASTWEB SPA;05/07/2016;USCITE CORRENTI - ACQUISTO DI BENI E DI SERVIZI
2016;13728;349,01;FASTWEB SPA;05/07/2016;USCITE CORRENTI - ACQUISTO DI BENI E DI SERVIZI
2016;13728;10,18;FASTWEB SPA;05/07/2016;USCITE CORRENTI - ACQUISTO DI BENI E DI SERVIZI
2016;13728;16,93;FASTWEB SPA;05/07/2016;USCITE CORRENTI - ACQUISTO DI BENI E DI SERVIZI
2016;13728;9,75;FASTWEB SPA;05/07/2016;USCITE CORRENTI - ACQUISTO DI BENI E DI SERVIZI
2016;13728;15,64;FASTWEB SPA;05/07/2016;USCITE CORRENTI - ACQUISTO DI BENI E DI SERVIZI
2016;13728;9,36;FASTWEB SPA;05/07/2016;USCITE CORRENTI - ACQUISTO DI BENI E DI SERVIZI
2016;13728;24,57;FASTWEB SPA;05/07/2016;USCITE CORRENTI - ACQUISTO DI BENI E DI SERVIZI
2016;13728;135,87;FASTWEB SPA;05/07/2016;USCITE CORRENTI - ACQUISTO DI BENI E DI SERVIZI
2016;13728;18,08;FASTWEB SPA;05/07/2016;USCITE CORRENTI - ACQUISTO DI BENI E DI SERVIZI
2016;13729;32,91;FASTWEB SPA;05/07/2016;USCITE CORRENTI - ACQUISTO DI BENI E DI SERVIZI
2016;13729;5,91;FASTWEB SPA;05/07/2016;USCITE CORRENTI - ACQUISTO DI BENI E DI SERVIZI
2016;13730;4,5;FASTWEB SPA;05/07/2016;USCITE CORRENTI - ACQUISTO DI BENI E DI SERVIZI
2016;13731;117,36;FASTWEB SPA;05/07/2016;USCITE CORRENTI - ACQUISTO DI BENI E DI SERVIZI
2016;13732;51,64;FASTWEB SPA;05/07/2016;USCITE CORRENTI - ACQUISTO DI BENI E DI SERVIZI
2016;13733;22,75;FASTWEB SPA;05/07/2016;USCITE CORRENTI - ACQUISTO DI BENI E DI SERVIZI
2016;13734;14,72;FASTWEB SPA;05/07/2016;USCITE CORRENTI - ACQUISTO DI BENI E DI SERVIZI
2016;13734;91,68;FASTWEB SPA;05/07/2016;USCITE CORRENTI - ACQUISTO DI BENI E DI SERVIZI
2016;13735;207,46;FASTWEB SPA;05/07/2016;USCITE CORRENTI - ACQUISTO DI BENI E DI SERVIZI
2016;13736;94,19;FASTWEB SPA;05/07/2016;USCITE CORRENTI - ACQUISTO DI BENI E DI SERVIZI
2016;13737;151,43;FASTWEB SPA;05/07/2016;USCITE CORRENTI - ACQUISTO DI BENI E DI SERVIZI
2016;13737;121,18;FASTWEB SPA;05/07/2016;USCITE CORRENTI - ACQUISTO DI BENI E DI SERVIZI
2016;13737;84,68;FASTWEB SPA;05/07/2016;USCITE CORRENTI - ACQUISTO DI BENI E DI SERVIZI
2016;13738;4,98;FASTWEB SPA;05/07/2016;USCITE CORRENTI - ACQUISTO DI BENI E DI SERVIZI
2016;13738;4,35;FASTWEB SPA;05/07/2016;USCITE CORRENTI - ACQUISTO DI BENI E DI SERVIZI
2016;13738;23,93;FASTWEB SPA;05/07/2016;USCITE CORRENTI - ACQUISTO DI BENI E DI SERVIZI
2016;13738;24,93;FASTWEB SPA;05/07/2016;USCITE CORRENTI - ACQUISTO DI BENI E DI SERVIZI
2016;13739;47,21;FASTWEB SPA;05/07/2016;USCITE CORRENTI - ACQUISTO DI BENI E DI SERVIZI
2016;13740;34,18;FASTWEB SPA;05/07/2016;USCITE CORRENTI - ACQUISTO DI BENI E DI SERVIZI
2016;13740;1843,23;FASTWEB SPA;05/07/2016;USCITE CORRENTI - ACQUISTO DI BENI E DI SERVIZI
2016;13740;15,72;FASTWEB SPA;05/07/2016;USCITE CORRENTI - ACQUISTO DI BENI E DI SERVIZI
2016;13740;0,37;FASTWEB SPA;05/07/2016;USCITE CORRENTI - ACQUISTO DI BENI E DI SERVIZI
2016;13741;53;FASTWEB SPA;05/07/2016;USCITE CORRENTI - ACQUISTO DI BENI E DI SERVIZI
2016;13741;5,23;FASTWEB SPA;05/07/2016;USCITE CORRENTI - ACQUISTO DI BENI E DI SERVIZI
2016;13741;25,6;FASTWEB SPA;05/07/2016;USCITE CORRENTI - ACQUISTO DI BENI E DI SERVIZI
2016;13741;0,46;FASTWEB SPA;05/07/2016;USCITE CORRENTI - ACQUISTO DI BENI E DI SERVIZI
2016;13742;0,87;FASTWEB SPA;05/07/2016;USCITE CORRENTI - ACQUISTO DI BENI E DI SERVIZI
2016;13743;3,86;FASTWEB SPA;05/07/2016;USCITE CORRENTI - ACQUISTO DI BENI E DI SERVIZI
2016;13744;12,06;FASTWEB SPA;05/07/2016;USCITE CORRENTI - ACQUISTO DI BENI E DI SERVIZI
2016;13745;21,64;FASTWEB SPA;05/07/2016;USCITE CORRENTI - ACQUISTO DI BENI E DI SERVIZI
2016;13746;24,43;FASTWEB SPA;05/07/2016;USCITE CORRENTI - ACQUISTO DI BENI E DI SERVIZI
2016;13746;17,34;FASTWEB SPA;05/07/2016;USCITE CORRENTI - ACQUISTO DI BENI E DI SERVIZI
2016;13747;9,57;FASTWEB SPA;05/07/2016;USCITE CORRENTI - ACQUISTO DI BENI E DI SERVIZI
2016;13748;22,06;FASTWEB SPA;05/07/2016;USCITE CORRENTI - ACQUISTO DI BENI E DI SERVIZI
2016;13748;57,48;FASTWEB SPA;05/07/2016;USCITE CORRENTI - ACQUISTO DI BENI E DI SERVIZI
2016;13749;46,17;FASTWEB SPA;05/07/2016;USCITE CORRENTI - ACQUISTO DI BENI E DI SERVIZI
2016;13750;8,61;FASTWEB SPA;05/07/2016;USCITE CORRENTI - ACQUISTO DI BENI E DI SERVIZI
2016;13750;35,34;FASTWEB SPA;05/07/2016;USCITE CORRENTI - ACQUISTO DI BENI E DI SERVIZI
2016;13751;120,92;FASTWEB SPA;05/07/2016;USCITE CORRENTI - ACQUISTO DI BENI E DI SERVIZI
2016;13751;3,96;FASTWEB SPA;05/07/2016;USCITE CORRENTI - ACQUISTO DI BENI E DI SERVIZI
2016;13751;70,2;FASTWEB SPA;05/07/2016;USCITE CORRENTI - ACQUISTO DI BENI E DI SERVIZI
2016;13752;19,46;FASTWEB SPA;05/07/2016;USCITE CORRENTI - ACQUISTO DI BENI E DI SERVIZI
2016;13752;340,74;FASTWEB SPA;05/07/2016;USCITE CORRENTI - ACQUISTO DI BENI E DI SERVIZI
2016;13752;93,37;FASTWEB SPA;05/07/2016;USCITE CORRENTI - ACQUISTO DI BENI E DI SERVIZI
2016;13752;24,38;FASTWEB SPA;05/07/2016;USCITE CORRENTI - ACQUISTO DI BENI E DI SERVIZI
2016;13752;24,07;FASTWEB SPA;05/07/2016;USCITE CORRENTI - ACQUISTO DI BENI E DI SERVIZI
2016;13753;41,47;FASTWEB SPA;05/07/2016;USCITE CORRENTI - ACQUISTO DI BENI E DI SERVIZI
2016;13754;341,24;FASTWEB SPA;05/07/2016;USCITE CORRENTI - ACQUISTO DI BENI E DI SERVIZI
2016;13755;235,19;FASTWEB SPA;05/07/2016;USCITE CORRENTI - ACQUISTO DI BENI E DI SERVIZI
2016;13756;59,38;FASTWEB SPA;05/07/2016;USCITE CORRENTI - ACQUISTO DI BENI E DI SERVIZI
2016;13757;20552,72;DIVERSI SUSSIDI A MINORI;05/07/2016;USCITE CORRENTI - TRASFERIMENTI CORRENTI
2016;13758;1810,75;TELENORD SRL;05/07/2016;USCITE CORRENTI - ACQUISTO DI BENI E DI SERVIZI
2016;13759;1382,16;ASS. DI VOLONT. L'ANGELO LELE;05/07/2016;USCITE CORRENTI - ACQUISTO DI BENI E DI SERVIZI
2016;13760;8020;DIVERSI CONTRIBUTI PER AFFIDI ANZIANI;05/07/2016;USCITE CORRENTI - TRASFERIMENTI CORRENTI
2016;13761;850,62;OFFICINA SIMONE DI BRUZZONE SIMONE IND.;05/07/2016;USCITE CORRENTI - ACQUISTO DI BENI E DI SERVIZI
2016;13761;1784,03;OFFICINA SIMONE DI BRUZZONE SIMONE IND.;05/07/2016;USCITE CORRENTI - ACQUISTO DI BENI E DI SERVIZI
2016;13764;750;DIVERSI SUSSIDI A CITTADINI BISOGNOSI;05/07/2016;USCITE CORRENTI - TRASFERIMENTI CORRENTI
2016;13766;1024,8;PROMO EST CENTRO TRADUZIONI E CONGRESSI SRL;05/07/2016;USCITE CORRENTI - ACQUISTO DI BENI E DI SERVIZI
2016;13767;1322;DIVERSI SUSSIDI A CITTADINI BISOGNOSI;05/07/2016;USCITE CORRENTI - TRASFERIMENTI CORRENTI
2016;13768;250;DIVERSI SUSSIDI A MINORI;05/07/2016;USCITE CORRENTI - TRASFERIMENTI CORRENTI
2016;13769;1155;DIVERSI SUSSIDI A CITTADINI BISOGNOSI;05/07/2016;USCITE CORRENTI - TRASFERIMENTI CORRENTI
2016;13770;7955,79;DIVERSI CONTRIBUTI EX DGC 722/97 - 1443/97;05/07/2016;USCITE CORRENTI - TRASFERIMENTI CORRENTI
2016;13771;1039,32;COOPSSE SOC. COOP.SOCIALE ONLUS;05/07/2016;USCITE CORRENTI - ACQUISTO DI BENI E DI SERVIZI
2016;13772;64801,7;RI.GENOVA - RIQUALIFICAZIONE URBANA GENOVA SRL;05/07/2016;USCITE IN CONTO CAPITALE - CONTRIBUTI AGLI INVESTIMENTI
2016;13773;15960,59;RI.GENOVA - RIQUALIFICAZIONE URBANA GENOVA SRL;05/07/2016;USCITE IN CONTO CAPITALE - CONTRIBUTI AGLI INVESTIMENTI
2016;13774;10237,72;RI.GENOVA - RIQUALIFICAZIONE URBANA GENOVA SRL;05/07/2016;USCITE IN CONTO CAPITALE - CONTRIBUTI AGLI INVESTIMENTI
2016;13775;8189,99;RI.GENOVA - RIQUALIFICAZIONE URBANA GENOVA SRL;05/07/2016;USCITE IN CONTO CAPITALE - CONTRIBUTI AGLI INVESTIMENTI
2016;13776;8127,16;RI.GENOVA - RIQUALIFICAZIONE URBANA GENOVA SRL;05/07/2016;USCITE IN CONTO CAPITALE - CONTRIBUTI AGLI INVESTIMENTI
2016;13777;7362,75;RI.GENOVA - RIQUALIFICAZIONE URBANA GENOVA SRL;05/07/2016;USCITE IN CONTO CAPITALE - CONTRIBUTI AGLI INVESTIMENTI
2016;13778;6037,41;RI.GENOVA - RIQUALIFICAZIONE URBANA GENOVA SRL;05/07/2016;USCITE IN CONTO CAPITALE - CONTRIBUTI AGLI INVESTIMENTI
2016;13779;3010;RI.GENOVA - RIQUALIFICAZIONE URBANA GENOVA SRL;05/07/2016;USCITE IN CONTO CAPITALE - CONTRIBUTI AGLI INVESTIMENTI
2016;13780;70,76;LANATA VIGNE SNC DI LANATA MARCO E STEFANO;05/07/2016;USCITE IN CONTO CAPITALE - INVESTIMENTI FISSI LORDI E ACQUISTO DI TERRENI
2016;13781;70,76;LANATA VIGNE SNC DI LANATA MARCO E STEFANO;05/07/2016;USCITE IN CONTO CAPITALE - INVESTIMENTI FISSI LORDI E ACQUISTO DI TERRENI
2016;13782;2342,4;UNIVERSITA' GENOVA;05/07/2016;USCITE IN CONTO CAPITALE - INVESTIMENTI FISSI LORDI E ACQUISTO DI TERRENI
2016;13783;1464;ARAN PROGETTI S.R.L.;05/07/2016;USCITE IN CONTO CAPITALE - INVESTIMENTI FISSI LORDI E ACQUISTO DI TERRENI
2016;13784;8247,2;STUDIO PRD PAESE ROMELLI DAMONTE INGEGNERI RIUNITI;05/07/2016;USCITE IN CONTO CAPITALE - INVESTIMENTI FISSI LORDI E ACQUISTO DI TERRENI
2016;13785;23258,04;GIUSTINIANA S.R.L.;06/07/2016;USCITE IN CONTO CAPITALE - INVESTIMENTI FISSI LORDI E ACQUISTO DI TERRENI
2016;13786;46779,88;GIUSTINIANA S.R.L.;06/07/2016;USCITE IN CONTO CAPITALE - INVESTIMENTI FISSI LORDI E ACQUISTO DI TERRENI
2016;13787;45102,08;S.C.A. GENOVA-SOC.COSTRUZ.AUTOSTRADALI GENOVA SRL UNIPERS.;06/07/2016;USCITE IN CONTO CAPITALE - INVESTIMENTI FISSI LORDI E ACQUISTO DI TERRENI
2016;13788;95389,05;ING.INS.INT. INGEGNERIA INSEDIATIVA INTEGRATA S.P.A.;06/07/2016;USCITE IN CONTO CAPITALE - INVESTIMENTI FISSI LORDI E ACQUISTO DI TERRENI
2016;13789;167,57;EDIL FRANCO RANUCCI SRL;06/07/2016;USCITE IN CONTO CAPITALE - INVESTIMENTI FISSI LORDI E ACQUISTO DI TERRENI
2016;13790;27378,05;EDIL FRANCO RANUCCI SRL;06/07/2016;USCITE IN CONTO CAPITALE - INVESTIMENTI FISSI LORDI E ACQUISTO DI TERRENI
2016;13791;37515;EDIL FRANCO RANUCCI SRL;06/07/2016;USCITE IN CONTO CAPITALE - INVESTIMENTI FISSI LORDI E ACQUISTO DI TERRENI
2016;13792;5582;CONGREG.SORELLE DEI POVERI DI S.CATERINA DA SIENA;06/07/2016;USCITE CORRENTI - ACQUISTO DI BENI E DI SERVIZI
2016;13793;2893,93;L'EDILBIT  S.R.L.;06/07/2016;USCITE IN CONTO CAPITALE - INVESTIMENTI FISSI LORDI E ACQUISTO DI TERRENI
2016;13793;77749,09;L'EDILBIT  S.R.L.;06/07/2016;USCITE IN CONTO CAPITALE - INVESTIMENTI FISSI LORDI E ACQUISTO DI TERRENI
2016;13793;66636,31;L'EDILBIT  S.R.L.;06/07/2016;USCITE IN CONTO CAPITALE - INVESTIMENTI FISSI LORDI E ACQUISTO DI TERRENI
2016;13794;67971,51;CONSORZIO INTEGRA SOCIETA' COOPERATIVA;06/07/2016;USCITE IN CONTO CAPITALE - INVESTIMENTI FISSI LORDI E ACQUISTO DI TERRENI
2016;13795;12751,39;MONTALDO, SANDRO;06/07/2016;USCITE IN CONTO CAPITALE - INVESTIMENTI FISSI LORDI E ACQUISTO DI TERRENI
2016;13796;1586;TANASINI, GIORGIO;06/07/2016;USCITE IN CONTO CAPITALE - INVESTIMENTI FISSI LORDI E ACQUISTO DI TERRENI
2016;13798;925,8;PTV PROGRAMMAZIONI TELEVISIVE SPA;06/07/2016;USCITE CORRENTI - ACQUISTO DI BENI E DI SERVIZI
2016;13799;1514,2;PTV PROGRAMMAZIONI TELEVISIVE SPA;06/07/2016;USCITE CORRENTI - ACQUISTO DI BENI E DI SERVIZI
2016;13800;980,06;QUINTINO COSTRUZIONI SPA;06/07/2016;USCITE IN CONTO CAPITALE - INVESTIMENTI FISSI LORDI E ACQUISTO DI TERRENI
2016;13801;5702;CONGREG. SERVI CARITA' - CASA DELL'ANGELO- OP.DON GUANELLA;06/07/2016;USCITE CORRENTI - ACQUISTO DI BENI E DI SERVIZI
2016;13801;5892;CONGREG. SERVI CARITA' - CASA DELL'ANGELO- OP.DON GUANELLA;06/07/2016;USCITE CORRENTI - ACQUISTO DI BENI E DI SERVIZI
2016;13802;3580,57;COOP.ITAL.RISTORAZIONE SOC COOP. - CIR FOOD S.C.;06/07/2016;USCITE CORRENTI - ACQUISTO DI BENI E DI SERVIZI
2016;13802;7936,97;COOP.ITAL.RISTORAZIONE SOC COOP. - CIR FOOD S.C.;06/07/2016;USCITE CORRENTI - ACQUISTO DI BENI E DI SERVIZI
2016;13802;3041,83;COOP.ITAL.RISTORAZIONE SOC COOP. - CIR FOOD S.C.;06/07/2016;USCITE CORRENTI - ACQUISTO DI BENI E DI SERVIZI
2016;13803;67,34;COOP.ITAL.RISTORAZIONE SOC COOP. - CIR FOOD S.C.;06/07/2016;USCITE CORRENTI - ACQUISTO DI BENI E DI SERVIZI
2016;13803;7585,5;COOP.ITAL.RISTORAZIONE SOC COOP. - CIR FOOD S.C.;06/07/2016;USCITE CORRENTI - ACQUISTO DI BENI E DI SERVIZI
2016;13803;17831,39;COOP.ITAL.RISTORAZIONE SOC COOP. - CIR FOOD S.C.;06/07/2016;USCITE CORRENTI - ACQUISTO DI BENI E DI SERVIZI
2016;13803;7766,91;COOP.ITAL.RISTORAZIONE SOC COOP. - CIR FOOD S.C.;06/07/2016;USCITE CORRENTI - ACQUISTO DI BENI E DI SERVIZI
2016;13803;9616,17;COOP.ITAL.RISTORAZIONE SOC COOP. - CIR FOOD S.C.;06/07/2016;USCITE CORRENTI - ACQUISTO DI BENI E DI SERVIZI
2016;13803;2274,52;COOP.ITAL.RISTORAZIONE SOC COOP. - CIR FOOD S.C.;06/07/2016;USCITE CORRENTI - ACQUISTO DI BENI E DI SERVIZI
2016;13803;15137,89;COOP.ITAL.RISTORAZIONE SOC COOP. - CIR FOOD S.C.;06/07/2016;USCITE CORRENTI - ACQUISTO DI BENI E DI SERVIZI
2016;13803;1766,66;COOP.ITAL.RISTORAZIONE SOC COOP. - CIR FOOD S.C.;06/07/2016;USCITE CORRENTI - ACQUISTO DI BENI E DI SERVIZI
2016;13803;6884,5;COOP.ITAL.RISTORAZIONE SOC COOP. - CIR FOOD S.C.;06/07/2016;USCITE CORRENTI - ACQUISTO DI BENI E DI SERVIZI
2016;13803;9269,29;COOP.ITAL.RISTORAZIONE SOC COOP. - CIR FOOD S.C.;06/07/2016;USCITE CORRENTI - ACQUISTO DI BENI E DI SERVIZI
2016;13803;30811,31;COOP.ITAL.RISTORAZIONE SOC COOP. - CIR FOOD S.C.;06/07/2016;USCITE CORRENTI - ACQUISTO DI BENI E DI SERVIZI
2016;13803;3207,52;COOP.ITAL.RISTORAZIONE SOC COOP. - CIR FOOD S.C.;06/07/2016;USCITE CORRENTI - ACQUISTO DI BENI E DI SERVIZI
2016;13803;104,38;COOP.ITAL.RISTORAZIONE SOC COOP. - CIR FOOD S.C.;06/07/2016;USCITE CORRENTI - ACQUISTO DI BENI E DI SERVIZI
2016;13804;5451,8;CONGREG.SORELLE DEI POVERI DI S.CATERINA DA SIENA;06/07/2016;USCITE CORRENTI - ACQUISTO DI BENI E DI SERVIZI
2016;13805;40,41;COOP.ITAL.RISTORAZIONE SOC COOP. - CIR FOOD S.C.;06/07/2016;USCITE CORRENTI - ACQUISTO DI BENI E DI SERVIZI
2016;13805;5977,4;COOP.ITAL.RISTORAZIONE SOC COOP. - CIR FOOD S.C.;06/07/2016;USCITE CORRENTI - ACQUISTO DI BENI E DI SERVIZI
2016;13805;80,81;COOP.ITAL.RISTORAZIONE SOC COOP. - CIR FOOD S.C.;06/07/2016;USCITE CORRENTI - ACQUISTO DI BENI E DI SERVIZI
2016;13805;12458,68;COOP.ITAL.RISTORAZIONE SOC COOP. - CIR FOOD S.C.;06/07/2016;USCITE CORRENTI - ACQUISTO DI BENI E DI SERVIZI
2016;13805;435,84;COOP.ITAL.RISTORAZIONE SOC COOP. - CIR FOOD S.C.;06/07/2016;USCITE CORRENTI - ACQUISTO DI BENI E DI SERVIZI
2016;13805;5820,44;COOP.ITAL.RISTORAZIONE SOC COOP. - CIR FOOD S.C.;06/07/2016;USCITE CORRENTI - ACQUISTO DI BENI E DI SERVIZI
2016;13805;9709,66;COOP.ITAL.RISTORAZIONE SOC COOP. - CIR FOOD S.C.;06/07/2016;USCITE CORRENTI - ACQUISTO DI BENI E DI SERVIZI
2016;13805;7333,52;COOP.ITAL.RISTORAZIONE SOC COOP. - CIR FOOD S.C.;06/07/2016;USCITE CORRENTI - ACQUISTO DI BENI E DI SERVIZI
2016;13805;13781,61;COOP.ITAL.RISTORAZIONE SOC COOP. - CIR FOOD S.C.;06/07/2016;USCITE CORRENTI - ACQUISTO DI BENI E DI SERVIZI
2016;13805;7253,48;COOP.ITAL.RISTORAZIONE SOC COOP. - CIR FOOD S.C.;06/07/2016;USCITE CORRENTI - ACQUISTO DI BENI E DI SERVIZI
2016;13805;20875,02;COOP.ITAL.RISTORAZIONE SOC COOP. - CIR FOOD S.C.;06/07/2016;USCITE CORRENTI - ACQUISTO DI BENI E DI SERVIZI
2016;13805;5797,78;COOP.ITAL.RISTORAZIONE SOC COOP. - CIR FOOD S.C.;06/07/2016;USCITE CORRENTI - ACQUISTO DI BENI E DI SERVIZI
2016;13805;8739,19;COOP.ITAL.RISTORAZIONE SOC COOP. - CIR FOOD S.C.;06/07/2016;USCITE CORRENTI - ACQUISTO DI BENI E DI SERVIZI
2016;13805;9319,47;COOP.ITAL.RISTORAZIONE SOC COOP. - CIR FOOD S.C.;06/07/2016;USCITE CORRENTI - ACQUISTO DI BENI E DI SERVIZI
2016;13805;1264,64;COOP.ITAL.RISTORAZIONE SOC COOP. - CIR FOOD S.C.;06/07/2016;USCITE CORRENTI - ACQUISTO DI BENI E DI SERVIZI
2016;13805;1294,28;COOP.ITAL.RISTORAZIONE SOC COOP. - CIR FOOD S.C.;06/07/2016;USCITE CORRENTI - ACQUISTO DI BENI E DI SERVIZI
2016;13805;5463,64;COOP.ITAL.RISTORAZIONE SOC COOP. - CIR FOOD S.C.;06/07/2016;USCITE CORRENTI - ACQUISTO DI BENI E DI SERVIZI
2016;13805;2637,96;COOP.ITAL.RISTORAZIONE SOC COOP. - CIR FOOD S.C.;06/07/2016;USCITE CORRENTI - ACQUISTO DI BENI E DI SERVIZI
2016;13805;13570,18;COOP.ITAL.RISTORAZIONE SOC COOP. - CIR FOOD S.C.;06/07/2016;USCITE CORRENTI - ACQUISTO DI BENI E DI SERVIZI
2016;13805;1976;COOP.ITAL.RISTORAZIONE SOC COOP. - CIR FOOD S.C.;06/07/2016;USCITE CORRENTI - ACQUISTO DI BENI E DI SERVIZI
2016;13805;17502,42;COOP.ITAL.RISTORAZIONE SOC COOP. - CIR FOOD S.C.;06/07/2016;USCITE CORRENTI - ACQUISTO DI BENI E DI SERVIZI
2016;13805;11925,16;COOP.ITAL.RISTORAZIONE SOC COOP. - CIR FOOD S.C.;06/07/2016;USCITE CORRENTI - ACQUISTO DI BENI E DI SERVIZI
2016;13805;25060,62;COOP.ITAL.RISTORAZIONE SOC COOP. - CIR FOOD S.C.;06/07/2016;USCITE CORRENTI - ACQUISTO DI BENI E DI SERVIZI
2016;13805;7790,38;COOP.ITAL.RISTORAZIONE SOC COOP. - CIR FOOD S.C.;06/07/2016;USCITE CORRENTI - ACQUISTO DI BENI E DI SERVIZI
2016;13806;21810,1;COOP.ITAL.RISTORAZIONE SOC COOP. - CIR FOOD S.C.;06/07/2016;USCITE CORRENTI - ACQUISTO DI BENI E DI SERVIZI
2016;13806;1274,52;COOP.ITAL.RISTORAZIONE SOC COOP. - CIR FOOD S.C.;06/07/2016;USCITE CORRENTI - ACQUISTO DI BENI E DI SERVIZI
2016;13806;1892,02;COOP.ITAL.RISTORAZIONE SOC COOP. - CIR FOOD S.C.;06/07/2016;USCITE CORRENTI - ACQUISTO DI BENI E DI SERVIZI
2016;13806;12,27;COOP.ITAL.RISTORAZIONE SOC COOP. - CIR FOOD S.C.;06/07/2016;USCITE CORRENTI - ACQUISTO DI BENI E DI SERVIZI
2016;13807;3349,32;COOP.ITAL.RISTORAZIONE SOC COOP. - CIR FOOD S.C.;06/07/2016;USCITE CORRENTI - ACQUISTO DI BENI E DI SERVIZI
2016;13807;2828,62;COOP.ITAL.RISTORAZIONE SOC COOP. - CIR FOOD S.C.;06/07/2016;USCITE CORRENTI - ACQUISTO DI BENI E DI SERVIZI
2016;13807;4366,63;COOP.ITAL.RISTORAZIONE SOC COOP. - CIR FOOD S.C.;06/07/2016;USCITE CORRENTI - ACQUISTO DI BENI E DI SERVIZI
2016;13807;467,38;COOP.ITAL.RISTORAZIONE SOC COOP. - CIR FOOD S.C.;06/07/2016;USCITE CORRENTI - ACQUISTO DI BENI E DI SERVIZI
2016;13807;5314,73;COOP.ITAL.RISTORAZIONE SOC COOP. - CIR FOOD S.C.;06/07/2016;USCITE CORRENTI - ACQUISTO DI BENI E DI SERVIZI
2016;13807;3156,66;COOP.ITAL.RISTORAZIONE SOC COOP. - CIR FOOD S.C.;06/07/2016;USCITE CORRENTI - ACQUISTO DI BENI E DI SERVIZI
2016;13808;230,5;AUSER LIGURIA E GENOVA - ORG. VOLONT.;06/07/2016;USCITE CORRENTI - ACQUISTO DI BENI E DI SERVIZI
2016;13808;5504,5;AUSER LIGURIA E GENOVA - ORG. VOLONT.;06/07/2016;USCITE CORRENTI - ACQUISTO DI BENI E DI SERVIZI
2016;13809;219,6;P.ZETA S.R.L.;06/07/2016;USCITE CORRENTI - ACQUISTO DI BENI E DI SERVIZI
2016;13810;12500;CIRCOLO DEI VIAGGIATORI NEL TEMPO;06/07/2016;USCITE CORRENTI - TRASFERIMENTI CORRENTI
2016;13811;3578,31;CANCELLIERI GIUSEPPE SRL;06/07/2016;USCITE CORRENTI - ACQUISTO DI BENI E DI SERVIZI
2016;13811;86,98;CANCELLIERI GIUSEPPE SRL;06/07/2016;USCITE CORRENTI - ACQUISTO DI BENI E DI SERVIZI
2016;13811;86,98;CANCELLIERI GIUSEPPE SRL;06/07/2016;USCITE CORRENTI - ACQUISTO DI BENI E DI SERVIZI
2016;13811;86,98;CANCELLIERI GIUSEPPE SRL;06/07/2016;USCITE CORRENTI - ACQUISTO DI BENI E DI SERVIZI
2016;13811;127,36;CANCELLIERI GIUSEPPE SRL;06/07/2016;USCITE CORRENTI - ACQUISTO DI BENI E DI SERVIZI
2016;13812;86,98;CANCELLIERI GIUSEPPE SRL;06/07/2016;USCITE CORRENTI - ACQUISTO DI BENI E DI SERVIZI
2016;13813;86,98;CANCELLIERI GIUSEPPE SRL;06/07/2016;USCITE CORRENTI - ACQUISTO DI BENI E DI SERVIZI
2016;13813;478,31;CANCELLIERI GIUSEPPE SRL;06/07/2016;USCITE CORRENTI - ACQUISTO DI BENI E DI SERVIZI
2016;13814;197,64;TIPOGRAFIA SANT'ANNA DI ANDREA  E MATTEO FAZZINO E C. SAS;06/07/2016;USCITE CORRENTI - ACQUISTO DI BENI E DI SERVIZI
2016;13815;4622;IST.SUORE POVERE BONAERENSI S. GIUSEPPE;06/07/2016;USCITE CORRENTI - ACQUISTO DI BENI E DI SERVIZI
2016;13816;2774;IST.FIGLIE.S.MARIA LEUCA - NIDO S. ELISABETTA E SC.INFANZIA;06/07/2016;USCITE CORRENTI - ACQUISTO DI BENI E DI SERVIZI
2016;13817;2982;IST.SUORE POVERE BONAERENSI S. GIUSEPPE;06/07/2016;USCITE CORRENTI - ACQUISTO DI BENI E DI SERVIZI
2016;13818;17231,4;IL LABORATORIO SOC.COOP SOCIALE ONLUS;06/07/2016;USCITE CORRENTI - ACQUISTO DI BENI E DI SERVIZI
2016;13819;6434,5;CROCE ROSSA ITALIANA - COMITATO LOCALE GENOVA;06/07/2016;USCITE CORRENTI - ACQUISTO DI BENI E DI SERVIZI
2016;13819;417;CROCE ROSSA ITALIANA - COMITATO LOCALE GENOVA;06/07/2016;USCITE CORRENTI - ACQUISTO DI BENI E DI SERVIZI
2016;13820;7707,16;CONGREG. SERVI CARITA' - CASA DELL'ANGELO- OP.DON GUANELLA;06/07/2016;USCITE CORRENTI - ACQUISTO DI BENI E DI SERVIZI
2016;13820;8031,5;CONGREG. SERVI CARITA' - CASA DELL'ANGELO- OP.DON GUANELLA;06/07/2016;USCITE CORRENTI - ACQUISTO DI BENI E DI SERVIZI
2016;13824;29046;FONDAZIONE  ENTE MORALE  SORRISO FRANCESCANO;06/07/2016;USCITE CORRENTI - ACQUISTO DI BENI E DI SERVIZI
2016;13825;1000;A.M.T. AZ.MOBILITA' E TRASPORTI SPA;06/07/2016;USCITE CORRENTI - ACQUISTO DI BENI E DI SERVIZI
2016;13826;82159,8;AUTORITA' PORTUALE DI GENOVA;06/07/2016;USCITE CORRENTI - ACQUISTO DI BENI E DI SERVIZI
2016;13828;1857,28;POSTE ITALIANE SPA;06/07/2016;USCITE CORRENTI - ACQUISTO DI BENI E DI SERVIZI
2016;13829;13,95;FASTWEB SPA;06/07/2016;USCITE CORRENTI - ACQUISTO DI BENI E DI SERVIZI
2016;13829;202,3;FASTWEB SPA;06/07/2016;USCITE CORRENTI - ACQUISTO DI BENI E DI SERVIZI
2016;13829;69,12;FASTWEB SPA;06/07/2016;USCITE CORRENTI - ACQUISTO DI BENI E DI SERVIZI
2016;13830;281,03;FASTWEB SPA;06/07/2016;USCITE CORRENTI - ACQUISTO DI BENI E DI SERVIZI
2016;13831;57,28;FASTWEB SPA;06/07/2016;USCITE CORRENTI - ACQUISTO DI BENI E DI SERVIZI
2016;13831;555,81;FASTWEB SPA;06/07/2016;USCITE CORRENTI - ACQUISTO DI BENI E DI SERVIZI
2016;13831;208,52;FASTWEB SPA;06/07/2016;USCITE CORRENTI - ACQUISTO DI BENI E DI SERVIZI
2016;13831;242,81;FASTWEB SPA;06/07/2016;USCITE CORRENTI - ACQUISTO DI BENI E DI SERVIZI
2016;13831;15,94;FASTWEB SPA;06/07/2016;USCITE CORRENTI - ACQUISTO DI BENI E DI SERVIZI
2016;13831;146,53;FASTWEB SPA;06/07/2016;USCITE CORRENTI - ACQUISTO DI BENI E DI SERVIZI
2016;13831;25,15;FASTWEB SPA;06/07/2016;USCITE CORRENTI - ACQUISTO DI BENI E DI SERVIZI
2016;13831;0,89;FASTWEB SPA;06/07/2016;USCITE CORRENTI - ACQUISTO DI BENI E DI SERVIZI
2016;13831;136,09;FASTWEB SPA;06/07/2016;USCITE CORRENTI - ACQUISTO DI BENI E DI SERVIZI
2016;13831;161,47;FASTWEB SPA;06/07/2016;USCITE CORRENTI - ACQUISTO DI BENI E DI SERVIZI
2016;13831;39,07;FASTWEB SPA;06/07/2016;USCITE CORRENTI - ACQUISTO DI BENI E DI SERVIZI
2016;13831;22,51;FASTWEB SPA;06/07/2016;USCITE CORRENTI - ACQUISTO DI BENI E DI SERVIZI
2016;13832;10,06;FASTWEB SPA;06/07/2016;USCITE CORRENTI - ACQUISTO DI BENI E DI SERVIZI
2016;13832;18,69;FASTWEB SPA;06/07/2016;USCITE CORRENTI - ACQUISTO DI BENI E DI SERVIZI
2016;13832;16,07;FASTWEB SPA;06/07/2016;USCITE CORRENTI - ACQUISTO DI BENI E DI SERVIZI
2016;13832;49,65;FASTWEB SPA;06/07/2016;USCITE CORRENTI - ACQUISTO DI BENI E DI SERVIZI
2016;13832;466,37;FASTWEB SPA;06/07/2016;USCITE CORRENTI - ACQUISTO DI BENI E DI SERVIZI
2016;13832;49,84;FASTWEB SPA;06/07/2016;USCITE CORRENTI - ACQUISTO DI BENI E DI SERVIZI
2016;13832;83,62;FASTWEB SPA;06/07/2016;USCITE CORRENTI - ACQUISTO DI BENI E DI SERVIZI
2016;13832;5,56;FASTWEB SPA;06/07/2016;USCITE CORRENTI - ACQUISTO DI BENI E DI SERVIZI
2016;13832;55,67;FASTWEB SPA;06/07/2016;USCITE CORRENTI - ACQUISTO DI BENI E DI SERVIZI
2016;13832;23,28;FASTWEB SPA;06/07/2016;USCITE CORRENTI - ACQUISTO DI BENI E DI SERVIZI
2016;13833;3,49;FASTWEB SPA;06/07/2016;USCITE CORRENTI - ACQUISTO DI BENI E DI SERVIZI
2016;13833;31,7;FASTWEB SPA;06/07/2016;USCITE CORRENTI - ACQUISTO DI BENI E DI SERVIZI
2016;13833;17,38;FASTWEB SPA;06/07/2016;USCITE CORRENTI - ACQUISTO DI BENI E DI SERVIZI
2016;13833;13,43;FASTWEB SPA;06/07/2016;USCITE CORRENTI - ACQUISTO DI BENI E DI SERVIZI
2016;13834;172,98;FASTWEB SPA;06/07/2016;USCITE CORRENTI - ACQUISTO DI BENI E DI SERVIZI
2016;13834;272,42;FASTWEB SPA;06/07/2016;USCITE CORRENTI - ACQUISTO DI BENI E DI SERVIZI
2016;13834;6,69;FASTWEB SPA;06/07/2016;USCITE CORRENTI - ACQUISTO DI BENI E DI SERVIZI
2016;13834;215,65;FASTWEB SPA;06/07/2016;USCITE CORRENTI - ACQUISTO DI BENI E DI SERVIZI
2016;13834;130,77;FASTWEB SPA;06/07/2016;USCITE CORRENTI - ACQUISTO DI BENI E DI SERVIZI
2016;13834;7,38;FASTWEB SPA;06/07/2016;USCITE CORRENTI - ACQUISTO DI BENI E DI SERVIZI
2016;13834;26,3;FASTWEB SPA;06/07/2016;USCITE CORRENTI - ACQUISTO DI BENI E DI SERVIZI
2016;13834;41,23;FASTWEB SPA;06/07/2016;USCITE CORRENTI - ACQUISTO DI BENI E DI SERVIZI
2016;13834;1,78;FASTWEB SPA;06/07/2016;USCITE CORRENTI - ACQUISTO DI BENI E DI SERVIZI
2016;13834;294,77;FASTWEB SPA;06/07/2016;USCITE CORRENTI - ACQUISTO DI BENI E DI SERVIZI
2016;13835;23;FASTWEB SPA;06/07/2016;USCITE CORRENTI - ACQUISTO DI BENI E DI SERVIZI
2016;13835;13,62;FASTWEB SPA;06/07/2016;USCITE CORRENTI - ACQUISTO DI BENI E DI SERVIZI
2016;13836;38,68;FASTWEB SPA;06/07/2016;USCITE CORRENTI - ACQUISTO DI BENI E DI SERVIZI
2016;13836;6,88;FASTWEB SPA;06/07/2016;USCITE CORRENTI - ACQUISTO DI BENI E DI SERVIZI
2016;13837;43,22;FASTWEB SPA;06/07/2016;USCITE CORRENTI - ACQUISTO DI BENI E DI SERVIZI
2016;13837;1973,5;FASTWEB SPA;06/07/2016;USCITE CORRENTI - ACQUISTO DI BENI E DI SERVIZI
2016;13837;0,46;FASTWEB SPA;06/07/2016;USCITE CORRENTI - ACQUISTO DI BENI E DI SERVIZI
2016;13837;32,22;FASTWEB SPA;06/07/2016;USCITE CORRENTI - ACQUISTO DI BENI E DI SERVIZI
2016;13838;11,36;FASTWEB SPA;06/07/2016;USCITE CORRENTI - ACQUISTO DI BENI E DI SERVIZI
2016;13838;37,98;FASTWEB SPA;06/07/2016;USCITE CORRENTI - ACQUISTO DI BENI E DI SERVIZI
2016;13839;139,65;FASTWEB SPA;06/07/2016;USCITE CORRENTI - ACQUISTO DI BENI E DI SERVIZI
2016;13839;144,97;FASTWEB SPA;06/07/2016;USCITE CORRENTI - ACQUISTO DI BENI E DI SERVIZI
2016;13839;92,19;FASTWEB SPA;06/07/2016;USCITE CORRENTI - ACQUISTO DI BENI E DI SERVIZI
2016;13839;221,18;FASTWEB SPA;06/07/2016;USCITE CORRENTI - ACQUISTO DI BENI E DI SERVIZI
2016;13839;98,96;FASTWEB SPA;06/07/2016;USCITE CORRENTI - ACQUISTO DI BENI E DI SERVIZI
2016;13839;65,26;FASTWEB SPA;06/07/2016;USCITE CORRENTI - ACQUISTO DI BENI E DI SERVIZI
2016;13839;103,56;FASTWEB SPA;06/07/2016;USCITE CORRENTI - ACQUISTO DI BENI E DI SERVIZI
2016;13839;82,59;FASTWEB SPA;06/07/2016;USCITE CORRENTI - ACQUISTO DI BENI E DI SERVIZI
2016;13839;305,99;FASTWEB SPA;06/07/2016;USCITE CORRENTI - ACQUISTO DI BENI E DI SERVIZI
2016;13839;232,48;FASTWEB SPA;06/07/2016;USCITE CORRENTI - ACQUISTO DI BENI E DI SERVIZI
2016;13839;0,61;FASTWEB SPA;06/07/2016;USCITE CORRENTI - ACQUISTO DI BENI E DI SERVIZI
2016;13839;34,85;FASTWEB SPA;06/07/2016;USCITE CORRENTI - ACQUISTO DI BENI E DI SERVIZI
2016;13839;422,56;FASTWEB SPA;06/07/2016;USCITE CORRENTI - ACQUISTO DI BENI E DI SERVIZI
2016;13840;18,74;FASTWEB SPA;06/07/2016;USCITE CORRENTI - ACQUISTO DI BENI E DI SERVIZI
2016;13840;76,72;FASTWEB SPA;06/07/2016;USCITE CORRENTI - ACQUISTO DI BENI E DI SERVIZI
2016;13841;18,21;FASTWEB SPA;06/07/2016;USCITE CORRENTI - ACQUISTO DI BENI E DI SERVIZI
2016;13841;74,71;FASTWEB SPA;06/07/2016;USCITE CORRENTI - ACQUISTO DI BENI E DI SERVIZI
2016;13841;958,92;FASTWEB SPA;06/07/2016;USCITE CORRENTI - ACQUISTO DI BENI E DI SERVIZI
2016;13842;3,6;FASTWEB SPA;06/07/2016;USCITE CORRENTI - ACQUISTO DI BENI E DI SERVIZI
2016;13843;17,98;FASTWEB SPA;06/07/2016;USCITE CORRENTI - ACQUISTO DI BENI E DI SERVIZI
2016;13843;312,5;FASTWEB SPA;06/07/2016;USCITE CORRENTI - ACQUISTO DI BENI E DI SERVIZI
2016;13843;29,28;FASTWEB SPA;06/07/2016;USCITE CORRENTI - ACQUISTO DI BENI E DI SERVIZI
2016;13843;291,04;FASTWEB SPA;06/07/2016;USCITE CORRENTI - ACQUISTO DI BENI E DI SERVIZI
2016;13843;115,21;FASTWEB SPA;06/07/2016;USCITE CORRENTI - ACQUISTO DI BENI E DI SERVIZI
2016;13843;6,87;FASTWEB SPA;06/07/2016;USCITE CORRENTI - ACQUISTO DI BENI E DI SERVIZI
2016;13843;22,02;FASTWEB SPA;06/07/2016;USCITE CORRENTI - ACQUISTO DI BENI E DI SERVIZI
2016;13843;4,97;FASTWEB SPA;06/07/2016;USCITE CORRENTI - ACQUISTO DI BENI E DI SERVIZI
2016;13843;23,79;FASTWEB SPA;06/07/2016;USCITE CORRENTI - ACQUISTO DI BENI E DI SERVIZI
2016;13843;33,75;FASTWEB SPA;06/07/2016;USCITE CORRENTI - ACQUISTO DI BENI E DI SERVIZI
2016;13843;9,65;FASTWEB SPA;06/07/2016;USCITE CORRENTI - ACQUISTO DI BENI E DI SERVIZI
2016;13843;14,37;FASTWEB SPA;06/07/2016;USCITE CORRENTI - ACQUISTO DI BENI E DI SERVIZI
2016;13844;93,99;FASTWEB SPA;06/07/2016;USCITE CORRENTI - ACQUISTO DI BENI E DI SERVIZI
2016;13844;55,46;FASTWEB SPA;06/07/2016;USCITE CORRENTI - ACQUISTO DI BENI E DI SERVIZI
2016;13844;34,24;FASTWEB SPA;06/07/2016;USCITE CORRENTI - ACQUISTO DI BENI E DI SERVIZI
2016;13845;220,06;FASTWEB SPA;06/07/2016;USCITE CORRENTI - ACQUISTO DI BENI E DI SERVIZI
2016;13845;127,12;FASTWEB SPA;06/07/2016;USCITE CORRENTI - ACQUISTO DI BENI E DI SERVIZI
2016;13845;65,21;FASTWEB SPA;06/07/2016;USCITE CORRENTI - ACQUISTO DI BENI E DI SERVIZI
2016;13846;195,35;FASTWEB SPA;06/07/2016;USCITE CORRENTI - ACQUISTO DI BENI E DI SERVIZI
2016;13847;3,71;FASTWEB SPA;06/07/2016;USCITE CORRENTI - ACQUISTO DI BENI E DI SERVIZI
2016;13847;63,95;FASTWEB SPA;06/07/2016;USCITE CORRENTI - ACQUISTO DI BENI E DI SERVIZI
2016;13847;29,63;FASTWEB SPA;06/07/2016;USCITE CORRENTI - ACQUISTO DI BENI E DI SERVIZI
2016;13847;1,08;FASTWEB SPA;06/07/2016;USCITE CORRENTI - ACQUISTO DI BENI E DI SERVIZI
2016;13848;2,51;FASTWEB SPA;06/07/2016;USCITE CORRENTI - ACQUISTO DI BENI E DI SERVIZI
2016;13849;66,23;FASTWEB SPA;06/07/2016;USCITE CORRENTI - ACQUISTO DI BENI E DI SERVIZI
2016;13849;121,3;FASTWEB SPA;06/07/2016;USCITE CORRENTI - ACQUISTO DI BENI E DI SERVIZI
2016;13849;0,88;FASTWEB SPA;06/07/2016;USCITE CORRENTI - ACQUISTO DI BENI E DI SERVIZI
2016;13850;73,86;FASTWEB SPA;06/07/2016;USCITE CORRENTI - ACQUISTO DI BENI E DI SERVIZI
2016;13851;119,99;FASTWEB SPA;06/07/2016;USCITE CORRENTI - ACQUISTO DI BENI E DI SERVIZI
2016;13851;95,54;FASTWEB SPA;06/07/2016;USCITE CORRENTI - ACQUISTO DI BENI E DI SERVIZI
2016;13851;118,65;FASTWEB SPA;06/07/2016;USCITE CORRENTI - ACQUISTO DI BENI E DI SERVIZI
2016;13851;0,29;FASTWEB SPA;06/07/2016;USCITE CORRENTI - ACQUISTO DI BENI E DI SERVIZI
2016;13851;2,06;FASTWEB SPA;06/07/2016;USCITE CORRENTI - ACQUISTO DI BENI E DI SERVIZI
2016;13851;2,45;FASTWEB SPA;06/07/2016;USCITE CORRENTI - ACQUISTO DI BENI E DI SERVIZI
2016;13851;9,26;FASTWEB SPA;06/07/2016;USCITE CORRENTI - ACQUISTO DI BENI E DI SERVIZI
2016;13852;6,12;FASTWEB SPA;06/07/2016;USCITE CORRENTI - ACQUISTO DI BENI E DI SERVIZI
2016;13853;27,56;FASTWEB SPA;06/07/2016;USCITE CORRENTI - ACQUISTO DI BENI E DI SERVIZI
2016;13854;80,33;FASTWEB SPA;06/07/2016;USCITE CORRENTI - ACQUISTO DI BENI E DI SERVIZI
2016;13854;19,06;FASTWEB SPA;06/07/2016;USCITE CORRENTI - ACQUISTO DI BENI E DI SERVIZI
2016;13854;29,4;FASTWEB SPA;06/07/2016;USCITE CORRENTI - ACQUISTO DI BENI E DI SERVIZI
2016;13854;44,36;FASTWEB SPA;06/07/2016;USCITE CORRENTI - ACQUISTO DI BENI E DI SERVIZI
2016;13854;55,68;FASTWEB SPA;06/07/2016;USCITE CORRENTI - ACQUISTO DI BENI E DI SERVIZI
2016;13854;11,82;FASTWEB SPA;06/07/2016;USCITE CORRENTI - ACQUISTO DI BENI E DI SERVIZI
2016;13854;30,81;FASTWEB SPA;06/07/2016;USCITE CORRENTI - ACQUISTO DI BENI E DI SERVIZI
2016;13855;117,08;FASTWEB SPA;06/07/2016;USCITE CORRENTI - ACQUISTO DI BENI E DI SERVIZI
2016;13856;35,26;FASTWEB SPA;06/07/2016;USCITE CORRENTI - ACQUISTO DI BENI E DI SERVIZI
2016;13857;8,87;FASTWEB SPA;06/07/2016;USCITE CORRENTI - ACQUISTO DI BENI E DI SERVIZI
2016;13858;375,64;FASTWEB SPA;06/07/2016;USCITE CORRENTI - ACQUISTO DI BENI E DI SERVIZI
2016;13859;205,08;FASTWEB SPA;06/07/2016;USCITE CORRENTI - ACQUISTO DI BENI E DI SERVIZI
2016;13859;41,57;FASTWEB SPA;06/07/2016;USCITE CORRENTI - ACQUISTO DI BENI E DI SERVIZI
2016;13860;28,45;FASTWEB SPA;06/07/2016;USCITE CORRENTI - ACQUISTO DI BENI E DI SERVIZI
2016;13860;48,24;FASTWEB SPA;06/07/2016;USCITE CORRENTI - ACQUISTO DI BENI E DI SERVIZI
2016;13861;17,19;FASTWEB SPA;06/07/2016;USCITE CORRENTI - ACQUISTO DI BENI E DI SERVIZI
2016;13862;341,02;FASTWEB SPA;06/07/2016;USCITE CORRENTI - ACQUISTO DI BENI E DI SERVIZI
2016;13862;41,99;FASTWEB SPA;06/07/2016;USCITE CORRENTI - ACQUISTO DI BENI E DI SERVIZI
2016;13862;4,88;FASTWEB SPA;06/07/2016;USCITE CORRENTI - ACQUISTO DI BENI E DI SERVIZI
2016;13862;18,83;FASTWEB SPA;06/07/2016;USCITE CORRENTI - ACQUISTO DI BENI E DI SERVIZI
2016;13862;78,53;FASTWEB SPA;06/07/2016;USCITE CORRENTI - ACQUISTO DI BENI E DI SERVIZI
2016;13863;60,28;FASTWEB SPA;06/07/2016;USCITE CORRENTI - ACQUISTO DI BENI E DI SERVIZI
2016;13864;25,94;FASTWEB SPA;06/07/2016;USCITE CORRENTI - ACQUISTO DI BENI E DI SERVIZI
2016;13865;6,7;FASTWEB SPA;06/07/2016;USCITE CORRENTI - ACQUISTO DI BENI E DI SERVIZI
2016;13866;78,79;FASTWEB SPA;06/07/2016;USCITE CORRENTI - ACQUISTO DI BENI E DI SERVIZI
2016;13867;67,2;FASTWEB SPA;06/07/2016;USCITE CORRENTI - ACQUISTO DI BENI E DI SERVIZI
2016;13868;10,75;FASTWEB SPA;06/07/2016;USCITE CORRENTI - ACQUISTO DI BENI E DI SERVIZI
2016;13869;175,26;FASTWEB SPA;06/07/2016;USCITE CORRENTI - ACQUISTO DI BENI E DI SERVIZI
2016;13870;6355,35;AUTOMOBILE CLUB D'ITALIA- ROMA;06/07/2016;USCITE CORRENTI - ACQUISTO DI BENI E DI SERVIZI
2016;13871;1742,16;I.G.A. INGEGNERIA - GEOLOGIA - ARCHITETTURA STUDIO ASSOCIATO;06/07/2016;USCITE IN CONTO CAPITALE - INVESTIMENTI FISSI LORDI E ACQUISTO DI TERRENI
2016;13872;761,28;ROLFO, GIAN LUCA;06/07/2016;USCITE IN CONTO CAPITALE - INVESTIMENTI FISSI LORDI E ACQUISTO DI TERRENI
2016;13873;95252,59;ASA S.R.L.;06/07/2016;USCITE IN CONTO CAPITALE - INVESTIMENTI FISSI LORDI E ACQUISTO DI TERRENI
2016;13874;30899,37;BRC SPA RECUPERO EDILIZIO E RESTAURO CONSERVATIVO;06/07/2016;USCITE IN CONTO CAPITALE - INVESTIMENTI FISSI LORDI E ACQUISTO DI TERRENI
2016;13875;24,71;I.CO.STRA. S.R.L.;06/07/2016;USCITE IN CONTO CAPITALE - ALTRE SEPSE IN CONTO CAPITALE
2016;13876;424,74;I.CO.STRA. S.R.L.;06/07/2016;USCITE IN CONTO CAPITALE - INVESTIMENTI FISSI LORDI E ACQUISTO DI TERRENI
2016;13877;16628,24;CONGREG. SERVI CARITA' - CASA DELL'ANGELO- OP.DON GUANELLA;06/07/2016;USCITE CORRENTI - ACQUISTO DI BENI E DI SERVIZI
2016;13877;728,02;CONGREG. SERVI CARITA' - CASA DELL'ANGELO- OP.DON GUANELLA;06/07/2016;USCITE CORRENTI - ACQUISTO DI BENI E DI SERVIZI
2016;13878;3464,3;SOC. COOP. SOCIALE S.A.B.A. ONLUS;06/07/2016;USCITE CORRENTI - ACQUISTO DI BENI E DI SERVIZI
2016;13879;305;A.C.G. S.R.L;06/07/2016;USCITE CORRENTI - ACQUISTO DI BENI E DI SERVIZI
2016;13880;13223,16;CONGREG. SERVI CARITA' - CASA DELL'ANGELO- OP.DON GUANELLA;06/07/2016;USCITE CORRENTI - ACQUISTO DI BENI E DI SERVIZI
2016;13880;704,6;CONGREG. SERVI CARITA' - CASA DELL'ANGELO- OP.DON GUANELLA;06/07/2016;USCITE CORRENTI - ACQUISTO DI BENI E DI SERVIZI
2016;13881;4282,2;ARIONI MARIO INDIV.;06/07/2016;USCITE CORRENTI - ACQUISTO DI BENI E DI SERVIZI
2016;13882;3410;FONDAZIONE AUXILIUM ONLUS;06/07/2016;USCITE CORRENTI - ACQUISTO DI BENI E DI SERVIZI
2016;13883;2745;FONDAZIONE AUXILIUM ONLUS;06/07/2016;USCITE CORRENTI - ACQUISTO DI BENI E DI SERVIZI
2016;13883;8525;FONDAZIONE AUXILIUM ONLUS;06/07/2016;USCITE CORRENTI - ACQUISTO DI BENI E DI SERVIZI
2016;13884;2885;CONGREG.SORELLE DEI POVERI DI S.CATERINA DA SIENA;06/07/2016;USCITE CORRENTI - ACQUISTO DI BENI E DI SERVIZI
2016;13885;18153,6;ARIONI MARIO INDIV.;06/07/2016;USCITE CORRENTI - ACQUISTO DI BENI E DI SERVIZI
2016;13885;1676,28;ARIONI MARIO INDIV.;06/07/2016;USCITE CORRENTI - ACQUISTO DI BENI E DI SERVIZI
2016;13886;98,82;TIPOGRAFIA SANT'ANNA DI ANDREA  E MATTEO FAZZINO E C. SAS;06/07/2016;USCITE CORRENTI - ACQUISTO DI BENI E DI SERVIZI
2016;13887;2852;CONGREG. SERVI CARITA' - CASA DELL'ANGELO- OP.DON GUANELLA;06/07/2016;USCITE CORRENTI - ACQUISTO DI BENI E DI SERVIZI
2016;13887;2947;CONGREG. SERVI CARITA' - CASA DELL'ANGELO- OP.DON GUANELLA;06/07/2016;USCITE CORRENTI - ACQUISTO DI BENI E DI SERVIZI
2016;13888;48800;DATA MANAGEMENT PA SPA;06/07/2016;USCITE CORRENTI - ACQUISTO DI BENI E DI SERVIZI
2016;13889;646,6;DATA MANAGEMENT PA SPA;06/07/2016;USCITE CORRENTI - ACQUISTO DI BENI E DI SERVIZI
2016;13890;26105,12;IL LABORATORIO SOC.COOP SOCIALE ONLUS;06/07/2016;USCITE CORRENTI - ACQUISTO DI BENI E DI SERVIZI
2016;13890;27513,18;IL LABORATORIO SOC.COOP SOCIALE ONLUS;06/07/2016;USCITE CORRENTI - ACQUISTO DI BENI E DI SERVIZI
2016;13891;35522,67;IMMOBILIARE BANCHI DANTE SRL;06/07/2016;USCITE CORRENTI - ACQUISTO DI BENI E DI SERVIZI
2016;13892;6387,76;FONDAZIONE  ENTE MORALE  SORRISO FRANCESCANO;06/07/2016;USCITE CORRENTI - ACQUISTO DI BENI E DI SERVIZI
2016;13892;6494,21;FONDAZIONE  ENTE MORALE  SORRISO FRANCESCANO;06/07/2016;USCITE CORRENTI - ACQUISTO DI BENI E DI SERVIZI
2016;13893;2000;ASS. TEATRO DELL'ORTICA ONLUS;06/07/2016;USCITE CORRENTI - ACQUISTO DI BENI E DI SERVIZI
2016;13895;2445,59;PROVINCIA REL.S.BENEDETTO-PICC.COTT.DON ORIONE;06/07/2016;USCITE CORRENTI - ACQUISTO DI BENI E DI SERVIZI
2016;13896;5744;IST.FIGLIE.S.MARIA LEUCA - NIDO S. ELISABETTA E SC.INFANZIA;06/07/2016;USCITE CORRENTI - ACQUISTO DI BENI E DI SERVIZI
2016;13896;3071;IST.FIGLIE.S.MARIA LEUCA - NIDO S. ELISABETTA E SC.INFANZIA;06/07/2016;USCITE CORRENTI - ACQUISTO DI BENI E DI SERVIZI
2016;13897;6510;FABER SOCIETA' COOPERATIVA SOCIALE;06/07/2016;USCITE CORRENTI - ACQUISTO DI BENI E DI SERVIZI
2016;13897;6300;FABER SOCIETA' COOPERATIVA SOCIALE;06/07/2016;USCITE CORRENTI - ACQUISTO DI BENI E DI SERVIZI
2016;13897;6510;FABER SOCIETA' COOPERATIVA SOCIALE;06/07/2016;USCITE CORRENTI - ACQUISTO DI BENI E DI SERVIZI
2016;13898;1856,45;PROVINCIA REL.S.BENEDETTO-PICC.COTT.DON ORIONE;06/07/2016;USCITE CORRENTI - ACQUISTO DI BENI E DI SERVIZI
2016;13899;3150;FABER SOCIETA' COOPERATIVA SOCIALE;06/07/2016;USCITE CORRENTI - ACQUISTO DI BENI E DI SERVIZI
2016;13899;3255;FABER SOCIETA' COOPERATIVA SOCIALE;06/07/2016;USCITE CORRENTI - ACQUISTO DI BENI E DI SERVIZI
2016;13899;3255;FABER SOCIETA' COOPERATIVA SOCIALE;06/07/2016;USCITE CORRENTI - ACQUISTO DI BENI E DI SERVIZI
2016;13900;495;U.D.I. - CENTRO  PER NON SUBIRE VIOLENZA - ORG;06/07/2016;USCITE CORRENTI - ACQUISTO DI BENI E DI SERVIZI
2016;13900;225;U.D.I. - CENTRO  PER NON SUBIRE VIOLENZA - ORG;06/07/2016;USCITE CORRENTI - ACQUISTO DI BENI E DI SERVIZI
2016;13901;1586;IST.FIGLIE.S.MARIA LEUCA - NIDO S. ELISABETTA E SC.INFANZIA;06/07/2016;USCITE CORRENTI - ACQUISTO DI BENI E DI SERVIZI
2016;13901;3071;IST.FIGLIE.S.MARIA LEUCA - NIDO S. ELISABETTA E SC.INFANZIA;06/07/2016;USCITE CORRENTI - ACQUISTO DI BENI E DI SERVIZI
2016;13902;5115;FONDAZIONE AUXILIUM ONLUS;06/07/2016;USCITE CORRENTI - ACQUISTO DI BENI E DI SERVIZI
2016;13903;300;ASS. AEGUA FRESCA;07/07/2016;USCITE CORRENTI - TRASFERIMENTI CORRENTI
2016;13904;300;ASS.NUOVO CIEP;07/07/2016;USCITE CORRENTI - TRASFERIMENTI CORRENTI
2016;13905;300;ASS. AMISTA';07/07/2016;USCITE CORRENTI - TRASFERIMENTI CORRENTI
2016;13906;600;ASS. TEATRO DELL'ORTICA ONLUS;07/07/2016;USCITE CORRENTI - TRASFERIMENTI CORRENTI
2016;13907;600;ASS. DIDATTICA MUSEALE;07/07/2016;USCITE CORRENTI - TRASFERIMENTI CORRENTI
2016;13908;300;G.A.U. GIOVANI AMICI UNITI - ORG.VOLONT.;07/07/2016;USCITE CORRENTI - TRASFERIMENTI CORRENTI
2016;13909;200;G.A.U. GIOVANI AMICI UNITI - ORG.VOLONT.;07/07/2016;USCITE CORRENTI - TRASFERIMENTI CORRENTI
2016;13910;200;PARROCCHIA S.SIRO DI STRUPPA;07/07/2016;USCITE CORRENTI - TRASFERIMENTI CORRENTI
2016;13912;200;PARROCCHIA SANTI COSMA E DAMIANO STRUPPA;07/07/2016;USCITE CORRENTI - TRASFERIMENTI CORRENTI
2016;13913;200;GRUPPO SPORTIVO RICREATIVO AGGIO;07/07/2016;USCITE CORRENTI - TRASFERIMENTI CORRENTI
2016;13914;300;PARROCCHIA S.ROCCO DI MOLASSANA;07/07/2016;USCITE CORRENTI - TRASFERIMENTI CORRENTI
2016;13915;200;MOLAXANA.COM;07/07/2016;USCITE CORRENTI - TRASFERIMENTI CORRENTI
2016;13916;200;A.N.P.I. COMITATO PROVINCIALE;07/07/2016;USCITE CORRENTI - TRASFERIMENTI CORRENTI
2016;13917;150;CIRCOLO RICREATIVO CULTURALE VIA SERTOLI;07/07/2016;USCITE CORRENTI - TRASFERIMENTI CORRENTI
2016;13917;250;CIRCOLO RICREATIVO CULTURALE VIA SERTOLI;07/07/2016;USCITE CORRENTI - TRASFERIMENTI CORRENTI
2016;13918;250;ISTITUTO COMPRENSIVO PRATO;07/07/2016;USCITE CORRENTI - TRASFERIMENTI CORRENTI
2016;13919;6937;CONGREG. SERVI CARITA' - CASA DELL'ANGELO- OP.DON GUANELLA;07/07/2016;USCITE CORRENTI - ACQUISTO DI BENI E DI SERVIZI
2016;13920;32000;DIVERSI CONTRIBUTO FONDO MOROSITA' INCOLPEVOLE;07/07/2016;USCITE CORRENTI - TRASFERIMENTI CORRENTI
2016;13921;195;ALL SPORT SAS DI DONNINI ROBERTO & C.;07/07/2016;USCITE CORRENTI - ACQUISTO DI BENI E DI SERVIZI
2016;13922;7818,37;SOCIETA' GESTIONE MERCATO SCPA;07/07/2016;USCITE CORRENTI - ACQUISTO DI BENI E DI SERVIZI
2016;13923;3130,01;IL LABORATORIO SOC.COOP SOCIALE ONLUS;07/07/2016;USCITE CORRENTI - ACQUISTO DI BENI E DI SERVIZI
2016;13924;6602;FONDAZIONE  ENTE MORALE  SORRISO FRANCESCANO;07/07/2016;USCITE CORRENTI - ACQUISTO DI BENI E DI SERVIZI
2016;13925;27075;FONDAZIONE L'ANCORA ONLUS;07/07/2016;USCITE CORRENTI - ACQUISTO DI BENI E DI SERVIZI
2016;13925;13522,78;FONDAZIONE L'ANCORA ONLUS;07/07/2016;USCITE CORRENTI - ACQUISTO DI BENI E DI SERVIZI
2016;13925;1766,66;FONDAZIONE L'ANCORA ONLUS;07/07/2016;USCITE CORRENTI - ACQUISTO DI BENI E DI SERVIZI
2016;13926;242,11;GENOVA CAR SHARING SRL;07/07/2016;USCITE CORRENTI - ACQUISTO DI BENI E DI SERVIZI
2016;13927;88,28;GENOVA CAR SHARING SRL;07/07/2016;USCITE CORRENTI - ACQUISTO DI BENI E DI SERVIZI
2016;13928;219,28;FALCIM DI CIMMINO GIUSEPPE E PROIETTI FABIOLA - SNC;07/07/2016;USCITE CORRENTI - ACQUISTO DI BENI E DI SERVIZI
2016;13928;378,52;FALCIM DI CIMMINO GIUSEPPE E PROIETTI FABIOLA - SNC;07/07/2016;USCITE CORRENTI - ACQUISTO DI BENI E DI SERVIZI
2016;13929;4047,35;CONSORZIO MERCATO ISONZO;07/07/2016;USCITE CORRENTI - ACQUISTO DI BENI E DI SERVIZI
2016;13930;10140,74;DIVERSI SUSSIDI A MINORI;07/07/2016;USCITE CORRENTI - TRASFERIMENTI CORRENTI
2016;13933;4264;DIVERSI SUSSIDI A CITTADINI BISOGNOSI;07/07/2016;USCITE CORRENTI - TRASFERIMENTI CORRENTI
2016;13934;2270,68;FONDO DI PREV.MARIO NEGRI PER I DIRIG.DI AZ.COM.SPED E TRAS.;07/07/2016;USCITE CORRENTI - ACQUISTO DI BENI E DI SERVIZI
2016;13935;1938;DIVERSI CONTRIBUTI PER AFFIDI ANZIANI;07/07/2016;USCITE CORRENTI - TRASFERIMENTI CORRENTI
2016;13936;6978,4;STUDIO CAPECCHI MAESTRINI GILETTA DOTTORI COMMERCIALISTI;07/07/2016;USCITE CORRENTI - ACQUISTO DI BENI E DI SERVIZI
2016;13937;1000;ASS.GENOVA GENITORI;07/07/2016;USCITE CORRENTI - ACQUISTO DI BENI E DI SERVIZI
2016;13937;1000;ASS.GENOVA GENITORI;07/07/2016;USCITE CORRENTI - ACQUISTO DI BENI E DI SERVIZI
2016;13938;4769,62;ARCIDIOCESI DI GENOVA;07/07/2016;USCITE CORRENTI - ACQUISTO DI BENI E DI SERVIZI
2016;13939;168,5;AUSER LIGURIA E GENOVA - ORG. VOLONT.;07/07/2016;USCITE CORRENTI - ACQUISTO DI BENI E DI SERVIZI
2016;13940;167,66;AUSER LIGURIA E GENOVA - ORG. VOLONT.;07/07/2016;USCITE CORRENTI - ACQUISTO DI BENI E DI SERVIZI
2016;13941;897,07;AUTORITA' PORTUALE DI GENOVA;07/07/2016;USCITE CORRENTI - ACQUISTO DI BENI E DI SERVIZI
2016;13942;4734;DIVERSI SUSSIDI A CITTADINI BISOGNOSI;07/07/2016;USCITE CORRENTI - TRASFERIMENTI CORRENTI
2016;13943;17405,14;COND.TORRE NORD MATITONE CONDOMINIO A;07/07/2016;USCITE CORRENTI - ACQUISTO DI BENI E DI SERVIZI
2016;13944;5490,06;COND.TORRE NORD MATITONE CONDOMINIO A;07/07/2016;USCITE CORRENTI - ACQUISTO DI BENI E DI SERVIZI
2016;13945;3500;COND.TORRE NORD MATITONE CONDOMINIO A;07/07/2016;USCITE CORRENTI - ACQUISTO DI BENI E DI SERVIZI
2016;13946;1000;COND.TORRE NORD MATITONE CONDOMINIO A;07/07/2016;USCITE CORRENTI - ACQUISTO DI BENI E DI SERVIZI
2016;13947;61226,94;COND.TORRE NORD MATITONE CONDOMINIO A;07/07/2016;USCITE CORRENTI - ACQUISTO DI BENI E DI SERVIZI
2016;13948;109842,04;COND.TORRE NORD MATITONE CONDOMINIO A;07/07/2016;USCITE CORRENTI - ACQUISTO DI BENI E DI SERVIZI
2016;13949;2299,78;COND.TORRE NORD MATITONE CONDOMINIO A;07/07/2016;USCITE CORRENTI - ACQUISTO DI BENI E DI SERVIZI
2016;13950;4450;COND.TORRE NORD MATITONE CONDOMINIO A;07/07/2016;USCITE CORRENTI - ACQUISTO DI BENI E DI SERVIZI
2016;13951;2956,87;COND.TORRE NORD MATITONE CONDOMINIO A;07/07/2016;USCITE CORRENTI - ACQUISTO DI BENI E DI SERVIZI
2016;13952;15769,95;COND.TORRE NORD MATITONE CONDOMINIO A;07/07/2016;USCITE CORRENTI - ACQUISTO DI BENI E DI SERVIZI
2016;13953;102409,55;COND.TORRE NORD MATITONE CONDOMINIO A;07/07/2016;USCITE CORRENTI - ACQUISTO DI BENI E DI SERVIZI
2016;13954;2602,67;C.A.P.E. GENOVA - CONSORZIO PER L'AMMIN.DEL PATRIMONIO IMMOB;07/07/2016;USCITE CORRENTI - ACQUISTO DI BENI E DI SERVIZI
2016;13955;23610,38;FONDAZIONE PADRE ASSAROTTI - IST. SORDOMUTI - ONLUS;07/07/2016;USCITE CORRENTI - ACQUISTO DI BENI E DI SERVIZI
2016;13956;8552;CONGREG. SERVI CARITA' - CASA DELL'ANGELO- OP.DON GUANELLA;07/07/2016;USCITE CORRENTI - ACQUISTO DI BENI E DI SERVIZI
2016;13957;6704,22;DIVERSI CONTRIBUTI EX DGC 722/97 - 1443/97;07/07/2016;USCITE CORRENTI - TRASFERIMENTI CORRENTI
2016;13958;1000;ALL SPORT SAS DI DONNINI ROBERTO & C.;07/07/2016;USCITE CORRENTI - ACQUISTO DI BENI E DI SERVIZI
2016;13959;1652;FONDAZIONE  ENTE MORALE  SORRISO FRANCESCANO;07/07/2016;USCITE CORRENTI - ACQUISTO DI BENI E DI SERVIZI
2016;13960;1000;SOLIDARIETA' E LAVORO SOC.COOP SOC.A R.L ONLUS;07/07/2016;USCITE CORRENTI - ACQUISTO DI BENI E DI SERVIZI
2016;13961;105,33;PAREDES ITALIA SPA;07/07/2016;USCITE CORRENTI - ACQUISTO DI BENI E DI SERVIZI
2016;13961;98,33;PAREDES ITALIA SPA;07/07/2016;USCITE CORRENTI - ACQUISTO DI BENI E DI SERVIZI
2016;13961;94,89;PAREDES ITALIA SPA;07/07/2016;USCITE CORRENTI - ACQUISTO DI BENI E DI SERVIZI
2016;13961;98,03;PAREDES ITALIA SPA;07/07/2016;USCITE CORRENTI - ACQUISTO DI BENI E DI SERVIZI
2016;13962;195,6;COMOLI FERRARI E C. S.P.A.;07/07/2016;USCITE CORRENTI - ACQUISTO DI BENI E DI SERVIZI
2016;13963;3050;FINMECCANICA SPA;07/07/2016;USCITE IN CONTO CAPITALE - INVESTIMENTI FISSI LORDI E ACQUISTO DI TERRENI
2016;13964;1000;SOLIDARIETA' E LAVORO SOC.COOP SOC.A R.L ONLUS;07/07/2016;USCITE IN CONTO CAPITALE - INVESTIMENTI FISSI LORDI E ACQUISTO DI TERRENI
2016;13965;44468,55;IMPRESA COSTRUZIONI ROLLA GEOM. PIETRO SRL;07/07/2016;USCITE IN CONTO CAPITALE - INVESTIMENTI FISSI LORDI E ACQUISTO DI TERRENI
2016;13966;63502,01;EDIL DUE SRL;07/07/2016;USCITE IN CONTO CAPITALE - INVESTIMENTI FISSI LORDI E ACQUISTO DI TERRENI
2016;13967;6045,12;FONDAZIONE  ENTE MORALE  SORRISO FRANCESCANO;07/07/2016;USCITE CORRENTI - ACQUISTO DI BENI E DI SERVIZI
2016;13968;6047,14;FONDAZIONE  ENTE MORALE  SORRISO FRANCESCANO;07/07/2016;USCITE CORRENTI - ACQUISTO DI BENI E DI SERVIZI
2016;13969;4503,43;DIVERSI SUSSIDI A MINORI;07/07/2016;USCITE CORRENTI - TRASFERIMENTI CORRENTI
2016;13970;6200;COOP.SOC. IL SENTIERO DEL MOVIMENTO RAGAZZI SCRL ONLUS;07/07/2016;USCITE CORRENTI - ACQUISTO DI BENI E DI SERVIZI
2016;13970;5630;COOP.SOC. IL SENTIERO DEL MOVIMENTO RAGAZZI SCRL ONLUS;07/07/2016;USCITE CORRENTI - ACQUISTO DI BENI E DI SERVIZI
2016;13971;6325,02;CONSORZIO OBIETTIVO SOCIALE SOC.COOP.SOC.ONLUS;07/07/2016;USCITE CORRENTI - ACQUISTO DI BENI E DI SERVIZI
2016;13972;5200;TITONE, FEDERICA;07/07/2016;USCITE CORRENTI - ACQUISTO DI BENI E DI SERVIZI
2016;13973;605;COOP. ZENART SOC. COOP.;07/07/2016;USCITE CORRENTI - ACQUISTO DI BENI E DI SERVIZI
2016;13974;8307,2;OPERA SS.VERGINE DI  POMPEI -  IST.FASSICOMO;07/07/2016;USCITE CORRENTI - ACQUISTO DI BENI E DI SERVIZI
2016;13975;14418;PROVINCIA REL.S.BENEDETTO-PICC.COTT.DON ORIONE;07/07/2016;USCITE CORRENTI - ACQUISTO DI BENI E DI SERVIZI
2016;13976;6820;IST.FIGLIE DIVINO ZELO - ORF. ANTONIANO - CASA ACCOGLIENZA;07/07/2016;USCITE CORRENTI - ACQUISTO DI BENI E DI SERVIZI
2016;13977;101013,72;C.E.S.I. S.R.L.;07/07/2016;USCITE IN CONTO CAPITALE - INVESTIMENTI FISSI LORDI E ACQUISTO DI TERRENI
2016;13978;1951,28;I.N.A.I.L.;07/07/2016;USCITE CORRENTI - TRASFERIMENTI CORRENTI
2016;13979;4811,18;CNS CONSORZIO NAZIONALE SERVIZI  -  SOC. COOP. A R.L.;07/07/2016;USCITE CORRENTI - ACQUISTO DI BENI E DI SERVIZI
2016;13980;1536;AZIENDA SANITARIA 3 GENOVESE;07/07/2016;USCITE CORRENTI - ACQUISTO DI BENI E DI SERVIZI
2016;13981;6256,16;B.C.S. - BIOMEDICAL COMPUTERING SYSTEMS S.R.L.;07/07/2016;USCITE CORRENTI - ACQUISTO DI BENI E DI SERVIZI
2016;13982;1707;FONDAZIONE  ENTE MORALE  SORRISO FRANCESCANO;07/07/2016;USCITE CORRENTI - ACQUISTO DI BENI E DI SERVIZI
2016;13983;31181,12;CNS CONSORZIO NAZIONALE SERVIZI  -  SOC. COOP. A R.L.;07/07/2016;USCITE CORRENTI - ACQUISTO DI BENI E DI SERVIZI
2016;13984;182,59;PULITORI ED AFFINI SPA;07/07/2016;USCITE CORRENTI - ACQUISTO DI BENI E DI SERVIZI
2016;13985;2854,74;CASSA DEPOSITI E PRESTITI SPA - AMM.MUTUI-ROMA;07/07/2016;USCITE CORRENTI - INTERESSI PASSIVI
2016;13985;526419,68;CASSA DEPOSITI E PRESTITI SPA - AMM.MUTUI-ROMA;07/07/2016;USCITE CORRENTI - INTERESSI PASSIVI
2016;13986;174183,58;CASSA DEPOSITI E PRESTITI SPA - AMM.MUTUI-ROMA;07/07/2016;USCITE CORRENTI - INTERESSI PASSIVI
2016;13986;533760,19;CASSA DEPOSITI E PRESTITI SPA - AMM.MUTUI-ROMA;07/07/2016;USCITE CORRENTI - INTERESSI PASSIVI
2016;13986;2535;CASSA DEPOSITI E PRESTITI SPA - AMM.MUTUI-ROMA;07/07/2016;USCITE CORRENTI - INTERESSI PASSIVI
2016;13987;7314,58;CASSA DEPOSITI E PRESTITI SPA - AMM.MUTUI-ROMA;07/07/2016;USCITE CORRENTI - INTERESSI PASSIVI
2016;13988;22,33;CASSA DEPOSITI E PRESTITI SPA - AMM.MUTUI-ROMA;07/07/2016;USCITE CORRENTI - INTERESSI PASSIVI
2016;13988;23760,85;CASSA DEPOSITI E PRESTITI SPA - AMM.MUTUI-ROMA;07/07/2016;USCITE CORRENTI - INTERESSI PASSIVI
2016;13989;106,86;CASSA DEPOSITI E PRESTITI SPA - AMM.MUTUI-ROMA;07/07/2016;USCITE CORRENTI - INTERESSI PASSIVI
2016;13989;61521,14;CASSA DEPOSITI E PRESTITI SPA - AMM.MUTUI-ROMA;07/07/2016;USCITE CORRENTI - INTERESSI PASSIVI
2016;13989;33,54;CASSA DEPOSITI E PRESTITI SPA - AMM.MUTUI-ROMA;07/07/2016;USCITE CORRENTI - INTERESSI PASSIVI
2016;13989;85319,01;CASSA DEPOSITI E PRESTITI SPA - AMM.MUTUI-ROMA;07/07/2016;USCITE CORRENTI - INTERESSI PASSIVI
2016;13990;7,56;CASSA DEPOSITI E PRESTITI SPA - AMM.MUTUI-ROMA;07/07/2016;USCITE CORRENTI - INTERESSI PASSIVI
2016;13990;39182,82;CASSA DEPOSITI E PRESTITI SPA - AMM.MUTUI-ROMA;07/07/2016;USCITE CORRENTI - INTERESSI PASSIVI
2016;13991;31374,26;CASSA DEPOSITI E PRESTITI SPA - AMM.MUTUI-ROMA;07/07/2016;USCITE CORRENTI - INTERESSI PASSIVI
2016;13991;212321,75;CASSA DEPOSITI E PRESTITI SPA - AMM.MUTUI-ROMA;07/07/2016;USCITE CORRENTI - INTERESSI PASSIVI
2016;13991;25263,5;CASSA DEPOSITI E PRESTITI SPA - AMM.MUTUI-ROMA;07/07/2016;USCITE CORRENTI - INTERESSI PASSIVI
2016;13992;10844,45;CASSA DEPOSITI E PRESTITI SPA - AMM.MUTUI-ROMA;07/07/2016;USCITE CORRENTI - INTERESSI PASSIVI
2016;13992;215170,26;CASSA DEPOSITI E PRESTITI SPA - AMM.MUTUI-ROMA;07/07/2016;USCITE CORRENTI - INTERESSI PASSIVI
2016;13993;117201,17;CASSA DEPOSITI E PRESTITI SPA - AMM.MUTUI-ROMA;07/07/2016;USCITE CORRENTI - INTERESSI PASSIVI
2016;13994;889045,73;CASSA DEPOSITI E PRESTITI SPA - AMM.MUTUI-ROMA;07/07/2016;USCITE CORRENTI - INTERESSI PASSIVI
2016;13994;137,38;CASSA DEPOSITI E PRESTITI SPA - AMM.MUTUI-ROMA;07/07/2016;USCITE CORRENTI - INTERESSI PASSIVI
2016;13995;103316,2;CASSA DEPOSITI E PRESTITI SPA - AMM.MUTUI-ROMA;07/07/2016;USCITE CORRENTI - INTERESSI PASSIVI
2016;13996;44,66;CASSA DEPOSITI E PRESTITI SPA - AMM.MUTUI-ROMA;07/07/2016;USCITE CORRENTI - INTERESSI PASSIVI
2016;13996;973,64;CASSA DEPOSITI E PRESTITI SPA - AMM.MUTUI-ROMA;07/07/2016;USCITE CORRENTI - INTERESSI PASSIVI
2016;13997;139705,39;CASSA DEPOSITI E PRESTITI SPA - AMM.MUTUI-ROMA;07/07/2016;USCITE CORRENTI - INTERESSI PASSIVI
2016;13997;217538,92;CASSA DEPOSITI E PRESTITI SPA - AMM.MUTUI-ROMA;07/07/2016;USCITE CORRENTI - INTERESSI PASSIVI
2016;13998;4036,27;CASSA DEPOSITI E PRESTITI SPA - AMM.MUTUI-ROMA;07/07/2016;USCITE CORRENTI - INTERESSI PASSIVI
2016;13999;64,19;CASSA DEPOSITI E PRESTITI SPA - AMM.MUTUI-ROMA;07/07/2016;USCITE CORRENTI - INTERESSI PASSIVI
2016;13999;1616138,71;CASSA DEPOSITI E PRESTITI SPA - AMM.MUTUI-ROMA;07/07/2016;USCITE CORRENTI - INTERESSI PASSIVI
2016;13999;42343,14;CASSA DEPOSITI E PRESTITI SPA - AMM.MUTUI-ROMA;07/07/2016;USCITE CORRENTI - INTERESSI PASSIVI
2016;13999;247717,14;CASSA DEPOSITI E PRESTITI SPA - AMM.MUTUI-ROMA;07/07/2016;USCITE CORRENTI - INTERESSI PASSIVI
2016;14000;2686537,04;CASSA DEPOSITI E PRESTITI SPA - AMM.MUTUI-ROMA;07/07/2016;USCITE CORRENTI - INTERESSI PASSIVI
2016;14001;117343,57;CASSA DEPOSITI E PRESTITI SPA - AMM.MUTUI-ROMA;07/07/2016;USCITE CORRENTI - INTERESSI PASSIVI
2016;14003;5890;IST.FIGLIE DIVINO ZELO - ORF. ANTONIANO - CASA ACCOGLIENZA;07/07/2016;USCITE CORRENTI - ACQUISTO DI BENI E DI SERVIZI
2016;14004;4880;MIXURA SRL;07/07/2016;USCITE CORRENTI - ACQUISTO DI BENI E DI SERVIZI
2016;14005;482,68;IST.CREDITO SPORTIVO;07/07/2016;USCITE CORRENTI - INTERESSI PASSIVI
2016;14008;460,09;ASS.IS FOR COOP ISTITUTO LIG.DI FORMAZIONE COOPERATIVA;07/07/2016;USCITE CORRENTI - TRASFERIMENTI CORRENTI
2016;14009;12002,88;FINMECCANICA SPA;07/07/2016;USCITE CORRENTI - ACQUISTO DI BENI E DI SERVIZI
2016;14009;35060,15;FINMECCANICA SPA;07/07/2016;USCITE CORRENTI - ACQUISTO DI BENI E DI SERVIZI
2016;14009;109837,73;FINMECCANICA SPA;07/07/2016;USCITE CORRENTI - ACQUISTO DI BENI E DI SERVIZI
2016;14010;787,5;EDUCARE PER AMORE COOP. SOCIALE ONLUS;07/07/2016;USCITE CORRENTI - ACQUISTO DI BENI E DI SERVIZI
2016;14011;1113,21;AUTORITA' PORTUALE DI GENOVA;07/07/2016;USCITE CORRENTI - ACQUISTO DI BENI E DI SERVIZI
2016;14011;12008,56;AUTORITA' PORTUALE DI GENOVA;07/07/2016;USCITE CORRENTI - ACQUISTO DI BENI E DI SERVIZI
2016;14013;31457,46;CNS CONSORZIO NAZIONALE SERVIZI  -  SOC. COOP. A R.L.;08/07/2016;USCITE CORRENTI - ACQUISTO DI BENI E DI SERVIZI
2016;14014;6005,94;CNS CONSORZIO NAZIONALE SERVIZI  -  SOC. COOP. A R.L.;08/07/2016;USCITE CORRENTI - ACQUISTO DI BENI E DI SERVIZI
2016;14015;8777;COMPASS GROUP ITALIA SPA;08/07/2016;USCITE CORRENTI - ACQUISTO DI BENI E DI SERVIZI
2016;14015;2986,53;COMPASS GROUP ITALIA SPA;08/07/2016;USCITE CORRENTI - ACQUISTO DI BENI E DI SERVIZI
2016;14015;9316,05;COMPASS GROUP ITALIA SPA;08/07/2016;USCITE CORRENTI - ACQUISTO DI BENI E DI SERVIZI
2016;14015;16132,46;COMPASS GROUP ITALIA SPA;08/07/2016;USCITE CORRENTI - ACQUISTO DI BENI E DI SERVIZI
2016;14015;7223,49;COMPASS GROUP ITALIA SPA;08/07/2016;USCITE CORRENTI - ACQUISTO DI BENI E DI SERVIZI
2016;14015;23865,66;COMPASS GROUP ITALIA SPA;08/07/2016;USCITE CORRENTI - ACQUISTO DI BENI E DI SERVIZI
2016;14015;8072,53;COMPASS GROUP ITALIA SPA;08/07/2016;USCITE CORRENTI - ACQUISTO DI BENI E DI SERVIZI
2016;14015;5182,26;COMPASS GROUP ITALIA SPA;08/07/2016;USCITE CORRENTI - ACQUISTO DI BENI E DI SERVIZI
2016;14015;18085,11;COMPASS GROUP ITALIA SPA;08/07/2016;USCITE CORRENTI - ACQUISTO DI BENI E DI SERVIZI
2016;14015;19004,54;COMPASS GROUP ITALIA SPA;08/07/2016;USCITE CORRENTI - ACQUISTO DI BENI E DI SERVIZI
2016;14015;7430,25;COMPASS GROUP ITALIA SPA;08/07/2016;USCITE CORRENTI - ACQUISTO DI BENI E DI SERVIZI
2016;14016;93;DIVERSI  CONTR, ANZIANI   HAND.  SOSTEGNO  RICOVERO;08/07/2016;USCITE CORRENTI - TRASFERIMENTI CORRENTI
2016;14017;93;DIVERSI  CONTR, ANZIANI   HAND.  SOSTEGNO  RICOVERO;08/07/2016;USCITE CORRENTI - TRASFERIMENTI CORRENTI
2016;14018;312;IST.SUORE POVERE BONAERENSI S. GIUSEPPE;08/07/2016;USCITE CORRENTI - ACQUISTO DI BENI E DI SERVIZI
2016;14019;4747,14;COMPASS GROUP ITALIA SPA;08/07/2016;USCITE CORRENTI - ACQUISTO DI BENI E DI SERVIZI
2016;14019;8279,28;COMPASS GROUP ITALIA SPA;08/07/2016;USCITE CORRENTI - ACQUISTO DI BENI E DI SERVIZI
2016;14019;3563,7;COMPASS GROUP ITALIA SPA;08/07/2016;USCITE CORRENTI - ACQUISTO DI BENI E DI SERVIZI
2016;14020;5035,73;COMPASS GROUP ITALIA SPA;08/07/2016;USCITE CORRENTI - ACQUISTO DI BENI E DI SERVIZI
2016;14021;6651,22;COMPASS GROUP ITALIA SPA;08/07/2016;USCITE CORRENTI - ACQUISTO DI BENI E DI SERVIZI
2016;14021;2756,12;COMPASS GROUP ITALIA SPA;08/07/2016;USCITE CORRENTI - ACQUISTO DI BENI E DI SERVIZI
2016;14021;6242,58;COMPASS GROUP ITALIA SPA;08/07/2016;USCITE CORRENTI - ACQUISTO DI BENI E DI SERVIZI
2016;14021;14193,61;COMPASS GROUP ITALIA SPA;08/07/2016;USCITE CORRENTI - ACQUISTO DI BENI E DI SERVIZI
2016;14021;11389,66;COMPASS GROUP ITALIA SPA;08/07/2016;USCITE CORRENTI - ACQUISTO DI BENI E DI SERVIZI
2016;14021;17788,74;COMPASS GROUP ITALIA SPA;08/07/2016;USCITE CORRENTI - ACQUISTO DI BENI E DI SERVIZI
2016;14021;15962,92;COMPASS GROUP ITALIA SPA;08/07/2016;USCITE CORRENTI - ACQUISTO DI BENI E DI SERVIZI
2016;14021;6155,64;COMPASS GROUP ITALIA SPA;08/07/2016;USCITE CORRENTI - ACQUISTO DI BENI E DI SERVIZI
2016;14021;5673,1;COMPASS GROUP ITALIA SPA;08/07/2016;USCITE CORRENTI - ACQUISTO DI BENI E DI SERVIZI
2016;14021;5986,09;COMPASS GROUP ITALIA SPA;08/07/2016;USCITE CORRENTI - ACQUISTO DI BENI E DI SERVIZI
2016;14021;3864,66;COMPASS GROUP ITALIA SPA;08/07/2016;USCITE CORRENTI - ACQUISTO DI BENI E DI SERVIZI
2016;14021;7120,71;COMPASS GROUP ITALIA SPA;08/07/2016;USCITE CORRENTI - ACQUISTO DI BENI E DI SERVIZI
2016;14021;11220,12;COMPASS GROUP ITALIA SPA;08/07/2016;USCITE CORRENTI - ACQUISTO DI BENI E DI SERVIZI
2016;14021;10837,57;COMPASS GROUP ITALIA SPA;08/07/2016;USCITE CORRENTI - ACQUISTO DI BENI E DI SERVIZI
2016;14021;12724,25;COMPASS GROUP ITALIA SPA;08/07/2016;USCITE CORRENTI - ACQUISTO DI BENI E DI SERVIZI
2016;14021;25426,77;COMPASS GROUP ITALIA SPA;08/07/2016;USCITE CORRENTI - ACQUISTO DI BENI E DI SERVIZI
2016;14021;1538,91;COMPASS GROUP ITALIA SPA;08/07/2016;USCITE CORRENTI - ACQUISTO DI BENI E DI SERVIZI
2016;14021;5864,13;COMPASS GROUP ITALIA SPA;08/07/2016;USCITE CORRENTI - ACQUISTO DI BENI E DI SERVIZI
2016;14021;4658,75;COMPASS GROUP ITALIA SPA;08/07/2016;USCITE CORRENTI - ACQUISTO DI BENI E DI SERVIZI
2016;14021;3273,24;COMPASS GROUP ITALIA SPA;08/07/2016;USCITE CORRENTI - ACQUISTO DI BENI E DI SERVIZI
2016;14021;4751,14;COMPASS GROUP ITALIA SPA;08/07/2016;USCITE CORRENTI - ACQUISTO DI BENI E DI SERVIZI
2016;14021;3273;COMPASS GROUP ITALIA SPA;08/07/2016;USCITE CORRENTI - ACQUISTO DI BENI E DI SERVIZI
2016;14021;4161,1;COMPASS GROUP ITALIA SPA;08/07/2016;USCITE CORRENTI - ACQUISTO DI BENI E DI SERVIZI
2016;14021;5762,95;COMPASS GROUP ITALIA SPA;08/07/2016;USCITE CORRENTI - ACQUISTO DI BENI E DI SERVIZI
2016;14022;7082,71;COMPASS GROUP ITALIA SPA;08/07/2016;USCITE CORRENTI - ACQUISTO DI BENI E DI SERVIZI
2016;14023;5934,85;COMPASS GROUP ITALIA SPA;08/07/2016;USCITE CORRENTI - ACQUISTO DI BENI E DI SERVIZI
2016;14023;11779,38;COMPASS GROUP ITALIA SPA;08/07/2016;USCITE CORRENTI - ACQUISTO DI BENI E DI SERVIZI
2016;14023;14235,81;COMPASS GROUP ITALIA SPA;08/07/2016;USCITE CORRENTI - ACQUISTO DI BENI E DI SERVIZI
2016;14024;6439,02;COMPASS GROUP ITALIA SPA;08/07/2016;USCITE CORRENTI - ACQUISTO DI BENI E DI SERVIZI
2016;14024;5786,73;COMPASS GROUP ITALIA SPA;08/07/2016;USCITE CORRENTI - ACQUISTO DI BENI E DI SERVIZI
2016;14024;813,28;COMPASS GROUP ITALIA SPA;08/07/2016;USCITE CORRENTI - ACQUISTO DI BENI E DI SERVIZI
2016;14024;4055,87;COMPASS GROUP ITALIA SPA;08/07/2016;USCITE CORRENTI - ACQUISTO DI BENI E DI SERVIZI
2016;14025;18126,58;COMPASS GROUP ITALIA SPA;08/07/2016;USCITE CORRENTI - ACQUISTO DI BENI E DI SERVIZI
2016;14025;2746,02;COMPASS GROUP ITALIA SPA;08/07/2016;USCITE CORRENTI - ACQUISTO DI BENI E DI SERVIZI
2016;14025;14127,15;COMPASS GROUP ITALIA SPA;08/07/2016;USCITE CORRENTI - ACQUISTO DI BENI E DI SERVIZI
2016;14025;3186,14;COMPASS GROUP ITALIA SPA;08/07/2016;USCITE CORRENTI - ACQUISTO DI BENI E DI SERVIZI
2016;14025;12127,44;COMPASS GROUP ITALIA SPA;08/07/2016;USCITE CORRENTI - ACQUISTO DI BENI E DI SERVIZI
2016;14025;1942,3;COMPASS GROUP ITALIA SPA;08/07/2016;USCITE CORRENTI - ACQUISTO DI BENI E DI SERVIZI
2016;14025;1138,59;COMPASS GROUP ITALIA SPA;08/07/2016;USCITE CORRENTI - ACQUISTO DI BENI E DI SERVIZI
2016;14025;6386,64;COMPASS GROUP ITALIA SPA;08/07/2016;USCITE CORRENTI - ACQUISTO DI BENI E DI SERVIZI
2016;14025;2602,5;COMPASS GROUP ITALIA SPA;08/07/2016;USCITE CORRENTI - ACQUISTO DI BENI E DI SERVIZI
2016;14025;1774,86;COMPASS GROUP ITALIA SPA;08/07/2016;USCITE CORRENTI - ACQUISTO DI BENI E DI SERVIZI
2016;14025;1133,81;COMPASS GROUP ITALIA SPA;08/07/2016;USCITE CORRENTI - ACQUISTO DI BENI E DI SERVIZI
2016;14025;5869,97;COMPASS GROUP ITALIA SPA;08/07/2016;USCITE CORRENTI - ACQUISTO DI BENI E DI SERVIZI
2016;14025;1277,33;COMPASS GROUP ITALIA SPA;08/07/2016;USCITE CORRENTI - ACQUISTO DI BENI E DI SERVIZI
2016;14025;3674,11;COMPASS GROUP ITALIA SPA;08/07/2016;USCITE CORRENTI - ACQUISTO DI BENI E DI SERVIZI
2016;14025;1554,8;COMPASS GROUP ITALIA SPA;08/07/2016;USCITE CORRENTI - ACQUISTO DI BENI E DI SERVIZI
2016;14025;2564,22;COMPASS GROUP ITALIA SPA;08/07/2016;USCITE CORRENTI - ACQUISTO DI BENI E DI SERVIZI
2016;14025;2358,51;COMPASS GROUP ITALIA SPA;08/07/2016;USCITE CORRENTI - ACQUISTO DI BENI E DI SERVIZI
2016;14025;6405,78;COMPASS GROUP ITALIA SPA;08/07/2016;USCITE CORRENTI - ACQUISTO DI BENI E DI SERVIZI
2016;14025;4530,45;COMPASS GROUP ITALIA SPA;08/07/2016;USCITE CORRENTI - ACQUISTO DI BENI E DI SERVIZI
2016;14025;20485,09;COMPASS GROUP ITALIA SPA;08/07/2016;USCITE CORRENTI - ACQUISTO DI BENI E DI SERVIZI
2016;14025;7635,26;COMPASS GROUP ITALIA SPA;08/07/2016;USCITE CORRENTI - ACQUISTO DI BENI E DI SERVIZI
2016;14025;6042,19;COMPASS GROUP ITALIA SPA;08/07/2016;USCITE CORRENTI - ACQUISTO DI BENI E DI SERVIZI
2016;14025;9625,41;COMPASS GROUP ITALIA SPA;08/07/2016;USCITE CORRENTI - ACQUISTO DI BENI E DI SERVIZI
2016;14025;1300,88;COMPASS GROUP ITALIA SPA;08/07/2016;USCITE CORRENTI - ACQUISTO DI BENI E DI SERVIZI
2016;14026;7984,24;COMPASS GROUP ITALIA SPA;08/07/2016;USCITE CORRENTI - ACQUISTO DI BENI E DI SERVIZI
2016;14026;2064,97;COMPASS GROUP ITALIA SPA;08/07/2016;USCITE CORRENTI - ACQUISTO DI BENI E DI SERVIZI
2016;14026;5677,46;COMPASS GROUP ITALIA SPA;08/07/2016;USCITE CORRENTI - ACQUISTO DI BENI E DI SERVIZI
2016;14026;12075,49;COMPASS GROUP ITALIA SPA;08/07/2016;USCITE CORRENTI - ACQUISTO DI BENI E DI SERVIZI
2016;14026;22530,92;COMPASS GROUP ITALIA SPA;08/07/2016;USCITE CORRENTI - ACQUISTO DI BENI E DI SERVIZI
2016;14027;75,52;FIDENTE SPA;08/07/2016;USCITE CORRENTI - ACQUISTO DI BENI E DI SERVIZI
2016;14027;75,52;FIDENTE SPA;08/07/2016;USCITE CORRENTI - ACQUISTO DI BENI E DI SERVIZI
2016;14028;4734,58;DIVERSI CONTRIBUTI EX DGC 722/97 - 1443/97;08/07/2016;USCITE CORRENTI - TRASFERIMENTI CORRENTI
2016;14029;2900;DIVERSI CONTRIBUTI PER AFFIDI ANZIANI;08/07/2016;USCITE CORRENTI - TRASFERIMENTI CORRENTI
2016;14030;4849,5;FONDERIE VITERBESI SRL;08/07/2016;USCITE IN CONTO CAPITALE - INVESTIMENTI FISSI LORDI E ACQUISTO DI TERRENI
2016;14031;70985,82;EDIL COLOR SERVICE SNC DI CHINDAMO PIERINO & MANDAGLIO;08/07/2016;USCITE IN CONTO CAPITALE - INVESTIMENTI FISSI LORDI E ACQUISTO DI TERRENI
2016;14032;230;DIVERSI SUSSIDI A MINORI;08/07/2016;USCITE CORRENTI - TRASFERIMENTI CORRENTI
2016;14034;16676,54;DIVERSI SUSSIDI A MINORI;08/07/2016;USCITE CORRENTI - TRASFERIMENTI CORRENTI
2016;14036;2744,5;EMMAUS GENOVA - SOC.COOP. SOCIALE;11/07/2016;USCITE CORRENTI - ACQUISTO DI BENI E DI SERVIZI
2016;14038;1400;DIVERSI CONTRIBUTI PER AFFIDI ANZIANI;08/07/2016;USCITE CORRENTI - TRASFERIMENTI CORRENTI
2016;14039;300;DIVERSI SUSSIDI A MINORI;08/07/2016;USCITE CORRENTI - TRASFERIMENTI CORRENTI
2016;14040;6875000;A.M.I.U.  GENOVA SPA;08/07/2016;USCITE CORRENTI - ACQUISTO DI BENI E DI SERVIZI
2016;14041;6600000;A.M.I.U.  GENOVA SPA;08/07/2016;USCITE CORRENTI - ACQUISTO DI BENI E DI SERVIZI
2016;14042;9602,89;CAMST COOP ALBERGO MENSA SPETT. E TURISMO SOC. COOP. A R.L.;08/07/2016;USCITE CORRENTI - ACQUISTO DI BENI E DI SERVIZI
2016;14043;5588,95;CAMST COOP ALBERGO MENSA SPETT. E TURISMO SOC. COOP. A R.L.;08/07/2016;USCITE CORRENTI - ACQUISTO DI BENI E DI SERVIZI
2016;14043;4501,2;CAMST COOP ALBERGO MENSA SPETT. E TURISMO SOC. COOP. A R.L.;08/07/2016;USCITE CORRENTI - ACQUISTO DI BENI E DI SERVIZI
2016;14044;6581,87;CAMST COOP ALBERGO MENSA SPETT. E TURISMO SOC. COOP. A R.L.;08/07/2016;USCITE CORRENTI - ACQUISTO DI BENI E DI SERVIZI
2016;14044;14227,57;CAMST COOP ALBERGO MENSA SPETT. E TURISMO SOC. COOP. A R.L.;08/07/2016;USCITE CORRENTI - ACQUISTO DI BENI E DI SERVIZI
2016;14044;8505,72;CAMST COOP ALBERGO MENSA SPETT. E TURISMO SOC. COOP. A R.L.;08/07/2016;USCITE CORRENTI - ACQUISTO DI BENI E DI SERVIZI
2016;14044;4464,14;CAMST COOP ALBERGO MENSA SPETT. E TURISMO SOC. COOP. A R.L.;08/07/2016;USCITE CORRENTI - ACQUISTO DI BENI E DI SERVIZI
2016;14044;7426,97;CAMST COOP ALBERGO MENSA SPETT. E TURISMO SOC. COOP. A R.L.;08/07/2016;USCITE CORRENTI - ACQUISTO DI BENI E DI SERVIZI
2016;14044;12900,26;CAMST COOP ALBERGO MENSA SPETT. E TURISMO SOC. COOP. A R.L.;08/07/2016;USCITE CORRENTI - ACQUISTO DI BENI E DI SERVIZI
2016;14044;4269,87;CAMST COOP ALBERGO MENSA SPETT. E TURISMO SOC. COOP. A R.L.;08/07/2016;USCITE CORRENTI - ACQUISTO DI BENI E DI SERVIZI
2016;14044;6788,5;CAMST COOP ALBERGO MENSA SPETT. E TURISMO SOC. COOP. A R.L.;08/07/2016;USCITE CORRENTI - ACQUISTO DI BENI E DI SERVIZI
2016;14044;19499,71;CAMST COOP ALBERGO MENSA SPETT. E TURISMO SOC. COOP. A R.L.;08/07/2016;USCITE CORRENTI - ACQUISTO DI BENI E DI SERVIZI
2016;14044;13847,55;CAMST COOP ALBERGO MENSA SPETT. E TURISMO SOC. COOP. A R.L.;08/07/2016;USCITE CORRENTI - ACQUISTO DI BENI E DI SERVIZI
2016;14044;427,97;CAMST COOP ALBERGO MENSA SPETT. E TURISMO SOC. COOP. A R.L.;08/07/2016;USCITE CORRENTI - ACQUISTO DI BENI E DI SERVIZI
2016;14044;7245,98;CAMST COOP ALBERGO MENSA SPETT. E TURISMO SOC. COOP. A R.L.;08/07/2016;USCITE CORRENTI - ACQUISTO DI BENI E DI SERVIZI
2016;14044;4274,78;CAMST COOP ALBERGO MENSA SPETT. E TURISMO SOC. COOP. A R.L.;08/07/2016;USCITE CORRENTI - ACQUISTO DI BENI E DI SERVIZI
2016;14044;6030,94;CAMST COOP ALBERGO MENSA SPETT. E TURISMO SOC. COOP. A R.L.;08/07/2016;USCITE CORRENTI - ACQUISTO DI BENI E DI SERVIZI
2016;14045;15,22;EMMAUS GENOVA - SOC.COOP. SOCIALE;08/07/2016;USCITE CORRENTI - ACQUISTO DI BENI E DI SERVIZI
2016;14045;184,13;EMMAUS GENOVA - SOC.COOP. SOCIALE;08/07/2016;USCITE CORRENTI - ACQUISTO DI BENI E DI SERVIZI
2016;14046;1093,57;EMMAUS GENOVA - SOC.COOP. SOCIALE;08/07/2016;USCITE CORRENTI - ACQUISTO DI BENI E DI SERVIZI
2016;14047;967,58;EMMAUS GENOVA - SOC.COOP. SOCIALE;08/07/2016;USCITE CORRENTI - ACQUISTO DI BENI E DI SERVIZI
2016;14048;7200;DIVERSI CONTRIBUTI ALLUVIONE;08/07/2016;USCITE CORRENTI - TRASFERIMENTI CORRENTI
2016;14049;1080;DIVERSI SUSSIDI A MINORI;08/07/2016;USCITE CORRENTI - TRASFERIMENTI CORRENTI
2016;14052;2947;CONGREG. SERVI CARITA' - CASA DELL'ANGELO- OP.DON GUANELLA;08/07/2016;USCITE CORRENTI - ACQUISTO DI BENI E DI SERVIZI
2016;14052;2852;CONGREG. SERVI CARITA' - CASA DELL'ANGELO- OP.DON GUANELLA;08/07/2016;USCITE CORRENTI - ACQUISTO DI BENI E DI SERVIZI
2016;14055;5190,8;DIVERSI CONTRIBUTI EX DGC 722/97 - 1443/97;08/07/2016;USCITE CORRENTI - TRASFERIMENTI CORRENTI
2016;14056;22136,02;CONGREG. SERVI CARITA' - CASA DELL'ANGELO- OP.DON GUANELLA;08/07/2016;USCITE CORRENTI - ACQUISTO DI BENI E DI SERVIZI
2016;14057;15759,62;DIVERSI SUSSIDI A MINORI;08/07/2016;USCITE CORRENTI - TRASFERIMENTI CORRENTI
2016;14058;4761,64;DIVERSI SUSSIDI A CITTADINI BISOGNOSI;08/07/2016;USCITE CORRENTI - TRASFERIMENTI CORRENTI
2016;14060;2717,6;CONGREG.SORELLE DEI POVERI DI S.CATERINA DA SIENA;08/07/2016;USCITE CORRENTI - ACQUISTO DI BENI E DI SERVIZI
2016;14062;236,7;SICURITALIA SPA;08/07/2016;USCITE CORRENTI - ACQUISTO DI BENI E DI SERVIZI
2016;14062;78,9;SICURITALIA SPA;08/07/2016;USCITE CORRENTI - ACQUISTO DI BENI E DI SERVIZI
2016;14062;78,9;SICURITALIA SPA;08/07/2016;USCITE CORRENTI - ACQUISTO DI BENI E DI SERVIZI
2016;14062;78,9;SICURITALIA SPA;08/07/2016;USCITE CORRENTI - ACQUISTO DI BENI E DI SERVIZI
2016;14062;78,9;SICURITALIA SPA;08/07/2016;USCITE CORRENTI - ACQUISTO DI BENI E DI SERVIZI
2016;14062;78,9;SICURITALIA SPA;08/07/2016;USCITE CORRENTI - ACQUISTO DI BENI E DI SERVIZI
2016;14062;78,9;SICURITALIA SPA;08/07/2016;USCITE CORRENTI - ACQUISTO DI BENI E DI SERVIZI
2016;14062;78,9;SICURITALIA SPA;08/07/2016;USCITE CORRENTI - ACQUISTO DI BENI E DI SERVIZI
2016;14062;78,9;SICURITALIA SPA;08/07/2016;USCITE CORRENTI - ACQUISTO DI BENI E DI SERVIZI
2016;14062;78,9;SICURITALIA SPA;08/07/2016;USCITE CORRENTI - ACQUISTO DI BENI E DI SERVIZI
2016;14062;78,9;SICURITALIA SPA;08/07/2016;USCITE CORRENTI - ACQUISTO DI BENI E DI SERVIZI
2016;14062;78,9;SICURITALIA SPA;08/07/2016;USCITE CORRENTI - ACQUISTO DI BENI E DI SERVIZI
2016;14062;78,9;SICURITALIA SPA;08/07/2016;USCITE CORRENTI - ACQUISTO DI BENI E DI SERVIZI
2016;14062;78,9;SICURITALIA SPA;08/07/2016;USCITE CORRENTI - ACQUISTO DI BENI E DI SERVIZI
2016;14062;78,9;SICURITALIA SPA;08/07/2016;USCITE CORRENTI - ACQUISTO DI BENI E DI SERVIZI
2016;14062;78,9;SICURITALIA SPA;08/07/2016;USCITE CORRENTI - ACQUISTO DI BENI E DI SERVIZI
2016;14062;111,68;SICURITALIA SPA;08/07/2016;USCITE CORRENTI - ACQUISTO DI BENI E DI SERVIZI
2016;14064;2852;CONGREG. SERVI CARITA' - CASA DELL'ANGELO- OP.DON GUANELLA;08/07/2016;USCITE CORRENTI - ACQUISTO DI BENI E DI SERVIZI
2016;14064;2947;CONGREG. SERVI CARITA' - CASA DELL'ANGELO- OP.DON GUANELLA;08/07/2016;USCITE CORRENTI - ACQUISTO DI BENI E DI SERVIZI
2016;14065;470,72;CONGREG. SERVI CARITA' - CASA DELL'ANGELO- OP.DON GUANELLA;08/07/2016;USCITE CORRENTI - ACQUISTO DI BENI E DI SERVIZI
2016;14066;2675,92;L' AURORA SOC.COOP.SOC. ONLUS;08/07/2016;USCITE CORRENTI - ACQUISTO DI BENI E DI SERVIZI
2016;14067;48519,88;LA COMUNITA' SOC.COOP.SOCIALE ONLUS;08/07/2016;USCITE CORRENTI - ACQUISTO DI BENI E DI SERVIZI
2016;14068;11199,2;CONGREG.SORELLE DEI POVERI DI S.CATERINA DA SIENA;08/07/2016;USCITE CORRENTI - ACQUISTO DI BENI E DI SERVIZI
2016;14072;866,72;SICURITALIA SPA;08/07/2016;USCITE CORRENTI - ACQUISTO DI BENI E DI SERVIZI
2016;14073;210,44;LANZA DEL VASTO SOC.COOP. SOCIALE ONLUS;08/07/2016;USCITE CORRENTI - ACQUISTO DI BENI E DI SERVIZI
2016;14074;6981,72;ASS.COMUNITA' PAPA GIOVANNI XXIII - ONLUS;08/07/2016;USCITE CORRENTI - ACQUISTO DI BENI E DI SERVIZI
2016;14075;382,37;SICURITALIA SPA;08/07/2016;USCITE CORRENTI - ACQUISTO DI BENI E DI SERVIZI
2016;14075;78,9;SICURITALIA SPA;08/07/2016;USCITE CORRENTI - ACQUISTO DI BENI E DI SERVIZI
2016;14075;597,24;SICURITALIA SPA;08/07/2016;USCITE CORRENTI - ACQUISTO DI BENI E DI SERVIZI
2016;14075;395,12;SICURITALIA SPA;08/07/2016;USCITE CORRENTI - ACQUISTO DI BENI E DI SERVIZI
2016;14075;395,12;SICURITALIA SPA;08/07/2016;USCITE CORRENTI - ACQUISTO DI BENI E DI SERVIZI
2016;14076;1,9;TELECOM ITALIA SPA;11/07/2016;USCITE CORRENTI - ACQUISTO DI BENI E DI SERVIZI
2016;14076;1,45;TELECOM ITALIA SPA;11/07/2016;USCITE CORRENTI - ACQUISTO DI BENI E DI SERVIZI
2016;14076;1,34;TELECOM ITALIA SPA;11/07/2016;USCITE CORRENTI - ACQUISTO DI BENI E DI SERVIZI
2016;14076;2,1;TELECOM ITALIA SPA;11/07/2016;USCITE CORRENTI - ACQUISTO DI BENI E DI SERVIZI
2016;14076;356,99;TELECOM ITALIA SPA;11/07/2016;USCITE CORRENTI - ACQUISTO DI BENI E DI SERVIZI
2016;14076;2,68;TELECOM ITALIA SPA;11/07/2016;USCITE CORRENTI - ACQUISTO DI BENI E DI SERVIZI
2016;14076;3,64;TELECOM ITALIA SPA;11/07/2016;USCITE CORRENTI - ACQUISTO DI BENI E DI SERVIZI
2016;14076;0,56;TELECOM ITALIA SPA;11/07/2016;USCITE CORRENTI - ACQUISTO DI BENI E DI SERVIZI
2016;14076;0,2;TELECOM ITALIA SPA;11/07/2016;USCITE CORRENTI - ACQUISTO DI BENI E DI SERVIZI
2016;14076;85,6;TELECOM ITALIA SPA;11/07/2016;USCITE CORRENTI - ACQUISTO DI BENI E DI SERVIZI
2016;14077;52,76;TELECOM ITALIA SPA;11/07/2016;USCITE CORRENTI - ACQUISTO DI BENI E DI SERVIZI
2016;14077;217,56;TELECOM ITALIA SPA;11/07/2016;USCITE CORRENTI - ACQUISTO DI BENI E DI SERVIZI
2016;14077;0,2;TELECOM ITALIA SPA;11/07/2016;USCITE CORRENTI - ACQUISTO DI BENI E DI SERVIZI
2016;14077;45,93;TELECOM ITALIA SPA;11/07/2016;USCITE CORRENTI - ACQUISTO DI BENI E DI SERVIZI
2016;14077;0,56;TELECOM ITALIA SPA;11/07/2016;USCITE CORRENTI - ACQUISTO DI BENI E DI SERVIZI
2016;14077;1089,82;TELECOM ITALIA SPA;11/07/2016;USCITE CORRENTI - ACQUISTO DI BENI E DI SERVIZI
2016;14077;9,94;TELECOM ITALIA SPA;11/07/2016;USCITE CORRENTI - ACQUISTO DI BENI E DI SERVIZI
2016;14078;29,86;TELECOM ITALIA SPA;11/07/2016;USCITE CORRENTI - ACQUISTO DI BENI E DI SERVIZI
2016;14078;0,38;TELECOM ITALIA SPA;11/07/2016;USCITE CORRENTI - ACQUISTO DI BENI E DI SERVIZI
2016;14078;28,57;TELECOM ITALIA SPA;11/07/2016;USCITE CORRENTI - ACQUISTO DI BENI E DI SERVIZI
2016;14079;2,68;TELECOM ITALIA SPA;11/07/2016;USCITE CORRENTI - ACQUISTO DI BENI E DI SERVIZI
2016;14079;2,1;TELECOM ITALIA SPA;11/07/2016;USCITE CORRENTI - ACQUISTO DI BENI E DI SERVIZI
2016;14080;2,86;TELECOM ITALIA SPA;11/07/2016;USCITE CORRENTI - ACQUISTO DI BENI E DI SERVIZI
2016;14080;0,96;TELECOM ITALIA SPA;11/07/2016;USCITE CORRENTI - ACQUISTO DI BENI E DI SERVIZI
2016;14080;6,68;TELECOM ITALIA SPA;11/07/2016;USCITE CORRENTI - ACQUISTO DI BENI E DI SERVIZI
2016;14080;3,24;TELECOM ITALIA SPA;11/07/2016;USCITE CORRENTI - ACQUISTO DI BENI E DI SERVIZI
2016;14080;30,21;TELECOM ITALIA SPA;11/07/2016;USCITE CORRENTI - ACQUISTO DI BENI E DI SERVIZI
2016;14080;38,72;TELECOM ITALIA SPA;11/07/2016;USCITE CORRENTI - ACQUISTO DI BENI E DI SERVIZI
2016;14080;1,54;TELECOM ITALIA SPA;11/07/2016;USCITE CORRENTI - ACQUISTO DI BENI E DI SERVIZI
2016;14080;43,78;TELECOM ITALIA SPA;11/07/2016;USCITE CORRENTI - ACQUISTO DI BENI E DI SERVIZI
2016;14080;2,3;TELECOM ITALIA SPA;11/07/2016;USCITE CORRENTI - ACQUISTO DI BENI E DI SERVIZI
2016;14080;0,56;TELECOM ITALIA SPA;11/07/2016;USCITE CORRENTI - ACQUISTO DI BENI E DI SERVIZI
2016;14081;36,33;TELECOM ITALIA SPA;11/07/2016;USCITE CORRENTI - ACQUISTO DI BENI E DI SERVIZI
2016;14081;4,4;TELECOM ITALIA SPA;11/07/2016;USCITE CORRENTI - ACQUISTO DI BENI E DI SERVIZI
2016;14081;19,1;TELECOM ITALIA SPA;11/07/2016;USCITE CORRENTI - ACQUISTO DI BENI E DI SERVIZI
2016;14081;6,3;TELECOM ITALIA SPA;11/07/2016;USCITE CORRENTI - ACQUISTO DI BENI E DI SERVIZI
2016;14081;22,36;TELECOM ITALIA SPA;11/07/2016;USCITE CORRENTI - ACQUISTO DI BENI E DI SERVIZI
2016;14081;8,02;TELECOM ITALIA SPA;11/07/2016;USCITE CORRENTI - ACQUISTO DI BENI E DI SERVIZI
2016;14081;31,75;TELECOM ITALIA SPA;11/07/2016;USCITE CORRENTI - ACQUISTO DI BENI E DI SERVIZI
2016;14081;63,5;TELECOM ITALIA SPA;11/07/2016;USCITE CORRENTI - ACQUISTO DI BENI E DI SERVIZI
2016;14081;68,92;TELECOM ITALIA SPA;11/07/2016;USCITE CORRENTI - ACQUISTO DI BENI E DI SERVIZI
2016;14081;5,34;TELECOM ITALIA SPA;11/07/2016;USCITE CORRENTI - ACQUISTO DI BENI E DI SERVIZI
2016;14081;0,2;TELECOM ITALIA SPA;11/07/2016;USCITE CORRENTI - ACQUISTO DI BENI E DI SERVIZI
2016;14081;59,71;TELECOM ITALIA SPA;11/07/2016;USCITE CORRENTI - ACQUISTO DI BENI E DI SERVIZI
2016;14082;180,31;TELECOM ITALIA SPA;11/07/2016;USCITE CORRENTI - ACQUISTO DI BENI E DI SERVIZI
2016;14082;1,9;TELECOM ITALIA SPA;11/07/2016;USCITE CORRENTI - ACQUISTO DI BENI E DI SERVIZI
2016;14082;4;TELECOM ITALIA SPA;11/07/2016;USCITE CORRENTI - ACQUISTO DI BENI E DI SERVIZI
2016;14082;0,2;TELECOM ITALIA SPA;11/07/2016;USCITE CORRENTI - ACQUISTO DI BENI E DI SERVIZI
2016;14083;4;TELECOM ITALIA SPA;11/07/2016;USCITE CORRENTI - ACQUISTO DI BENI E DI SERVIZI
2016;14083;13,38;TELECOM ITALIA SPA;11/07/2016;USCITE CORRENTI - ACQUISTO DI BENI E DI SERVIZI
2016;14083;110,78;TELECOM ITALIA SPA;11/07/2016;USCITE CORRENTI - ACQUISTO DI BENI E DI SERVIZI
2016;14084;3,24;TELECOM ITALIA SPA;11/07/2016;USCITE CORRENTI - ACQUISTO DI BENI E DI SERVIZI
2016;14084;14,72;TELECOM ITALIA SPA;11/07/2016;USCITE CORRENTI - ACQUISTO DI BENI E DI SERVIZI
2016;14084;3,24;TELECOM ITALIA SPA;11/07/2016;USCITE CORRENTI - ACQUISTO DI BENI E DI SERVIZI
2016;14084;4,78;TELECOM ITALIA SPA;11/07/2016;USCITE CORRENTI - ACQUISTO DI BENI E DI SERVIZI
2016;14084;11,28;TELECOM ITALIA SPA;11/07/2016;USCITE CORRENTI - ACQUISTO DI BENI E DI SERVIZI
2016;14084;4,2;TELECOM ITALIA SPA;11/07/2016;USCITE CORRENTI - ACQUISTO DI BENI E DI SERVIZI
2016;14084;30,21;TELECOM ITALIA SPA;11/07/2016;USCITE CORRENTI - ACQUISTO DI BENI E DI SERVIZI
2016;14085;2,68;TELECOM ITALIA SPA;11/07/2016;USCITE CORRENTI - ACQUISTO DI BENI E DI SERVIZI
2016;14085;34,23;TELECOM ITALIA SPA;11/07/2016;USCITE CORRENTI - ACQUISTO DI BENI E DI SERVIZI
2016;14085;22,92;TELECOM ITALIA SPA;11/07/2016;USCITE CORRENTI - ACQUISTO DI BENI E DI SERVIZI
2016;14086;8,04;TELECOM ITALIA SPA;11/07/2016;USCITE CORRENTI - ACQUISTO DI BENI E DI SERVIZI
2016;14087;4,78;TELECOM ITALIA SPA;11/07/2016;USCITE CORRENTI - ACQUISTO DI BENI E DI SERVIZI
2016;14087;12,62;TELECOM ITALIA SPA;11/07/2016;USCITE CORRENTI - ACQUISTO DI BENI E DI SERVIZI
2016;14087;116,14;TELECOM ITALIA SPA;11/07/2016;USCITE CORRENTI - ACQUISTO DI BENI E DI SERVIZI
2016;14088;0,96;TELECOM ITALIA SPA;11/07/2016;USCITE CORRENTI - ACQUISTO DI BENI E DI SERVIZI
2016;14088;2,68;TELECOM ITALIA SPA;11/07/2016;USCITE CORRENTI - ACQUISTO DI BENI E DI SERVIZI
2016;14089;7,24;TELECOM ITALIA SPA;11/07/2016;USCITE CORRENTI - ACQUISTO DI BENI E DI SERVIZI
2016;14090;8,4;TELECOM ITALIA SPA;11/07/2016;USCITE CORRENTI - ACQUISTO DI BENI E DI SERVIZI
2016;14090;2,3;TELECOM ITALIA SPA;11/07/2016;USCITE CORRENTI - ACQUISTO DI BENI E DI SERVIZI
2016;14091;0,4;TELECOM ITALIA SPA;11/07/2016;USCITE CORRENTI - ACQUISTO DI BENI E DI SERVIZI
2016;14091;3,82;TELECOM ITALIA SPA;11/07/2016;USCITE CORRENTI - ACQUISTO DI BENI E DI SERVIZI
2016;14091;5,34;TELECOM ITALIA SPA;11/07/2016;USCITE CORRENTI - ACQUISTO DI BENI E DI SERVIZI
2016;14091;1,34;TELECOM ITALIA SPA;11/07/2016;USCITE CORRENTI - ACQUISTO DI BENI E DI SERVIZI
2016;14092;3,44;TELECOM ITALIA SPA;11/07/2016;USCITE CORRENTI - ACQUISTO DI BENI E DI SERVIZI
2016;14092;2,1;TELECOM ITALIA SPA;11/07/2016;USCITE CORRENTI - ACQUISTO DI BENI E DI SERVIZI
2016;14092;0,38;TELECOM ITALIA SPA;11/07/2016;USCITE CORRENTI - ACQUISTO DI BENI E DI SERVIZI
2016;14092;1,34;TELECOM ITALIA SPA;11/07/2016;USCITE CORRENTI - ACQUISTO DI BENI E DI SERVIZI
2016;14092;1,9;TELECOM ITALIA SPA;11/07/2016;USCITE CORRENTI - ACQUISTO DI BENI E DI SERVIZI
2016;14092;2,68;TELECOM ITALIA SPA;11/07/2016;USCITE CORRENTI - ACQUISTO DI BENI E DI SERVIZI
2016;14092;4,2;TELECOM ITALIA SPA;11/07/2016;USCITE CORRENTI - ACQUISTO DI BENI E DI SERVIZI
2016;14092;2,86;TELECOM ITALIA SPA;11/07/2016;USCITE CORRENTI - ACQUISTO DI BENI E DI SERVIZI
2016;14092;0,2;TELECOM ITALIA SPA;11/07/2016;USCITE CORRENTI - ACQUISTO DI BENI E DI SERVIZI
2016;14092;0,56;TELECOM ITALIA SPA;11/07/2016;USCITE CORRENTI - ACQUISTO DI BENI E DI SERVIZI
2016;14092;0,2;TELECOM ITALIA SPA;11/07/2016;USCITE CORRENTI - ACQUISTO DI BENI E DI SERVIZI
2016;14092;4,58;TELECOM ITALIA SPA;11/07/2016;USCITE CORRENTI - ACQUISTO DI BENI E DI SERVIZI
2016;14093;1,14;TELECOM ITALIA SPA;11/07/2016;USCITE CORRENTI - ACQUISTO DI BENI E DI SERVIZI
2016;14094;28,69;TELECOM ITALIA SPA;11/07/2016;USCITE CORRENTI - ACQUISTO DI BENI E DI SERVIZI
2016;14094;31,15;TELECOM ITALIA SPA;11/07/2016;USCITE CORRENTI - ACQUISTO DI BENI E DI SERVIZI
2016;14094;1,54;TELECOM ITALIA SPA;11/07/2016;USCITE CORRENTI - ACQUISTO DI BENI E DI SERVIZI
2016;14094;59,38;TELECOM ITALIA SPA;11/07/2016;USCITE CORRENTI - ACQUISTO DI BENI E DI SERVIZI
2016;14094;2,3;TELECOM ITALIA SPA;11/07/2016;USCITE CORRENTI - ACQUISTO DI BENI E DI SERVIZI
2016;14094;2,3;TELECOM ITALIA SPA;11/07/2016;USCITE CORRENTI - ACQUISTO DI BENI E DI SERVIZI
2016;14094;65,37;TELECOM ITALIA SPA;11/07/2016;USCITE CORRENTI - ACQUISTO DI BENI E DI SERVIZI
2016;14094;5,74;TELECOM ITALIA SPA;11/07/2016;USCITE CORRENTI - ACQUISTO DI BENI E DI SERVIZI
2016;14094;17,38;TELECOM ITALIA SPA;11/07/2016;USCITE CORRENTI - ACQUISTO DI BENI E DI SERVIZI
2016;14094;28,82;TELECOM ITALIA SPA;11/07/2016;USCITE CORRENTI - ACQUISTO DI BENI E DI SERVIZI
2016;14094;1,9;TELECOM ITALIA SPA;11/07/2016;USCITE CORRENTI - ACQUISTO DI BENI E DI SERVIZI
2016;14094;31,9;TELECOM ITALIA SPA;11/07/2016;USCITE CORRENTI - ACQUISTO DI BENI E DI SERVIZI
2016;14095;72,02;TELECOM ITALIA SPA;11/07/2016;USCITE CORRENTI - ACQUISTO DI BENI E DI SERVIZI
2016;14095;4,4;TELECOM ITALIA SPA;11/07/2016;USCITE CORRENTI - ACQUISTO DI BENI E DI SERVIZI
2016;14096;5,18;TELECOM ITALIA SPA;11/07/2016;USCITE CORRENTI - ACQUISTO DI BENI E DI SERVIZI
2016;14096;3,06;TELECOM ITALIA SPA;11/07/2016;USCITE CORRENTI - ACQUISTO DI BENI E DI SERVIZI
2016;14097;0,38;TELECOM ITALIA SPA;11/07/2016;USCITE CORRENTI - ACQUISTO DI BENI E DI SERVIZI
2016;14097;0,2;TELECOM ITALIA SPA;11/07/2016;USCITE CORRENTI - ACQUISTO DI BENI E DI SERVIZI
2016;14097;0,2;TELECOM ITALIA SPA;11/07/2016;USCITE CORRENTI - ACQUISTO DI BENI E DI SERVIZI
2016;14097;0,76;TELECOM ITALIA SPA;11/07/2016;USCITE CORRENTI - ACQUISTO DI BENI E DI SERVIZI
2016;14098;14,69;TELECOM ITALIA SPA;11/07/2016;USCITE CORRENTI - ACQUISTO DI BENI E DI SERVIZI
2016;14098;11,64;TELECOM ITALIA SPA;11/07/2016;USCITE CORRENTI - ACQUISTO DI BENI E DI SERVIZI
2016;14098;7,64;TELECOM ITALIA SPA;11/07/2016;USCITE CORRENTI - ACQUISTO DI BENI E DI SERVIZI
2016;14099;3,06;TELECOM ITALIA SPA;11/07/2016;USCITE CORRENTI - ACQUISTO DI BENI E DI SERVIZI
2016;14100;138,76;TELECOM ITALIA SPA;11/07/2016;USCITE CORRENTI - ACQUISTO DI BENI E DI SERVIZI
2016;14101;1,7;TELECOM ITALIA SPA;11/07/2016;USCITE CORRENTI - ACQUISTO DI BENI E DI SERVIZI
2016;14102;211,72;TELECOM ITALIA SPA;11/07/2016;USCITE CORRENTI - ACQUISTO DI BENI E DI SERVIZI
2016;14103;0,96;TELECOM ITALIA SPA;11/07/2016;USCITE CORRENTI - ACQUISTO DI BENI E DI SERVIZI
2016;14104;9,74;TELECOM ITALIA SPA;11/07/2016;USCITE CORRENTI - ACQUISTO DI BENI E DI SERVIZI
2016;14105;6,32;TELECOM ITALIA SPA;11/07/2016;USCITE CORRENTI - ACQUISTO DI BENI E DI SERVIZI
2016;14106;46,41;TELECOM ITALIA SPA;11/07/2016;USCITE CORRENTI - ACQUISTO DI BENI E DI SERVIZI
2016;14107;6,5;TELECOM ITALIA SPA;11/07/2016;USCITE CORRENTI - ACQUISTO DI BENI E DI SERVIZI
2016;14107;17,96;TELECOM ITALIA SPA;11/07/2016;USCITE CORRENTI - ACQUISTO DI BENI E DI SERVIZI
2016;14108;11,08;TELECOM ITALIA SPA;11/07/2016;USCITE CORRENTI - ACQUISTO DI BENI E DI SERVIZI
2016;14109;0,96;TELECOM ITALIA SPA;11/07/2016;USCITE CORRENTI - ACQUISTO DI BENI E DI SERVIZI
2016;14109;6,5;TELECOM ITALIA SPA;11/07/2016;USCITE CORRENTI - ACQUISTO DI BENI E DI SERVIZI
2016;14110;1,14;TELECOM ITALIA SPA;11/07/2016;USCITE CORRENTI - ACQUISTO DI BENI E DI SERVIZI
2016;14111;0,2;TELECOM ITALIA SPA;11/07/2016;USCITE CORRENTI - ACQUISTO DI BENI E DI SERVIZI
2016;14111;9,36;TELECOM ITALIA SPA;11/07/2016;USCITE CORRENTI - ACQUISTO DI BENI E DI SERVIZI
2016;14111;3,06;TELECOM ITALIA SPA;11/07/2016;USCITE CORRENTI - ACQUISTO DI BENI E DI SERVIZI
2016;14111;0,2;TELECOM ITALIA SPA;11/07/2016;USCITE CORRENTI - ACQUISTO DI BENI E DI SERVIZI
2016;14112;22,16;TELECOM ITALIA SPA;11/07/2016;USCITE CORRENTI - ACQUISTO DI BENI E DI SERVIZI
2016;14112;4,2;TELECOM ITALIA SPA;11/07/2016;USCITE CORRENTI - ACQUISTO DI BENI E DI SERVIZI
2016;14113;25,62;TELECOM ITALIA SPA;11/07/2016;USCITE CORRENTI - ACQUISTO DI BENI E DI SERVIZI
2016;14114;8,2;TELECOM ITALIA SPA;11/07/2016;USCITE CORRENTI - ACQUISTO DI BENI E DI SERVIZI
2016;14115;1,7;TELECOM ITALIA SPA;11/07/2016;USCITE CORRENTI - ACQUISTO DI BENI E DI SERVIZI
2016;14116;2,3;TELECOM ITALIA SPA;11/07/2016;USCITE CORRENTI - ACQUISTO DI BENI E DI SERVIZI
2016;14117;9252;DIVERSI BORSE LAVORO MINORI E GIOVANI (PIL);11/07/2016;USCITE CORRENTI - TRASFERIMENTI CORRENTI
2016;14118;676;DIVERSI BORSE LAVORO MINORI E GIOVANI (PIL);11/07/2016;USCITE CORRENTI - TRASFERIMENTI CORRENTI
2016;14119;1456;DIVERSI BORSE LAVORO MINORI E GIOVANI (PIL);11/07/2016;USCITE CORRENTI - TRASFERIMENTI CORRENTI
2016;14120;14975;DIVERSI BORSE LAVORO MINORI E GIOVANI (PIL);11/07/2016;USCITE CORRENTI - TRASFERIMENTI CORRENTI
2016;14121;353;DIVERSI BORSE LAVORO MINORI E GIOVANI (PIL);11/07/2016;USCITE CORRENTI - TRASFERIMENTI CORRENTI
2016;14122;3626;DIVERSI CONTRIBUTI EX DGC 722/97 - 1443/97;11/07/2016;USCITE CORRENTI - TRASFERIMENTI CORRENTI
2016;14123;6818,44;DIVERSI SUSSIDI A MINORI;11/07/2016;USCITE CORRENTI - TRASFERIMENTI CORRENTI
2016;14124;1810,75;TELENORD SRL;11/07/2016;USCITE CORRENTI - ACQUISTO DI BENI E DI SERVIZI
2016;14125;250;DIVERSI BORSE LAVORO MINORI E GIOVANI (PIL);11/07/2016;USCITE CORRENTI - TRASFERIMENTI CORRENTI
2016;14126;1253;DIVERSI BORSE LAVORO MINORI E GIOVANI (PASS);11/07/2016;USCITE CORRENTI - TRASFERIMENTI CORRENTI
2016;14127;3194,9;FONDAZIONE  ENTE MORALE  SORRISO FRANCESCANO;11/07/2016;USCITE CORRENTI - ACQUISTO DI BENI E DI SERVIZI
2016;14127;3299,33;FONDAZIONE  ENTE MORALE  SORRISO FRANCESCANO;11/07/2016;USCITE CORRENTI - ACQUISTO DI BENI E DI SERVIZI
2016;14128;829;DIVERSI BORSE LAVORO MINORI E GIOVANI (PASS);11/07/2016;USCITE CORRENTI - TRASFERIMENTI CORRENTI
2016;14129;9531;DIVERSI BORSE LAVORO MINORI E GIOVANI (PASS);11/07/2016;USCITE CORRENTI - TRASFERIMENTI CORRENTI
2016;14130;28106,65;A.R.I.S. SPA;11/07/2016;USCITE CORRENTI - ACQUISTO DI BENI E DI SERVIZI
2016;14131;18642,28;A.R.I.S. SPA;11/07/2016;USCITE IN CONTO CAPITALE - INVESTIMENTI FISSI LORDI E ACQUISTO DI TERRENI
2016;14132;7968,13;FINMECCANICA SPA;11/07/2016;USCITE IN CONTO CAPITALE - ALTRE SEPSE IN CONTO CAPITALE
2016;14133;4440,8;STUDIO PRD PAESE ROMELLI DAMONTE INGEGNERI RIUNITI;11/07/2016;USCITE IN CONTO CAPITALE - INVESTIMENTI FISSI LORDI E ACQUISTO DI TERRENI
2016;14134;4916,67;LOVATO, ALFONSINA EMANUELA;11/07/2016;USCITE IN CONTO CAPITALE - INVESTIMENTI FISSI LORDI E ACQUISTO DI TERRENI
2016;14135;9643,92;CO.S.PE.F. SRL UNIPERSONALE;11/07/2016;USCITE IN CONTO CAPITALE - INVESTIMENTI FISSI LORDI E ACQUISTO DI TERRENI
2016;14136;24215,91;BRC SPA RECUPERO EDILIZIO E RESTAURO CONSERVATIVO;11/07/2016;USCITE IN CONTO CAPITALE - INVESTIMENTI FISSI LORDI E ACQUISTO DI TERRENI
2016;14137;10162;DIVERSI BORSE LAVORO MINORI E GIOVANI (PIL);11/07/2016;USCITE CORRENTI - TRASFERIMENTI CORRENTI
2016;14138;105,2;HERA COMM S.R.L.;11/07/2016;USCITE CORRENTI - ACQUISTO DI BENI E DI SERVIZI
2016;14139;16,79;HERA COMM S.R.L.;11/07/2016;USCITE CORRENTI - ACQUISTO DI BENI E DI SERVIZI
2016;14140;121,82;ELIOR RISTORAZIONE SPA;11/07/2016;USCITE CORRENTI - ACQUISTO DI BENI E DI SERVIZI
2016;14140;2250,53;ELIOR RISTORAZIONE SPA;11/07/2016;USCITE CORRENTI - ACQUISTO DI BENI E DI SERVIZI
2016;14140;261,45;ELIOR RISTORAZIONE SPA;11/07/2016;USCITE CORRENTI - ACQUISTO DI BENI E DI SERVIZI
2016;14140;288,08;ELIOR RISTORAZIONE SPA;11/07/2016;USCITE CORRENTI - ACQUISTO DI BENI E DI SERVIZI
2016;14140;1383,54;ELIOR RISTORAZIONE SPA;11/07/2016;USCITE CORRENTI - ACQUISTO DI BENI E DI SERVIZI
2016;14140;9174,37;ELIOR RISTORAZIONE SPA;11/07/2016;USCITE CORRENTI - ACQUISTO DI BENI E DI SERVIZI
2016;14140;13973,34;ELIOR RISTORAZIONE SPA;11/07/2016;USCITE CORRENTI - ACQUISTO DI BENI E DI SERVIZI
2016;14140;2979,81;ELIOR RISTORAZIONE SPA;11/07/2016;USCITE CORRENTI - ACQUISTO DI BENI E DI SERVIZI
2016;14140;5013,42;ELIOR RISTORAZIONE SPA;11/07/2016;USCITE CORRENTI - ACQUISTO DI BENI E DI SERVIZI
2016;14140;3369,48;ELIOR RISTORAZIONE SPA;11/07/2016;USCITE CORRENTI - ACQUISTO DI BENI E DI SERVIZI
2016;14140;9294,71;ELIOR RISTORAZIONE SPA;11/07/2016;USCITE CORRENTI - ACQUISTO DI BENI E DI SERVIZI
2016;14140;595,96;ELIOR RISTORAZIONE SPA;11/07/2016;USCITE CORRENTI - ACQUISTO DI BENI E DI SERVIZI
2016;14140;13764,42;ELIOR RISTORAZIONE SPA;11/07/2016;USCITE CORRENTI - ACQUISTO DI BENI E DI SERVIZI
2016;14140;17471,13;ELIOR RISTORAZIONE SPA;11/07/2016;USCITE CORRENTI - ACQUISTO DI BENI E DI SERVIZI
2016;14140;10721,98;ELIOR RISTORAZIONE SPA;11/07/2016;USCITE CORRENTI - ACQUISTO DI BENI E DI SERVIZI
2016;14140;29632,51;ELIOR RISTORAZIONE SPA;11/07/2016;USCITE CORRENTI - ACQUISTO DI BENI E DI SERVIZI
2016;14140;6249,15;ELIOR RISTORAZIONE SPA;11/07/2016;USCITE CORRENTI - ACQUISTO DI BENI E DI SERVIZI
2016;14140;8893,25;ELIOR RISTORAZIONE SPA;11/07/2016;USCITE CORRENTI - ACQUISTO DI BENI E DI SERVIZI
2016;14141;403,31;LLOYD'S DI LONDRA RAPPRESENTANTE GENERALE PER L'ITALIA;11/07/2016;USCITE CORRENTI -ALTRE SPESE CORRENTI
2016;14142;225,89;ELIOR RISTORAZIONE SPA;11/07/2016;USCITE CORRENTI - ACQUISTO DI BENI E DI SERVIZI
2016;14142;115,52;ELIOR RISTORAZIONE SPA;11/07/2016;USCITE CORRENTI - ACQUISTO DI BENI E DI SERVIZI
2016;14142;232,07;ELIOR RISTORAZIONE SPA;11/07/2016;USCITE CORRENTI - ACQUISTO DI BENI E DI SERVIZI
2016;14142;6746,69;ELIOR RISTORAZIONE SPA;11/07/2016;USCITE CORRENTI - ACQUISTO DI BENI E DI SERVIZI
2016;14142;9642,67;ELIOR RISTORAZIONE SPA;11/07/2016;USCITE CORRENTI - ACQUISTO DI BENI E DI SERVIZI
2016;14143;5,44;ENI SPA;11/07/2016;USCITE CORRENTI - ACQUISTO DI BENI E DI SERVIZI
2016;14143;1206,06;ENI SPA;11/07/2016;USCITE CORRENTI - ACQUISTO DI BENI E DI SERVIZI
2016;14143;19,97;ENI SPA;11/07/2016;USCITE CORRENTI - ACQUISTO DI BENI E DI SERVIZI
2016;14143;52,61;ENI SPA;11/07/2016;USCITE CORRENTI - ACQUISTO DI BENI E DI SERVIZI
2016;14143;330,94;ENI SPA;11/07/2016;USCITE CORRENTI - ACQUISTO DI BENI E DI SERVIZI
2016;14143;717,25;ENI SPA;11/07/2016;USCITE CORRENTI - ACQUISTO DI BENI E DI SERVIZI
2016;14143;635,89;ENI SPA;11/07/2016;USCITE CORRENTI - ACQUISTO DI BENI E DI SERVIZI
2016;14143;20,34;ENI SPA;11/07/2016;USCITE CORRENTI - ACQUISTO DI BENI E DI SERVIZI
2016;14144;73,29;ENI SPA;11/07/2016;USCITE CORRENTI - ACQUISTO DI BENI E DI SERVIZI
2016;14144;116,67;ENI SPA;11/07/2016;USCITE CORRENTI - ACQUISTO DI BENI E DI SERVIZI
2016;14145;196,75;ENI SPA;11/07/2016;USCITE CORRENTI - ACQUISTO DI BENI E DI SERVIZI
2016;14145;212,75;ENI SPA;11/07/2016;USCITE CORRENTI - ACQUISTO DI BENI E DI SERVIZI
2016;14145;609,78;ENI SPA;11/07/2016;USCITE CORRENTI - ACQUISTO DI BENI E DI SERVIZI
2016;14145;529,69;ENI SPA;11/07/2016;USCITE CORRENTI - ACQUISTO DI BENI E DI SERVIZI
2016;14145;1432,49;ENI SPA;11/07/2016;USCITE CORRENTI - ACQUISTO DI BENI E DI SERVIZI
2016;14145;0,96;ENI SPA;11/07/2016;USCITE CORRENTI - ACQUISTO DI BENI E DI SERVIZI
2016;14146;274,45;ENI SPA;11/07/2016;USCITE CORRENTI - ACQUISTO DI BENI E DI SERVIZI
2016;14146;1494,57;ENI SPA;11/07/2016;USCITE CORRENTI - ACQUISTO DI BENI E DI SERVIZI
2016;14146;137,81;ENI SPA;11/07/2016;USCITE CORRENTI - ACQUISTO DI BENI E DI SERVIZI
2016;14146;218,01;ENI SPA;11/07/2016;USCITE CORRENTI - ACQUISTO DI BENI E DI SERVIZI
2016;14146;508,34;ENI SPA;11/07/2016;USCITE CORRENTI - ACQUISTO DI BENI E DI SERVIZI
2016;14147;3606,44;ENI SPA;11/07/2016;USCITE CORRENTI - ACQUISTO DI BENI E DI SERVIZI
2016;14147;410,25;ENI SPA;11/07/2016;USCITE CORRENTI - ACQUISTO DI BENI E DI SERVIZI
2016;14147;81,54;ENI SPA;11/07/2016;USCITE CORRENTI - ACQUISTO DI BENI E DI SERVIZI
2016;14148;340,45;ENI SPA;11/07/2016;USCITE CORRENTI - ACQUISTO DI BENI E DI SERVIZI
2016;14148;471,35;ENI SPA;11/07/2016;USCITE CORRENTI - ACQUISTO DI BENI E DI SERVIZI
2016;14148;67,72;ENI SPA;11/07/2016;USCITE CORRENTI - ACQUISTO DI BENI E DI SERVIZI
2016;14149;293,44;ENI SPA;11/07/2016;USCITE CORRENTI - ACQUISTO DI BENI E DI SERVIZI
2016;14149;274,32;ENI SPA;11/07/2016;USCITE CORRENTI - ACQUISTO DI BENI E DI SERVIZI
2016;14149;258,78;ENI SPA;11/07/2016;USCITE CORRENTI - ACQUISTO DI BENI E DI SERVIZI
2016;14150;325,19;ENI SPA;11/07/2016;USCITE CORRENTI - ACQUISTO DI BENI E DI SERVIZI
2016;14151;521,35;ENI SPA;11/07/2016;USCITE CORRENTI - ACQUISTO DI BENI E DI SERVIZI
2016;14152;75,96;ENI SPA;11/07/2016;USCITE CORRENTI - ACQUISTO DI BENI E DI SERVIZI
2016;14152;127,61;ENI SPA;11/07/2016;USCITE CORRENTI - ACQUISTO DI BENI E DI SERVIZI
2016;14153;532,99;ENI SPA;11/07/2016;USCITE CORRENTI - ACQUISTO DI BENI E DI SERVIZI
2016;14154;405,01;ENI SPA;11/07/2016;USCITE CORRENTI - ACQUISTO DI BENI E DI SERVIZI
2016;14154;50,36;ENI SPA;11/07/2016;USCITE CORRENTI - ACQUISTO DI BENI E DI SERVIZI
2016;14154;256,51;ENI SPA;11/07/2016;USCITE CORRENTI - ACQUISTO DI BENI E DI SERVIZI
2016;14154;1262,83;ENI SPA;11/07/2016;USCITE CORRENTI - ACQUISTO DI BENI E DI SERVIZI
2016;14154;166,65;ENI SPA;11/07/2016;USCITE CORRENTI - ACQUISTO DI BENI E DI SERVIZI
2016;14154;433,89;ENI SPA;11/07/2016;USCITE CORRENTI - ACQUISTO DI BENI E DI SERVIZI
2016;14154;2033,36;ENI SPA;11/07/2016;USCITE CORRENTI - ACQUISTO DI BENI E DI SERVIZI
2016;14154;130,15;ENI SPA;11/07/2016;USCITE CORRENTI - ACQUISTO DI BENI E DI SERVIZI
2016;14155;3073,29;ENI SPA;11/07/2016;USCITE CORRENTI - ACQUISTO DI BENI E DI SERVIZI
2016;14155;335,66;ENI SPA;11/07/2016;USCITE CORRENTI - ACQUISTO DI BENI E DI SERVIZI
2016;14156;218,55;ENI SPA;11/07/2016;USCITE CORRENTI - ACQUISTO DI BENI E DI SERVIZI
2016;14157;4,61;ENI SPA;11/07/2016;USCITE CORRENTI - ACQUISTO DI BENI E DI SERVIZI
2016;14158;3548,15;ENI SPA;11/07/2016;USCITE CORRENTI - ACQUISTO DI BENI E DI SERVIZI
2016;14159;544,3;ENI SPA;11/07/2016;USCITE CORRENTI - ACQUISTO DI BENI E DI SERVIZI
2016;14160;56,38;ENI SPA;11/07/2016;USCITE CORRENTI - ACQUISTO DI BENI E DI SERVIZI
2016;14161;37,88;ENI SPA;11/07/2016;USCITE CORRENTI - ACQUISTO DI BENI E DI SERVIZI
2016;14162;3512;ASS. MARITTIMI MARINA MERCANTILE - ORG. VOLONT.;11/07/2016;USCITE CORRENTI - ACQUISTO DI BENI E DI SERVIZI
2016;14163;8980,63;DIVERSI SUSSIDI A MINORI;11/07/2016;USCITE CORRENTI - TRASFERIMENTI CORRENTI
2016;14164;103,29;DIVERSI RICOVERATI IN ISTITUTI;11/07/2016;USCITE CORRENTI - TRASFERIMENTI CORRENTI
2016;14165;3449,7;DIVERSI RICOVERATI IN ISTITUTI;11/07/2016;USCITE CORRENTI - TRASFERIMENTI CORRENTI
2016;14166;25070,91;DI EGIDIO SRL CON UNICO SOCIO;11/07/2016;USCITE IN CONTO CAPITALE - INVESTIMENTI FISSI LORDI E ACQUISTO DI TERRENI
2016;14167;77194,19;CALDERAN & MOSCATELLI S.P.A.;11/07/2016;USCITE IN CONTO CAPITALE - INVESTIMENTI FISSI LORDI E ACQUISTO DI TERRENI
2016;14168;58347,71;MA.IM. SRL;11/07/2016;USCITE IN CONTO CAPITALE - INVESTIMENTI FISSI LORDI E ACQUISTO DI TERRENI
2016;14169;18000;CIV.MUSEO BIBL.ATTORE DEL TEATRO DI GENOVA - FONDAZIONE;11/07/2016;USCITE CORRENTI - TRASFERIMENTI CORRENTI
2016;14170;35000;FONDAZIONE FILM COMMISSION GENOVA - LIGURIA;11/07/2016;USCITE CORRENTI - ACQUISTO DI BENI E DI SERVIZI
2016;14171;112,28;DHL EXPRESS (ITALY) SRL;11/07/2016;USCITE CORRENTI - ACQUISTO DI BENI E DI SERVIZI
2016;14171;95,78;DHL EXPRESS (ITALY) SRL;11/07/2016;USCITE CORRENTI - ACQUISTO DI BENI E DI SERVIZI
2016;14171;20,4;DHL EXPRESS (ITALY) SRL;11/07/2016;USCITE CORRENTI - ACQUISTO DI BENI E DI SERVIZI
2016;14172;2409,41;S.C.A. GENOVA-SOC.COSTRUZ.AUTOSTRADALI GENOVA SRL UNIPERS.;11/07/2016;USCITE CORRENTI -ALTRE SPESE CORRENTI
2016;14173;325,5;S.C.A. GENOVA-SOC.COSTRUZ.AUTOSTRADALI GENOVA SRL UNIPERS.;11/07/2016;USCITE CORRENTI -ALTRE SPESE CORRENTI
2016;14174;6097,06;AUTOMOBILE CLUB D'ITALIA- ROMA;11/07/2016;USCITE CORRENTI - ACQUISTO DI BENI E DI SERVIZI
2016;14175;582,67;SICURITALIA SPA;11/07/2016;USCITE CORRENTI - ACQUISTO DI BENI E DI SERVIZI
2016;14175;3204,7;SICURITALIA SPA;11/07/2016;USCITE CORRENTI - ACQUISTO DI BENI E DI SERVIZI
2016;14175;111,68;SICURITALIA SPA;11/07/2016;USCITE CORRENTI - ACQUISTO DI BENI E DI SERVIZI
2016;14175;78,9;SICURITALIA SPA;11/07/2016;USCITE CORRENTI - ACQUISTO DI BENI E DI SERVIZI
2016;14175;78,9;SICURITALIA SPA;11/07/2016;USCITE CORRENTI - ACQUISTO DI BENI E DI SERVIZI
2016;14175;78,9;SICURITALIA SPA;11/07/2016;USCITE CORRENTI - ACQUISTO DI BENI E DI SERVIZI
2016;14175;78,9;SICURITALIA SPA;11/07/2016;USCITE CORRENTI - ACQUISTO DI BENI E DI SERVIZI
2016;14175;78,9;SICURITALIA SPA;11/07/2016;USCITE CORRENTI - ACQUISTO DI BENI E DI SERVIZI
2016;14176;78,9;SICURITALIA SPA;11/07/2016;USCITE CORRENTI - ACQUISTO DI BENI E DI SERVIZI
2016;14176;78,9;SICURITALIA SPA;11/07/2016;USCITE CORRENTI - ACQUISTO DI BENI E DI SERVIZI
2016;14176;78,9;SICURITALIA SPA;11/07/2016;USCITE CORRENTI - ACQUISTO DI BENI E DI SERVIZI
2016;14177;78,9;SICURITALIA SPA;11/07/2016;USCITE CORRENTI - ACQUISTO DI BENI E DI SERVIZI
2016;14178;78,9;SICURITALIA SPA;11/07/2016;USCITE CORRENTI - ACQUISTO DI BENI E DI SERVIZI
2016;14178;78,9;SICURITALIA SPA;11/07/2016;USCITE CORRENTI - ACQUISTO DI BENI E DI SERVIZI
2016;14179;17647;DIVERSI BORSE LAVORO MINORI E GIOVANI (BUS);11/07/2016;USCITE CORRENTI - TRASFERIMENTI CORRENTI
2016;14180;4500;INEBULA S.R.L.;11/07/2016;USCITE CORRENTI - ACQUISTO DI BENI E DI SERVIZI
2016;14181;390,29;COMETA - CONSORZIO  DI COOP.SOC.- SOC.COOP.SOC.;11/07/2016;USCITE CORRENTI - ACQUISTO DI BENI E DI SERVIZI
2016;14181;1925,41;COMETA - CONSORZIO  DI COOP.SOC.- SOC.COOP.SOC.;11/07/2016;USCITE CORRENTI - ACQUISTO DI BENI E DI SERVIZI
2016;14181;2016,47;COMETA - CONSORZIO  DI COOP.SOC.- SOC.COOP.SOC.;11/07/2016;USCITE CORRENTI - ACQUISTO DI BENI E DI SERVIZI
2016;14182;3029,04;COOPSSE SOC. COOP.SOCIALE ONLUS;11/07/2016;USCITE CORRENTI - ACQUISTO DI BENI E DI SERVIZI
2016;14182;3130,01;COOPSSE SOC. COOP.SOCIALE ONLUS;11/07/2016;USCITE CORRENTI - ACQUISTO DI BENI E DI SERVIZI
2016;14183;783,21;LANZA DEL VASTO SOC.COOP. SOCIALE ONLUS;11/07/2016;USCITE CORRENTI - ACQUISTO DI BENI E DI SERVIZI
2016;14183;8847,72;LANZA DEL VASTO SOC.COOP. SOCIALE ONLUS;11/07/2016;USCITE CORRENTI - ACQUISTO DI BENI E DI SERVIZI
2016;14185;4821,44;STUDIO TECNICO ASS. DI INGEGNERIA STRUTTURALE E GEOTECNICA;12/07/2016;USCITE CORRENTI -ALTRE SPESE CORRENTI
2016;14186;3214,17;ASS.NUOVO BUON PASTORE - ORG. DI VOLONT.;12/07/2016;USCITE CORRENTI - ACQUISTO DI BENI E DI SERVIZI
2016;14187;0;MEDITERRANEA DELLE ACQUE SPA;12/07/2016;USCITE CORRENTI -ALTRE SPESE CORRENTI
2016;14187;0;MEDITERRANEA DELLE ACQUE SPA;12/07/2016;USCITE CORRENTI - ACQUISTO DI BENI E DI SERVIZI
2016;14187;169957,91;MEDITERRANEA DELLE ACQUE SPA;12/07/2016;USCITE CORRENTI -ALTRE SPESE CORRENTI
2016;14188;512,4;EUREL INFORMATICA SPA;12/07/2016;USCITE CORRENTI - ACQUISTO DI BENI E DI SERVIZI
2016;14189;106,8;I.N.P.S. - SEDE DI GENOVA;12/07/2016;USCITE CORRENTI - ACQUISTO DI BENI E DI SERVIZI
2016;14192;6165;CENTRO AIUTO ALLA VITA - SANREMO;12/07/2016;USCITE CORRENTI - ACQUISTO DI BENI E DI SERVIZI
2016;14192;80,91;CENTRO AIUTO ALLA VITA - SANREMO;12/07/2016;USCITE CORRENTI - ACQUISTO DI BENI E DI SERVIZI
2016;14193;44,19;FASTWEB SPA;12/07/2016;USCITE CORRENTI - ACQUISTO DI BENI E DI SERVIZI
2016;14193;7,53;FASTWEB SPA;12/07/2016;USCITE CORRENTI - ACQUISTO DI BENI E DI SERVIZI
2016;14193;90,47;FASTWEB SPA;12/07/2016;USCITE CORRENTI - ACQUISTO DI BENI E DI SERVIZI
2016;14193;10,38;FASTWEB SPA;12/07/2016;USCITE CORRENTI - ACQUISTO DI BENI E DI SERVIZI
2016;14193;24,94;FASTWEB SPA;12/07/2016;USCITE CORRENTI - ACQUISTO DI BENI E DI SERVIZI
2016;14193;18,18;FASTWEB SPA;12/07/2016;USCITE CORRENTI - ACQUISTO DI BENI E DI SERVIZI
2016;14193;141,51;FASTWEB SPA;12/07/2016;USCITE CORRENTI - ACQUISTO DI BENI E DI SERVIZI
2016;14193;6,16;FASTWEB SPA;12/07/2016;USCITE CORRENTI - ACQUISTO DI BENI E DI SERVIZI
2016;14193;12,07;FASTWEB SPA;12/07/2016;USCITE CORRENTI - ACQUISTO DI BENI E DI SERVIZI
2016;14193;513,3;FASTWEB SPA;12/07/2016;USCITE CORRENTI - ACQUISTO DI BENI E DI SERVIZI
2016;14193;155,24;FASTWEB SPA;12/07/2016;USCITE CORRENTI - ACQUISTO DI BENI E DI SERVIZI
2016;14193;262,45;FASTWEB SPA;12/07/2016;USCITE CORRENTI - ACQUISTO DI BENI E DI SERVIZI
2016;14194;13,84;FASTWEB SPA;12/07/2016;USCITE CORRENTI - ACQUISTO DI BENI E DI SERVIZI
2016;14194;3,33;FASTWEB SPA;12/07/2016;USCITE CORRENTI - ACQUISTO DI BENI E DI SERVIZI
2016;14194;252,99;FASTWEB SPA;12/07/2016;USCITE CORRENTI - ACQUISTO DI BENI E DI SERVIZI
2016;14194;33,51;FASTWEB SPA;12/07/2016;USCITE CORRENTI - ACQUISTO DI BENI E DI SERVIZI
2016;14194;178,34;FASTWEB SPA;12/07/2016;USCITE CORRENTI - ACQUISTO DI BENI E DI SERVIZI
2016;14194;113,72;FASTWEB SPA;12/07/2016;USCITE CORRENTI - ACQUISTO DI BENI E DI SERVIZI
2016;14194;28,92;FASTWEB SPA;12/07/2016;USCITE CORRENTI - ACQUISTO DI BENI E DI SERVIZI
2016;14194;8,58;FASTWEB SPA;12/07/2016;USCITE CORRENTI - ACQUISTO DI BENI E DI SERVIZI
2016;14194;4,66;FASTWEB SPA;12/07/2016;USCITE CORRENTI - ACQUISTO DI BENI E DI SERVIZI
2016;14194;198,71;FASTWEB SPA;12/07/2016;USCITE CORRENTI - ACQUISTO DI BENI E DI SERVIZI
2016;14195;57,8;FASTWEB SPA;12/07/2016;USCITE CORRENTI - ACQUISTO DI BENI E DI SERVIZI
2016;14195;34,53;FASTWEB SPA;12/07/2016;USCITE CORRENTI - ACQUISTO DI BENI E DI SERVIZI
2016;14195;9,98;FASTWEB SPA;12/07/2016;USCITE CORRENTI - ACQUISTO DI BENI E DI SERVIZI
2016;14195;11,3;FASTWEB SPA;12/07/2016;USCITE CORRENTI - ACQUISTO DI BENI E DI SERVIZI
2016;14195;59,99;FASTWEB SPA;12/07/2016;USCITE CORRENTI - ACQUISTO DI BENI E DI SERVIZI
2016;14195;7,95;FASTWEB SPA;12/07/2016;USCITE CORRENTI - ACQUISTO DI BENI E DI SERVIZI
2016;14195;52,5;FASTWEB SPA;12/07/2016;USCITE CORRENTI - ACQUISTO DI BENI E DI SERVIZI
2016;14195;519,95;FASTWEB SPA;12/07/2016;USCITE CORRENTI - ACQUISTO DI BENI E DI SERVIZI
2016;14195;25,83;FASTWEB SPA;12/07/2016;USCITE CORRENTI - ACQUISTO DI BENI E DI SERVIZI
2016;14195;60,39;FASTWEB SPA;12/07/2016;USCITE CORRENTI - ACQUISTO DI BENI E DI SERVIZI
2016;14196;11,5;FASTWEB SPA;12/07/2016;USCITE CORRENTI - ACQUISTO DI BENI E DI SERVIZI
2016;14196;21,41;FASTWEB SPA;12/07/2016;USCITE CORRENTI - ACQUISTO DI BENI E DI SERVIZI
2016;14196;390,79;FASTWEB SPA;12/07/2016;USCITE CORRENTI - ACQUISTO DI BENI E DI SERVIZI
2016;14196;446,47;FASTWEB SPA;12/07/2016;USCITE CORRENTI - ACQUISTO DI BENI E DI SERVIZI
2016;14196;12,12;FASTWEB SPA;12/07/2016;USCITE CORRENTI - ACQUISTO DI BENI E DI SERVIZI
2016;14196;32,53;FASTWEB SPA;12/07/2016;USCITE CORRENTI - ACQUISTO DI BENI E DI SERVIZI
2016;14196;8,04;FASTWEB SPA;12/07/2016;USCITE CORRENTI - ACQUISTO DI BENI E DI SERVIZI
2016;14196;49,53;FASTWEB SPA;12/07/2016;USCITE CORRENTI - ACQUISTO DI BENI E DI SERVIZI
2016;14196;25,98;FASTWEB SPA;12/07/2016;USCITE CORRENTI - ACQUISTO DI BENI E DI SERVIZI
2016;14196;10,19;FASTWEB SPA;12/07/2016;USCITE CORRENTI - ACQUISTO DI BENI E DI SERVIZI
2016;14196;17,5;FASTWEB SPA;12/07/2016;USCITE CORRENTI - ACQUISTO DI BENI E DI SERVIZI
2016;14196;183,62;FASTWEB SPA;12/07/2016;USCITE CORRENTI - ACQUISTO DI BENI E DI SERVIZI
2016;14197;10,84;FASTWEB SPA;12/07/2016;USCITE CORRENTI - ACQUISTO DI BENI E DI SERVIZI
2016;14197;0,99;FASTWEB SPA;12/07/2016;USCITE CORRENTI - ACQUISTO DI BENI E DI SERVIZI
2016;14197;56,89;FASTWEB SPA;12/07/2016;USCITE CORRENTI - ACQUISTO DI BENI E DI SERVIZI
2016;14197;1900,22;FASTWEB SPA;12/07/2016;USCITE CORRENTI - ACQUISTO DI BENI E DI SERVIZI
2016;14198;50,05;FASTWEB SPA;12/07/2016;USCITE CORRENTI - ACQUISTO DI BENI E DI SERVIZI
2016;14198;6,44;FASTWEB SPA;12/07/2016;USCITE CORRENTI - ACQUISTO DI BENI E DI SERVIZI
2016;14198;1,84;FASTWEB SPA;12/07/2016;USCITE CORRENTI - ACQUISTO DI BENI E DI SERVIZI
2016;14198;27,87;FASTWEB SPA;12/07/2016;USCITE CORRENTI - ACQUISTO DI BENI E DI SERVIZI
2016;14199;1,35;FASTWEB SPA;12/07/2016;USCITE CORRENTI - ACQUISTO DI BENI E DI SERVIZI
2016;14199;4,58;FASTWEB SPA;12/07/2016;USCITE CORRENTI - ACQUISTO DI BENI E DI SERVIZI
2016;14199;21,55;FASTWEB SPA;12/07/2016;USCITE CORRENTI - ACQUISTO DI BENI E DI SERVIZI
2016;14199;27,7;FASTWEB SPA;12/07/2016;USCITE CORRENTI - ACQUISTO DI BENI E DI SERVIZI
2016;14200;180,09;FASTWEB SPA;12/07/2016;USCITE CORRENTI - ACQUISTO DI BENI E DI SERVIZI
2016;14200;2,75;FASTWEB SPA;12/07/2016;USCITE CORRENTI - ACQUISTO DI BENI E DI SERVIZI
2016;14200;68,05;FASTWEB SPA;12/07/2016;USCITE CORRENTI - ACQUISTO DI BENI E DI SERVIZI
2016;14201;116,19;FASTWEB SPA;12/07/2016;USCITE CORRENTI - ACQUISTO DI BENI E DI SERVIZI
2016;14201;235,62;FASTWEB SPA;12/07/2016;USCITE CORRENTI - ACQUISTO DI BENI E DI SERVIZI
2016;14201;159,11;FASTWEB SPA;12/07/2016;USCITE CORRENTI - ACQUISTO DI BENI E DI SERVIZI
2016;14201;131,86;FASTWEB SPA;12/07/2016;USCITE CORRENTI - ACQUISTO DI BENI E DI SERVIZI
2016;14201;38,61;FASTWEB SPA;12/07/2016;USCITE CORRENTI - ACQUISTO DI BENI E DI SERVIZI
2016;14201;20,74;FASTWEB SPA;12/07/2016;USCITE CORRENTI - ACQUISTO DI BENI E DI SERVIZI
2016;14201;298,1;FASTWEB SPA;12/07/2016;USCITE CORRENTI - ACQUISTO DI BENI E DI SERVIZI
2016;14201;73,5;FASTWEB SPA;12/07/2016;USCITE CORRENTI - ACQUISTO DI BENI E DI SERVIZI
2016;14201;141,54;FASTWEB SPA;12/07/2016;USCITE CORRENTI - ACQUISTO DI BENI E DI SERVIZI
2016;14201;62,04;FASTWEB SPA;12/07/2016;USCITE CORRENTI - ACQUISTO DI BENI E DI SERVIZI
2016;14201;48,6;FASTWEB SPA;12/07/2016;USCITE CORRENTI - ACQUISTO DI BENI E DI SERVIZI
2016;14201;33,4;FASTWEB SPA;12/07/2016;USCITE CORRENTI - ACQUISTO DI BENI E DI SERVIZI
2016;14202;116,98;FASTWEB SPA;12/07/2016;USCITE CORRENTI - ACQUISTO DI BENI E DI SERVIZI
2016;14202;56,47;FASTWEB SPA;12/07/2016;USCITE CORRENTI - ACQUISTO DI BENI E DI SERVIZI
2016;14203;23,47;FASTWEB SPA;12/07/2016;USCITE CORRENTI - ACQUISTO DI BENI E DI SERVIZI
2016;14203;72,55;FASTWEB SPA;12/07/2016;USCITE CORRENTI - ACQUISTO DI BENI E DI SERVIZI
2016;14203;21,84;FASTWEB SPA;12/07/2016;USCITE CORRENTI - ACQUISTO DI BENI E DI SERVIZI
2016;14203;23,75;FASTWEB SPA;12/07/2016;USCITE CORRENTI - ACQUISTO DI BENI E DI SERVIZI
2016;14203;15,96;FASTWEB SPA;12/07/2016;USCITE CORRENTI - ACQUISTO DI BENI E DI SERVIZI
2016;14203;17,93;FASTWEB SPA;12/07/2016;USCITE CORRENTI - ACQUISTO DI BENI E DI SERVIZI
2016;14203;63,64;FASTWEB SPA;12/07/2016;USCITE CORRENTI - ACQUISTO DI BENI E DI SERVIZI
2016;14204;150,96;FASTWEB SPA;12/07/2016;USCITE CORRENTI - ACQUISTO DI BENI E DI SERVIZI
2016;14204;64,64;FASTWEB SPA;12/07/2016;USCITE CORRENTI - ACQUISTO DI BENI E DI SERVIZI
2016;14204;67,76;FASTWEB SPA;12/07/2016;USCITE CORRENTI - ACQUISTO DI BENI E DI SERVIZI
2016;14205;27,22;FASTWEB SPA;12/07/2016;USCITE CORRENTI - ACQUISTO DI BENI E DI SERVIZI
2016;14205;47,58;FASTWEB SPA;12/07/2016;USCITE CORRENTI - ACQUISTO DI BENI E DI SERVIZI
2016;14206;81,25;FASTWEB SPA;12/07/2016;USCITE CORRENTI - ACQUISTO DI BENI E DI SERVIZI
2016;14207;9,44;FASTWEB SPA;12/07/2016;USCITE CORRENTI - ACQUISTO DI BENI E DI SERVIZI
2016;14208;89,55;FASTWEB SPA;12/07/2016;USCITE CORRENTI - ACQUISTO DI BENI E DI SERVIZI
2016;14209;5,52;FASTWEB SPA;12/07/2016;USCITE CORRENTI - ACQUISTO DI BENI E DI SERVIZI
2016;14210;42,21;FASTWEB SPA;12/07/2016;USCITE CORRENTI - ACQUISTO DI BENI E DI SERVIZI
2016;14211;29,54;FASTWEB SPA;12/07/2016;USCITE CORRENTI - ACQUISTO DI BENI E DI SERVIZI
2016;14211;96,81;FASTWEB SPA;12/07/2016;USCITE CORRENTI - ACQUISTO DI BENI E DI SERVIZI
2016;14212;35,08;FASTWEB SPA;12/07/2016;USCITE CORRENTI - ACQUISTO DI BENI E DI SERVIZI
2016;14213;2,16;FASTWEB SPA;12/07/2016;USCITE CORRENTI - ACQUISTO DI BENI E DI SERVIZI
2016;14213;0,92;FASTWEB SPA;12/07/2016;USCITE CORRENTI - ACQUISTO DI BENI E DI SERVIZI
2016;14213;168,68;FASTWEB SPA;12/07/2016;USCITE CORRENTI - ACQUISTO DI BENI E DI SERVIZI
2016;14213;8,66;FASTWEB SPA;12/07/2016;USCITE CORRENTI - ACQUISTO DI BENI E DI SERVIZI
2016;14213;142,67;FASTWEB SPA;12/07/2016;USCITE CORRENTI - ACQUISTO DI BENI E DI SERVIZI
2016;14213;2,9;FASTWEB SPA;12/07/2016;USCITE CORRENTI - ACQUISTO DI BENI E DI SERVIZI
2016;14213;89,97;FASTWEB SPA;12/07/2016;USCITE CORRENTI - ACQUISTO DI BENI E DI SERVIZI
2016;14214;1,92;FASTWEB SPA;12/07/2016;USCITE CORRENTI - ACQUISTO DI BENI E DI SERVIZI
2016;14215;250,01;FASTWEB SPA;12/07/2016;USCITE CORRENTI - ACQUISTO DI BENI E DI SERVIZI
2016;14216;50,21;FASTWEB SPA;12/07/2016;USCITE CORRENTI - ACQUISTO DI BENI E DI SERVIZI
2016;14216;8,09;FASTWEB SPA;12/07/2016;USCITE CORRENTI - ACQUISTO DI BENI E DI SERVIZI
2016;14217;5,34;FASTWEB SPA;12/07/2016;USCITE CORRENTI - ACQUISTO DI BENI E DI SERVIZI
2016;14217;14,81;FASTWEB SPA;12/07/2016;USCITE CORRENTI - ACQUISTO DI BENI E DI SERVIZI
2016;14218;23,3;FASTWEB SPA;12/07/2016;USCITE CORRENTI - ACQUISTO DI BENI E DI SERVIZI
2016;14218;1034,86;FASTWEB SPA;12/07/2016;USCITE CORRENTI - ACQUISTO DI BENI E DI SERVIZI
2016;14218;81,71;FASTWEB SPA;12/07/2016;USCITE CORRENTI - ACQUISTO DI BENI E DI SERVIZI
2016;14219;40,32;FASTWEB SPA;12/07/2016;USCITE CORRENTI - ACQUISTO DI BENI E DI SERVIZI
2016;14219;18,61;FASTWEB SPA;12/07/2016;USCITE CORRENTI - ACQUISTO DI BENI E DI SERVIZI
2016;14219;144,39;FASTWEB SPA;12/07/2016;USCITE CORRENTI - ACQUISTO DI BENI E DI SERVIZI
2016;14220;274,37;FASTWEB SPA;12/07/2016;USCITE CORRENTI - ACQUISTO DI BENI E DI SERVIZI
2016;14221;57,97;FASTWEB SPA;12/07/2016;USCITE CORRENTI - ACQUISTO DI BENI E DI SERVIZI
2016;14221;28,49;FASTWEB SPA;12/07/2016;USCITE CORRENTI - ACQUISTO DI BENI E DI SERVIZI
2016;14222;244,38;FASTWEB SPA;12/07/2016;USCITE CORRENTI - ACQUISTO DI BENI E DI SERVIZI
2016;14223;91,89;FASTWEB SPA;12/07/2016;USCITE CORRENTI - ACQUISTO DI BENI E DI SERVIZI
2016;14224;214,62;FASTWEB SPA;12/07/2016;USCITE CORRENTI - ACQUISTO DI BENI E DI SERVIZI
2016;14224;88,54;FASTWEB SPA;12/07/2016;USCITE CORRENTI - ACQUISTO DI BENI E DI SERVIZI
2016;14224;196,32;FASTWEB SPA;12/07/2016;USCITE CORRENTI - ACQUISTO DI BENI E DI SERVIZI
2016;14225;416,39;FASTWEB SPA;12/07/2016;USCITE CORRENTI - ACQUISTO DI BENI E DI SERVIZI
2016;14225;78,3;FASTWEB SPA;12/07/2016;USCITE CORRENTI - ACQUISTO DI BENI E DI SERVIZI
2016;14225;157,91;FASTWEB SPA;12/07/2016;USCITE CORRENTI - ACQUISTO DI BENI E DI SERVIZI
2016;14225;2,8;FASTWEB SPA;12/07/2016;USCITE CORRENTI - ACQUISTO DI BENI E DI SERVIZI
2016;14225;29,88;FASTWEB SPA;12/07/2016;USCITE CORRENTI - ACQUISTO DI BENI E DI SERVIZI
2016;14226;18,93;FASTWEB SPA;12/07/2016;USCITE CORRENTI - ACQUISTO DI BENI E DI SERVIZI
2016;14227;453,94;FASTWEB SPA;12/07/2016;USCITE CORRENTI - ACQUISTO DI BENI E DI SERVIZI
2016;14228;6,87;FASTWEB SPA;12/07/2016;USCITE CORRENTI - ACQUISTO DI BENI E DI SERVIZI
2016;14229;53,74;FASTWEB SPA;12/07/2016;USCITE CORRENTI - ACQUISTO DI BENI E DI SERVIZI
2016;14230;163,32;FASTWEB SPA;12/07/2016;USCITE CORRENTI - ACQUISTO DI BENI E DI SERVIZI
2016;14231;0,92;FASTWEB SPA;12/07/2016;USCITE CORRENTI - ACQUISTO DI BENI E DI SERVIZI
2016;14231;89,06;FASTWEB SPA;12/07/2016;USCITE CORRENTI - ACQUISTO DI BENI E DI SERVIZI
2016;14232;28,18;FASTWEB SPA;12/07/2016;USCITE CORRENTI - ACQUISTO DI BENI E DI SERVIZI
2016;14233;23,69;FASTWEB SPA;12/07/2016;USCITE CORRENTI - ACQUISTO DI BENI E DI SERVIZI
2016;14234;561,81;SORGE SRL;12/07/2016;USCITE CORRENTI - ACQUISTO DI BENI E DI SERVIZI
2016;14235;866,2;M.K.KNEZEVICH SRL;12/07/2016;USCITE CORRENTI - ACQUISTO DI BENI E DI SERVIZI
2016;14236;6816,82;MINERVA COOP.SOCIALE ONLUS;12/07/2016;USCITE CORRENTI - ACQUISTO DI BENI E DI SERVIZI
2016;14240;5,88;DIVERSI SERVIZI DEMOGRAFICI;12/07/2016;USCITE CORRENTI - ACQUISTO DI BENI E DI SERVIZI
2016;14241;5650,17;AZIENDA SERVIZI TERRITORIALI GENOVA SPA - ASTER;12/07/2016;USCITE IN CONTO CAPITALE - INVESTIMENTI FISSI LORDI E ACQUISTO DI TERRENI
2016;14241;2318,56;AZIENDA SERVIZI TERRITORIALI GENOVA SPA - ASTER;12/07/2016;USCITE IN CONTO CAPITALE - INVESTIMENTI FISSI LORDI E ACQUISTO DI TERRENI
2016;14242;60166,58;AZIENDA SERVIZI TERRITORIALI GENOVA SPA - ASTER;12/07/2016;USCITE CORRENTI - ACQUISTO DI BENI E DI SERVIZI
2016;14243;13903,99;DIVERSI ASSEGNATARI CONTRIBUTI L.13/89 PER ELIMINAZIONE BAR-;12/07/2016;USCITE IN CONTO CAPITALE - CONTRIBUTI AGLI INVESTIMENTI
2016;14244;1514,52;COOPSSE SOC. COOP.SOCIALE ONLUS;12/07/2016;USCITE CORRENTI - ACQUISTO DI BENI E DI SERVIZI
2016;14244;1565;COOPSSE SOC. COOP.SOCIALE ONLUS;12/07/2016;USCITE CORRENTI - ACQUISTO DI BENI E DI SERVIZI
2016;14244;1171,8;COOPSSE SOC. COOP.SOCIALE ONLUS;12/07/2016;USCITE CORRENTI - ACQUISTO DI BENI E DI SERVIZI
2016;14245;1134;COOPSSE SOC. COOP.SOCIALE ONLUS;12/07/2016;USCITE CORRENTI - ACQUISTO DI BENI E DI SERVIZI
2016;14246;3130,01;IL LABORATORIO SOC.COOP SOCIALE ONLUS;12/07/2016;USCITE CORRENTI - ACQUISTO DI BENI E DI SERVIZI
2016;14247;500000;FONDAZIONE TEATRO CARLO FELICE;12/07/2016;USCITE IN CONTO CAPITALE - CONTRIBUTI AGLI INVESTIMENTI
2016;14248;3173,59;FONDAZIONE  ENTE MORALE  SORRISO FRANCESCANO;12/07/2016;USCITE CORRENTI - ACQUISTO DI BENI E DI SERVIZI
2016;14248;3088,45;FONDAZIONE  ENTE MORALE  SORRISO FRANCESCANO;12/07/2016;USCITE CORRENTI - ACQUISTO DI BENI E DI SERVIZI
2016;14249;68,33;AUTODEMOLIZIONI LAMPARELLI DI VENTURI A E C. SNC;12/07/2016;USCITE CORRENTI - ACQUISTO DI BENI E DI SERVIZI
2016;14249;127,36;AUTODEMOLIZIONI LAMPARELLI DI VENTURI A E C. SNC;12/07/2016;USCITE CORRENTI - ACQUISTO DI BENI E DI SERVIZI
2016;14250;1959,93;AUTODEMOLIZIONI LAMPARELLI DI VENTURI A E C. SNC;12/07/2016;USCITE CORRENTI - ACQUISTO DI BENI E DI SERVIZI
2016;14250;86,98;AUTODEMOLIZIONI LAMPARELLI DI VENTURI A E C. SNC;12/07/2016;USCITE CORRENTI - ACQUISTO DI BENI E DI SERVIZI
2016;14250;68,33;AUTODEMOLIZIONI LAMPARELLI DI VENTURI A E C. SNC;12/07/2016;USCITE CORRENTI - ACQUISTO DI BENI E DI SERVIZI
2016;14250;68,33;AUTODEMOLIZIONI LAMPARELLI DI VENTURI A E C. SNC;12/07/2016;USCITE CORRENTI - ACQUISTO DI BENI E DI SERVIZI
2016;14251;23,76;ECOLEGNO GENOVA SRL;12/07/2016;USCITE CORRENTI - ACQUISTO DI BENI E DI SERVIZI
2016;14251;55,44;ECOLEGNO GENOVA SRL;12/07/2016;USCITE CORRENTI - ACQUISTO DI BENI E DI SERVIZI
2016;14251;29,92;ECOLEGNO GENOVA SRL;12/07/2016;USCITE CORRENTI - ACQUISTO DI BENI E DI SERVIZI
2016;14251;172,48;ECOLEGNO GENOVA SRL;12/07/2016;USCITE CORRENTI - ACQUISTO DI BENI E DI SERVIZI
2016;14251;304,48;ECOLEGNO GENOVA SRL;12/07/2016;USCITE CORRENTI - ACQUISTO DI BENI E DI SERVIZI
2016;14251;132,88;ECOLEGNO GENOVA SRL;12/07/2016;USCITE CORRENTI - ACQUISTO DI BENI E DI SERVIZI
2016;14251;625,68;ECOLEGNO GENOVA SRL;12/07/2016;USCITE CORRENTI - ACQUISTO DI BENI E DI SERVIZI
2016;14251;55,44;ECOLEGNO GENOVA SRL;12/07/2016;USCITE CORRENTI - ACQUISTO DI BENI E DI SERVIZI
2016;14251;5,12;ECOLEGNO GENOVA SRL;12/07/2016;USCITE CORRENTI - ACQUISTO DI BENI E DI SERVIZI
2016;14251;13,18;ECOLEGNO GENOVA SRL;12/07/2016;USCITE CORRENTI - ACQUISTO DI BENI E DI SERVIZI
2016;14252;22268;PATRONATO S.VINCENZO DE PAOLI;12/07/2016;USCITE CORRENTI - ACQUISTO DI BENI E DI SERVIZI
2016;14253;9161,6;FONDAZIONE SOMASCHI - ONLUS;12/07/2016;USCITE CORRENTI - ACQUISTO DI BENI E DI SERVIZI
2016;14254;32461,15;FONDAZIONE CENTRO DI SOLIDARIETA' BIANCA COSTA BOZZO ONLUS;12/07/2016;USCITE CORRENTI - ACQUISTO DI BENI E DI SERVIZI
2016;14255;4232,55;CONSORZIO OBIETTIVO SOCIALE SOC.COOP.SOC.ONLUS;12/07/2016;USCITE CORRENTI - ACQUISTO DI BENI E DI SERVIZI
2016;14256;366;AGENZIA TEATRALE LIZZ DI LIZZI GIOVANNI & C. SAS;12/07/2016;USCITE CORRENTI - ACQUISTO DI BENI E DI SERVIZI
2016;14256;854;AGENZIA TEATRALE LIZZ DI LIZZI GIOVANNI & C. SAS;12/07/2016;USCITE CORRENTI - ACQUISTO DI BENI E DI SERVIZI
2016;14257;1341,02;MINERVA COOP.SOCIALE ONLUS;12/07/2016;USCITE CORRENTI - ACQUISTO DI BENI E DI SERVIZI
2016;14258;1565;IL LABORATORIO SOC.COOP SOCIALE ONLUS;12/07/2016;USCITE CORRENTI - ACQUISTO DI BENI E DI SERVIZI
2016;14259;1317,79;AGORA' CONSORZIO SOCIALE SOC. COOP. A R.L.(AG.DOM.ANZIANI, E;12/07/2016;USCITE CORRENTI - ACQUISTO DI BENI E DI SERVIZI
2016;14259;1564,94;AGORA' CONSORZIO SOCIALE SOC. COOP. A R.L.(AG.DOM.ANZIANI, E;12/07/2016;USCITE CORRENTI - ACQUISTO DI BENI E DI SERVIZI
2016;14259;11827,88;AGORA' CONSORZIO SOCIALE SOC. COOP. A R.L.(AG.DOM.ANZIANI, E;12/07/2016;USCITE CORRENTI - ACQUISTO DI BENI E DI SERVIZI
2016;14260;17568;MASSIMILIANO VOLPI SAS;12/07/2016;USCITE CORRENTI - ACQUISTO DI BENI E DI SERVIZI
2016;14261;11383,09;AGORA' CONSORZIO SOCIALE SOC. COOP. A R.L.(AG.DOM.ANZIANI, E;12/07/2016;USCITE CORRENTI - ACQUISTO DI BENI E DI SERVIZI
2016;14261;1564,94;AGORA' CONSORZIO SOCIALE SOC. COOP. A R.L.(AG.DOM.ANZIANI, E;12/07/2016;USCITE CORRENTI - ACQUISTO DI BENI E DI SERVIZI
2016;14265;8855,6;FONDAZIONE SOMASCHI - ONLUS;12/07/2016;USCITE CORRENTI - ACQUISTO DI BENI E DI SERVIZI
2016;14265;9243,2;FONDAZIONE SOMASCHI - ONLUS;12/07/2016;USCITE CORRENTI - ACQUISTO DI BENI E DI SERVIZI
2016;14267;2537,6;SI.S.TEL DATA SRL;12/07/2016;USCITE CORRENTI - ACQUISTO DI BENI E DI SERVIZI
2016;14268;3878;FONDAZIONE SOMASCHI - ONLUS;12/07/2016;USCITE CORRENTI - ACQUISTO DI BENI E DI SERVIZI
2016;14268;2694,8;FONDAZIONE SOMASCHI - ONLUS;12/07/2016;USCITE CORRENTI - ACQUISTO DI BENI E DI SERVIZI
2016;14268;1442;FONDAZIONE SOMASCHI - ONLUS;12/07/2016;USCITE CORRENTI - ACQUISTO DI BENI E DI SERVIZI
2016;14271;710;DIVERSI SUSSIDI A CITTADINI BISOGNOSI;12/07/2016;USCITE CORRENTI - TRASFERIMENTI CORRENTI
2016;14272;495;DIVERSI SUSSIDI A MINORI;12/07/2016;USCITE CORRENTI - TRASFERIMENTI CORRENTI
2016;14273;14642,32;DIVERSI SUSSIDI A MINORI;12/07/2016;USCITE CORRENTI - TRASFERIMENTI CORRENTI
2016;14275;21447,45;POSTE ITALIANE SPA;12/07/2016;USCITE CORRENTI - ACQUISTO DI BENI E DI SERVIZI
2016;14276;6064,22;DIVERSI CONTRIBUTI EX DGC 722/97 - 1443/97;12/07/2016;USCITE CORRENTI - TRASFERIMENTI CORRENTI
2016;14277;3330;DIVERSI CONTRIBUTI PER AFFIDI ANZIANI;12/07/2016;USCITE CORRENTI - TRASFERIMENTI CORRENTI
2016;14278;969;DIVERSI SUSSIDI A CITTADINI BISOGNOSI;12/07/2016;USCITE CORRENTI - TRASFERIMENTI CORRENTI
2016;14279;3299,33;FONDAZIONE  ENTE MORALE  SORRISO FRANCESCANO;12/07/2016;USCITE CORRENTI - ACQUISTO DI BENI E DI SERVIZI
2016;14280;0;IREN MERCATO SPA;13/07/2016;USCITE CORRENTI -ALTRE SPESE CORRENTI
2016;14280;0;IREN MERCATO SPA;13/07/2016;USCITE CORRENTI - ACQUISTO DI BENI E DI SERVIZI
2016;14280;224944,29;IREN MERCATO SPA;13/07/2016;USCITE CORRENTI -ALTRE SPESE CORRENTI
2016;14281;0;IREN GESTIONI ENERGETICHE S.P.A.;13/07/2016;USCITE CORRENTI -ALTRE SPESE CORRENTI
2016;14281;0;IREN GESTIONI ENERGETICHE S.P.A.;13/07/2016;USCITE CORRENTI - ACQUISTO DI BENI E DI SERVIZI
2016;14281;319206,66;IREN GESTIONI ENERGETICHE S.P.A.;13/07/2016;USCITE CORRENTI -ALTRE SPESE CORRENTI
2016;14308;744756,15;AZIENDA SERVIZI TERRITORIALI GENOVA SPA - ASTER;13/07/2016;USCITE CORRENTI - ACQUISTO DI BENI E DI SERVIZI
2016;14309;21867,2;DIVERSI RISARCIMENTI DANNI - UFFICIO ASSICURAZIONI;13/07/2016;USCITE CORRENTI -ALTRE SPESE CORRENTI
2016;14310;26500;DIVERSI RISARCIMENTI DANNI - UFFICIO ASSICURAZIONI;13/07/2016;USCITE CORRENTI -ALTRE SPESE CORRENTI
2016;14313;14;DIVERSI RIMBORSI SPESE LEGALI;13/07/2016;USCITE CORRENTI - ACQUISTO DI BENI E DI SERVIZI
2016;14314;3439;DIVERSI SUSSIDI A CITTADINI BISOGNOSI;13/07/2016;USCITE CORRENTI - TRASFERIMENTI CORRENTI
2016;14316;48,36;DEBITORI E CREDITORI DIVERSI;13/07/2016;USCITE CORRENTI - ACQUISTO DI BENI E DI SERVIZI
2016;14317;3383,3;DIVERSI SUSSIDI A MINORI;13/07/2016;USCITE CORRENTI - TRASFERIMENTI CORRENTI
2016;14318;28729,08;DIVERSI AGENTI  RISCOSS.TRIB.- RUOLI;13/07/2016;USCITE CORRENTI - ACQUISTO DI BENI E DI SERVIZI
2016;14319;11045,07;DIVERSI SUSSIDI A MINORI;13/07/2016;USCITE CORRENTI - TRASFERIMENTI CORRENTI
2016;14320;1405;DIVERSI SUSSIDI A CITTADINI BISOGNOSI;13/07/2016;USCITE CORRENTI - TRASFERIMENTI CORRENTI
2016;14321;1170;DIVERSI CONTRIBUTI PER AFFIDI ANZIANI;13/07/2016;USCITE CORRENTI - TRASFERIMENTI CORRENTI
2016;14322;8488,58;DIVERSI CONTRIBUTI EX DGC 722/97 - 1443/97;13/07/2016;USCITE CORRENTI - TRASFERIMENTI CORRENTI
2016;14324;700;DIVERSI SUSSIDI A CITTADINI BISOGNOSI;13/07/2016;USCITE CORRENTI - TRASFERIMENTI CORRENTI
2016;14327;5461,33;DIVERSI SUSSIDI A MINORI;13/07/2016;USCITE CORRENTI - TRASFERIMENTI CORRENTI
2016;14328;1029;DIVERSI CONTRIBUTI EX DGC 722/97 - 1443/97;13/07/2016;USCITE CORRENTI - TRASFERIMENTI CORRENTI
2016;14329;1215,72;DIVERSI SUSSIDI A MINORI;13/07/2016;USCITE CORRENTI - TRASFERIMENTI CORRENTI
2016;14330;1784;DIVERSI SUSSIDI A CITTADINI BISOGNOSI;13/07/2016;USCITE CORRENTI - TRASFERIMENTI CORRENTI
2016;14331;10674,92;CONSORZIO OBIETTIVO SOCIALE SOC.COOP.SOC.ONLUS;13/07/2016;USCITE CORRENTI - ACQUISTO DI BENI E DI SERVIZI
2016;14331;3441,94;CONSORZIO OBIETTIVO SOCIALE SOC.COOP.SOC.ONLUS;13/07/2016;USCITE CORRENTI - ACQUISTO DI BENI E DI SERVIZI
2016;14331;6615,63;CONSORZIO OBIETTIVO SOCIALE SOC.COOP.SOC.ONLUS;13/07/2016;USCITE CORRENTI - ACQUISTO DI BENI E DI SERVIZI
2016;14332;2200;DIVERSI CONTRIBUTI PER AFFIDI ANZIANI;13/07/2016;USCITE CORRENTI - TRASFERIMENTI CORRENTI
2016;14333;443,12;PAREDES ITALIA SPA;13/07/2016;USCITE CORRENTI - ACQUISTO DI BENI E DI SERVIZI
2016;14333;447,33;PAREDES ITALIA SPA;13/07/2016;USCITE CORRENTI - ACQUISTO DI BENI E DI SERVIZI
2016;14334;5115;IST.FIGLIE DIVINO ZELO - ORF. ANTONIANO - CASA ACCOGLIENZA;13/07/2016;USCITE CORRENTI - ACQUISTO DI BENI E DI SERVIZI
2016;14335;1268,8;NRG CONSULTING SNC DI DE TOMASI IVAN E BALDINI DOMENICO;13/07/2016;USCITE IN CONTO CAPITALE - INVESTIMENTI FISSI LORDI E ACQUISTO DI TERRENI
2016;14336;616;CAIROCAR SRL;13/07/2016;USCITE CORRENTI - ACQUISTO DI BENI E DI SERVIZI
2016;14336;182,05;CAIROCAR SRL;13/07/2016;USCITE CORRENTI - ACQUISTO DI BENI E DI SERVIZI
2016;14337;4346,58;MEDITERRANEA DELLE ACQUE SPA;13/07/2016;USCITE CORRENTI - ACQUISTO DI BENI E DI SERVIZI
2016;14338;34977,75;MEDITERRANEA DELLE ACQUE SPA;13/07/2016;USCITE CORRENTI - ACQUISTO DI BENI E DI SERVIZI
2016;14338;273774,05;MEDITERRANEA DELLE ACQUE SPA;13/07/2016;USCITE CORRENTI - ACQUISTO DI BENI E DI SERVIZI
2016;14339;159,42;COMUNE DI GENOVA -CIVICO TESORIERE-;13/07/2016;USCITE CORRENTI - ACQUISTO DI BENI E DI SERVIZI
2016;14340;250,5;COMUNE DI GENOVA -CIVICO TESORIERE-;13/07/2016;USCITE CORRENTI - ACQUISTO DI BENI E DI SERVIZI
2016;14341;178,64;COMUNE DI GENOVA -CIVICO TESORIERE-;13/07/2016;USCITE CORRENTI - ACQUISTO DI BENI E DI SERVIZI
2016;14341;69;COMUNE DI GENOVA -CIVICO TESORIERE-;13/07/2016;USCITE CORRENTI - ACQUISTO DI BENI E DI SERVIZI
2016;14342;21500;IST. D.CHIOSSONE PER CIECHI E IPOVEDENTI ONLUS;13/07/2016;USCITE CORRENTI - ACQUISTO DI BENI E DI SERVIZI
2016;14343;1804,25;COMUNE DI GENOVA -CIVICO TESORIERE-;13/07/2016;USCITE CORRENTI - ACQUISTO DI BENI E DI SERVIZI
2016;14344;254,5;COMUNE DI GENOVA -CIVICO TESORIERE-;13/07/2016;USCITE CORRENTI - ACQUISTO DI BENI E DI SERVIZI
2016;14345;629,01;COMUNE DI GENOVA -CIVICO TESORIERE-;13/07/2016;USCITE CORRENTI - ACQUISTO DI BENI E DI SERVIZI
2016;14345;41,4;COMUNE DI GENOVA -CIVICO TESORIERE-;13/07/2016;USCITE CORRENTI - ACQUISTO DI BENI E DI SERVIZI
2016;14346;501,03;COMUNE DI GENOVA -CIVICO TESORIERE-;13/07/2016;USCITE CORRENTI - ACQUISTO DI BENI E DI SERVIZI
2016;14346;1364,54;COMUNE DI GENOVA -CIVICO TESORIERE-;13/07/2016;USCITE CORRENTI - ACQUISTO DI BENI E DI SERVIZI
2016;14347;257,48;COMUNE DI GENOVA -CIVICO TESORIERE-;13/07/2016;USCITE CORRENTI - ACQUISTO DI BENI E DI SERVIZI
2016;14348;2,61;COMUNE DI GENOVA -CIVICO TESORIERE-;13/07/2016;USCITE CORRENTI - ACQUISTO DI BENI E DI SERVIZI
2016;14349;8089,44;VILLA PERLA SOCIETA' COOP SOCIALE A R.L. ONLUS;13/07/2016;USCITE CORRENTI - ACQUISTO DI BENI E DI SERVIZI
2016;14350;2320,15;OPERA SS.VERGINE DI  POMPEI -  IST.FASSICOMO;13/07/2016;USCITE CORRENTI - ACQUISTO DI BENI E DI SERVIZI
2016;14351;10334,85;BRUSCHINI, UMBERTO;13/07/2016;USCITE CORRENTI - ACQUISTO DI BENI E DI SERVIZI
2016;14352;148133,33;FONDAZIONE AUXILIUM ONLUS;13/07/2016;USCITE CORRENTI - ACQUISTO DI BENI E DI SERVIZI
2016;14352;4669,53;FONDAZIONE AUXILIUM ONLUS;13/07/2016;USCITE CORRENTI - ACQUISTO DI BENI E DI SERVIZI
2016;14353;3194,88;FONDAZIONE  ENTE MORALE  SORRISO FRANCESCANO;13/07/2016;USCITE CORRENTI - ACQUISTO DI BENI E DI SERVIZI
2016;14354;4502,38;FANTASIA DI ILARIUCCI DANIELA INDIV.;13/07/2016;USCITE CORRENTI - ACQUISTO DI BENI E DI SERVIZI
2016;14355;4589,58;ASS.NUOVO BUON PASTORE - ORG. DI VOLONT.;13/07/2016;USCITE CORRENTI - ACQUISTO DI BENI E DI SERVIZI
2016;14356;1821,07;ARIONI MARIO INDIV.;13/07/2016;USCITE CORRENTI - ACQUISTO DI BENI E DI SERVIZI
2016;14356;2372,89;ARIONI MARIO INDIV.;13/07/2016;USCITE CORRENTI - ACQUISTO DI BENI E DI SERVIZI
2016;14357;5725,94;ARIONI MARIO INDIV.;13/07/2016;USCITE CORRENTI - ACQUISTO DI BENI E DI SERVIZI
2016;14357;4523,92;ARIONI MARIO INDIV.;13/07/2016;USCITE CORRENTI - ACQUISTO DI BENI E DI SERVIZI
2016;14357;5725,94;ARIONI MARIO INDIV.;13/07/2016;USCITE CORRENTI - ACQUISTO DI BENI E DI SERVIZI
2016;14358;134,78;C.RE.S.S. CONSORZIO REGIONALE SERVIZI SOCIALI  SOC. COOP.SOC;13/07/2016;USCITE CORRENTI - ACQUISTO DI BENI E DI SERVIZI
2016;14359;473,84;AUTORITA' PORTUALE DI GENOVA;13/07/2016;USCITE CORRENTI - ACQUISTO DI BENI E DI SERVIZI
2016;14360;16459,6;AUTORITA' PORTUALE DI GENOVA;13/07/2016;USCITE CORRENTI - ACQUISTO DI BENI E DI SERVIZI
2016;14361;7509,35;DEXIA CREDIOP SPA;14/07/2016;USCITE CORRENTI - INTERESSI PASSIVI
2016;14362;31,91;DEXIA CREDIOP SPA;14/07/2016;USCITE CORRENTI - INTERESSI PASSIVI
2016;14362;531,78;DEXIA CREDIOP SPA;14/07/2016;USCITE CORRENTI - INTERESSI PASSIVI
2016;14363;505,92;DEXIA CREDIOP SPA;14/07/2016;USCITE CORRENTI - INTERESSI PASSIVI
2016;14364;5502,4;DEXIA CREDIOP SPA;14/07/2016;USCITE CORRENTI - INTERESSI PASSIVI
2016;14365;16,92;DEXIA CREDIOP SPA;14/07/2016;USCITE CORRENTI - INTERESSI PASSIVI
2016;14366;15,95;DEXIA CREDIOP SPA;14/07/2016;USCITE CORRENTI - INTERESSI PASSIVI
2016;14367;410,34;DEXIA CREDIOP SPA;14/07/2016;USCITE CORRENTI - INTERESSI PASSIVI
2016;14368;118,61;DEXIA CREDIOP SPA;14/07/2016;USCITE CORRENTI - INTERESSI PASSIVI
2016;14369;306,14;DEXIA CREDIOP SPA;14/07/2016;USCITE CORRENTI - INTERESSI PASSIVI
2016;14369;2294,73;DEXIA CREDIOP SPA;14/07/2016;USCITE CORRENTI - INTERESSI PASSIVI
2016;14370;658,93;DEXIA CREDIOP SPA;14/07/2016;USCITE CORRENTI - INTERESSI PASSIVI
2016;14371;55,78;DEXIA CREDIOP SPA;14/07/2016;USCITE CORRENTI - INTERESSI PASSIVI
2016;14372;121,35;DEXIA CREDIOP SPA;14/07/2016;USCITE CORRENTI - INTERESSI PASSIVI
2016;14373;1362,4;DEXIA CREDIOP SPA;14/07/2016;USCITE CORRENTI - INTERESSI PASSIVI
2016;14374;191,66;DEXIA CREDIOP SPA;14/07/2016;USCITE CORRENTI - INTERESSI PASSIVI
2016;14375;4494,38;DEXIA CREDIOP SPA;14/07/2016;USCITE CORRENTI - INTERESSI PASSIVI
2016;14375;1124,38;DEXIA CREDIOP SPA;14/07/2016;USCITE CORRENTI - INTERESSI PASSIVI
2016;14375;1914,94;DEXIA CREDIOP SPA;14/07/2016;USCITE CORRENTI - INTERESSI PASSIVI
2016;14376;3719,7;DEXIA CREDIOP SPA;14/07/2016;USCITE CORRENTI - INTERESSI PASSIVI
2016;14379;4877,44;DEXIA CREDIOP SPA;14/07/2016;USCITE CORRENTI - INTERESSI PASSIVI
2016;14380;67470,17;DEXIA CREDIOP SPA;14/07/2016;USCITE CORRENTI - INTERESSI PASSIVI
2016;14381;1200;DIVERSI SUSSIDI A MINORI;14/07/2016;USCITE CORRENTI - TRASFERIMENTI CORRENTI
2016;14382;4202,9;TUGGIA, MARCO;14/07/2016;USCITE CORRENTI - ACQUISTO DI BENI E DI SERVIZI
2016;14383;14798,09;MEDITERRANEA DELLE ACQUE SPA;14/07/2016;USCITE CORRENTI - ACQUISTO DI BENI E DI SERVIZI
2016;14384;1972,17;MEDITERRANEA DELLE ACQUE SPA;14/07/2016;USCITE CORRENTI - ACQUISTO DI BENI E DI SERVIZI
2016;14384;8178,95;MEDITERRANEA DELLE ACQUE SPA;14/07/2016;USCITE CORRENTI - ACQUISTO DI BENI E DI SERVIZI
2016;14384;13338,91;MEDITERRANEA DELLE ACQUE SPA;14/07/2016;USCITE CORRENTI - ACQUISTO DI BENI E DI SERVIZI
2016;14384;4848,92;MEDITERRANEA DELLE ACQUE SPA;14/07/2016;USCITE CORRENTI - ACQUISTO DI BENI E DI SERVIZI
2016;14384;11549,78;MEDITERRANEA DELLE ACQUE SPA;14/07/2016;USCITE CORRENTI - ACQUISTO DI BENI E DI SERVIZI
2016;14384;2896,3;MEDITERRANEA DELLE ACQUE SPA;14/07/2016;USCITE CORRENTI - ACQUISTO DI BENI E DI SERVIZI
2016;14384;1961,42;MEDITERRANEA DELLE ACQUE SPA;14/07/2016;USCITE CORRENTI - ACQUISTO DI BENI E DI SERVIZI
2016;14384;10813,64;MEDITERRANEA DELLE ACQUE SPA;14/07/2016;USCITE CORRENTI - ACQUISTO DI BENI E DI SERVIZI
2016;14384;8621,22;MEDITERRANEA DELLE ACQUE SPA;14/07/2016;USCITE CORRENTI - ACQUISTO DI BENI E DI SERVIZI
2016;14384;1171,2;MEDITERRANEA DELLE ACQUE SPA;14/07/2016;USCITE CORRENTI - ACQUISTO DI BENI E DI SERVIZI
2016;14385;3648,69;MEDITERRANEA DELLE ACQUE SPA;14/07/2016;USCITE CORRENTI - ACQUISTO DI BENI E DI SERVIZI
2016;14385;5074,52;MEDITERRANEA DELLE ACQUE SPA;14/07/2016;USCITE CORRENTI - ACQUISTO DI BENI E DI SERVIZI
2016;14386;13629,17;MEDITERRANEA DELLE ACQUE SPA;14/07/2016;USCITE CORRENTI - ACQUISTO DI BENI E DI SERVIZI
2016;14386;3362,07;MEDITERRANEA DELLE ACQUE SPA;14/07/2016;USCITE CORRENTI - ACQUISTO DI BENI E DI SERVIZI
2016;14386;8636,27;MEDITERRANEA DELLE ACQUE SPA;14/07/2016;USCITE CORRENTI - ACQUISTO DI BENI E DI SERVIZI
2016;14386;4871,88;MEDITERRANEA DELLE ACQUE SPA;14/07/2016;USCITE CORRENTI - ACQUISTO DI BENI E DI SERVIZI
2016;14387;259,88;MEDITERRANEA DELLE ACQUE SPA;14/07/2016;USCITE CORRENTI - ACQUISTO DI BENI E DI SERVIZI
2016;14388;6356,21;MEDITERRANEA DELLE ACQUE SPA;14/07/2016;USCITE CORRENTI - ACQUISTO DI BENI E DI SERVIZI
2016;14388;56,24;MEDITERRANEA DELLE ACQUE SPA;14/07/2016;USCITE CORRENTI - ACQUISTO DI BENI E DI SERVIZI
2016;14388;10845,62;MEDITERRANEA DELLE ACQUE SPA;14/07/2016;USCITE CORRENTI - ACQUISTO DI BENI E DI SERVIZI
2016;14388;41,45;MEDITERRANEA DELLE ACQUE SPA;14/07/2016;USCITE CORRENTI - ACQUISTO DI BENI E DI SERVIZI
2016;14388;11216,03;MEDITERRANEA DELLE ACQUE SPA;14/07/2016;USCITE CORRENTI - ACQUISTO DI BENI E DI SERVIZI
2016;14388;364,78;MEDITERRANEA DELLE ACQUE SPA;14/07/2016;USCITE CORRENTI - ACQUISTO DI BENI E DI SERVIZI
2016;14388;9510,07;MEDITERRANEA DELLE ACQUE SPA;14/07/2016;USCITE CORRENTI - ACQUISTO DI BENI E DI SERVIZI
2016;14389;658,73;MEDITERRANEA DELLE ACQUE SPA;14/07/2016;USCITE CORRENTI - ACQUISTO DI BENI E DI SERVIZI
2016;14390;7949,08;MEDITERRANEA DELLE ACQUE SPA;14/07/2016;USCITE CORRENTI - ACQUISTO DI BENI E DI SERVIZI
2016;14391;238782,94;MEDITERRANEA DELLE ACQUE SPA;14/07/2016;USCITE CORRENTI - ACQUISTO DI BENI E DI SERVIZI
2016;14391;238701,9;MEDITERRANEA DELLE ACQUE SPA;14/07/2016;USCITE CORRENTI - ACQUISTO DI BENI E DI SERVIZI
2016;14392;12939,1;MEDITERRANEA DELLE ACQUE SPA;14/07/2016;USCITE CORRENTI - ACQUISTO DI BENI E DI SERVIZI
2016;14393;13283,03;MEDITERRANEA DELLE ACQUE SPA;14/07/2016;USCITE CORRENTI - ACQUISTO DI BENI E DI SERVIZI
2016;14394;107247,94;MEDITERRANEA DELLE ACQUE SPA;14/07/2016;USCITE CORRENTI - ACQUISTO DI BENI E DI SERVIZI
2016;14395;165334,32;MEDITERRANEA DELLE ACQUE SPA;14/07/2016;USCITE CORRENTI - ACQUISTO DI BENI E DI SERVIZI
2016;14395;90502,71;MEDITERRANEA DELLE ACQUE SPA;14/07/2016;USCITE CORRENTI - ACQUISTO DI BENI E DI SERVIZI
2016;14396;344,75;MEDITERRANEA DELLE ACQUE SPA;14/07/2016;USCITE CORRENTI - ACQUISTO DI BENI E DI SERVIZI
2016;14396;179,88;MEDITERRANEA DELLE ACQUE SPA;14/07/2016;USCITE CORRENTI - ACQUISTO DI BENI E DI SERVIZI
2016;14396;792,8;MEDITERRANEA DELLE ACQUE SPA;14/07/2016;USCITE CORRENTI - ACQUISTO DI BENI E DI SERVIZI
2016;14396;146,71;MEDITERRANEA DELLE ACQUE SPA;14/07/2016;USCITE CORRENTI - ACQUISTO DI BENI E DI SERVIZI
2016;14396;64,04;MEDITERRANEA DELLE ACQUE SPA;14/07/2016;USCITE CORRENTI - ACQUISTO DI BENI E DI SERVIZI
2016;14396;257,14;MEDITERRANEA DELLE ACQUE SPA;14/07/2016;USCITE CORRENTI - ACQUISTO DI BENI E DI SERVIZI
2016;14397;44691,55;MEDITERRANEA DELLE ACQUE SPA;14/07/2016;USCITE CORRENTI - ACQUISTO DI BENI E DI SERVIZI
2016;14397;4213,37;MEDITERRANEA DELLE ACQUE SPA;14/07/2016;USCITE CORRENTI - ACQUISTO DI BENI E DI SERVIZI
2016;14397;3074,24;MEDITERRANEA DELLE ACQUE SPA;14/07/2016;USCITE CORRENTI - ACQUISTO DI BENI E DI SERVIZI
2016;14397;1441,7;MEDITERRANEA DELLE ACQUE SPA;14/07/2016;USCITE CORRENTI - ACQUISTO DI BENI E DI SERVIZI
2016;14397;558,57;MEDITERRANEA DELLE ACQUE SPA;14/07/2016;USCITE CORRENTI - ACQUISTO DI BENI E DI SERVIZI
2016;14397;14200,98;MEDITERRANEA DELLE ACQUE SPA;14/07/2016;USCITE CORRENTI - ACQUISTO DI BENI E DI SERVIZI
2016;14398;110152,34;MEDITERRANEA DELLE ACQUE SPA;14/07/2016;USCITE CORRENTI - ACQUISTO DI BENI E DI SERVIZI
2016;14399;68661,23;MEDITERRANEA DELLE ACQUE SPA;14/07/2016;USCITE CORRENTI - ACQUISTO DI BENI E DI SERVIZI
2016;14400;78418,16;MEDITERRANEA DELLE ACQUE SPA;14/07/2016;USCITE CORRENTI - ACQUISTO DI BENI E DI SERVIZI
2016;14401;167665,42;MEDITERRANEA DELLE ACQUE SPA;14/07/2016;USCITE CORRENTI - ACQUISTO DI BENI E DI SERVIZI
2016;14402;3425,54;MEDITERRANEA DELLE ACQUE SPA;14/07/2016;USCITE CORRENTI - ACQUISTO DI BENI E DI SERVIZI
2016;14402;1674,29;MEDITERRANEA DELLE ACQUE SPA;14/07/2016;USCITE CORRENTI - ACQUISTO DI BENI E DI SERVIZI
2016;14402;6385,77;MEDITERRANEA DELLE ACQUE SPA;14/07/2016;USCITE CORRENTI - ACQUISTO DI BENI E DI SERVIZI
2016;14403;14710,57;MEDITERRANEA DELLE ACQUE SPA;14/07/2016;USCITE CORRENTI - ACQUISTO DI BENI E DI SERVIZI
2016;14404;801,01;MEDITERRANEA DELLE ACQUE SPA;14/07/2016;USCITE CORRENTI - ACQUISTO DI BENI E DI SERVIZI
2016;14405;5304,55;MEDITERRANEA DELLE ACQUE SPA;14/07/2016;USCITE CORRENTI - ACQUISTO DI BENI E DI SERVIZI
2016;14405;3034,97;MEDITERRANEA DELLE ACQUE SPA;14/07/2016;USCITE CORRENTI - ACQUISTO DI BENI E DI SERVIZI
2016;14406;18697,71;MEDITERRANEA DELLE ACQUE SPA;14/07/2016;USCITE CORRENTI - ACQUISTO DI BENI E DI SERVIZI
2016;14406;62985,08;MEDITERRANEA DELLE ACQUE SPA;14/07/2016;USCITE CORRENTI - ACQUISTO DI BENI E DI SERVIZI
2016;14407;7866,55;MEDITERRANEA DELLE ACQUE SPA;14/07/2016;USCITE CORRENTI - ACQUISTO DI BENI E DI SERVIZI
2016;14408;9785,84;MEDITERRANEA DELLE ACQUE SPA;14/07/2016;USCITE CORRENTI - ACQUISTO DI BENI E DI SERVIZI
2016;14408;8737,98;MEDITERRANEA DELLE ACQUE SPA;14/07/2016;USCITE CORRENTI - ACQUISTO DI BENI E DI SERVIZI
2016;14408;6139,66;MEDITERRANEA DELLE ACQUE SPA;14/07/2016;USCITE CORRENTI - ACQUISTO DI BENI E DI SERVIZI
2016;14408;6834,41;MEDITERRANEA DELLE ACQUE SPA;14/07/2016;USCITE CORRENTI - ACQUISTO DI BENI E DI SERVIZI
2016;14408;7853,27;MEDITERRANEA DELLE ACQUE SPA;14/07/2016;USCITE CORRENTI - ACQUISTO DI BENI E DI SERVIZI
2016;14410;28627;IST.FIGLIE DIVINO ZELO - ORF. ANTONIANO - CASA ACCOGLIENZA;14/07/2016;USCITE CORRENTI - ACQUISTO DI BENI E DI SERVIZI
2016;14411;1647,96;ASS. A BRACCIA APERTE - ORG. VOLONT.;14/07/2016;USCITE CORRENTI - ACQUISTO DI BENI E DI SERVIZI
2016;14412;154;DIVERSI RIMBORSI -  AMBIENTE E IGIENE;14/07/2016;USCITE CORRENTI - ACQUISTO DI BENI E DI SERVIZI
2016;14413;923,54;IREN MERCATO SPA;14/07/2016;USCITE CORRENTI - ACQUISTO DI BENI E DI SERVIZI
2016;14414;154,75;IREN MERCATO SPA;14/07/2016;USCITE CORRENTI - ACQUISTO DI BENI E DI SERVIZI
2016;14415;2510,73;IREN MERCATO SPA;14/07/2016;USCITE CORRENTI - ACQUISTO DI BENI E DI SERVIZI
2016;14416;2385,98;IREN MERCATO SPA;14/07/2016;USCITE CORRENTI - ACQUISTO DI BENI E DI SERVIZI
2016;14416;375,72;IREN MERCATO SPA;14/07/2016;USCITE CORRENTI - ACQUISTO DI BENI E DI SERVIZI
2016;14416;452,41;IREN MERCATO SPA;14/07/2016;USCITE CORRENTI - ACQUISTO DI BENI E DI SERVIZI
2016;14416;225,43;IREN MERCATO SPA;14/07/2016;USCITE CORRENTI - ACQUISTO DI BENI E DI SERVIZI
2016;14417;8668,41;IREN MERCATO SPA;14/07/2016;USCITE CORRENTI - ACQUISTO DI BENI E DI SERVIZI
2016;14417;166,72;IREN MERCATO SPA;14/07/2016;USCITE CORRENTI - ACQUISTO DI BENI E DI SERVIZI
2016;14417;68061,6;IREN MERCATO SPA;14/07/2016;USCITE CORRENTI - ACQUISTO DI BENI E DI SERVIZI
2016;14417;4064,54;IREN MERCATO SPA;14/07/2016;USCITE CORRENTI - ACQUISTO DI BENI E DI SERVIZI
2016;14417;342,41;IREN MERCATO SPA;14/07/2016;USCITE CORRENTI - ACQUISTO DI BENI E DI SERVIZI
2016;14417;1587,92;IREN MERCATO SPA;14/07/2016;USCITE CORRENTI - ACQUISTO DI BENI E DI SERVIZI
2016;14418;4,68;IREN MERCATO SPA;14/07/2016;USCITE CORRENTI - ACQUISTO DI BENI E DI SERVIZI
2016;14418;108,96;IREN MERCATO SPA;14/07/2016;USCITE CORRENTI - ACQUISTO DI BENI E DI SERVIZI
2016;14418;301,89;IREN MERCATO SPA;14/07/2016;USCITE CORRENTI - ACQUISTO DI BENI E DI SERVIZI
2016;14419;79,8;IREN MERCATO SPA;14/07/2016;USCITE CORRENTI - ACQUISTO DI BENI E DI SERVIZI
2016;14420;1440,04;IREN MERCATO SPA;14/07/2016;USCITE CORRENTI - ACQUISTO DI BENI E DI SERVIZI
2016;14421;12,61;IREN MERCATO SPA;14/07/2016;USCITE CORRENTI - ACQUISTO DI BENI E DI SERVIZI
2016;14421;162,09;IREN MERCATO SPA;14/07/2016;USCITE CORRENTI - ACQUISTO DI BENI E DI SERVIZI
2016;14421;671,04;IREN MERCATO SPA;14/07/2016;USCITE CORRENTI - ACQUISTO DI BENI E DI SERVIZI
2016;14421;342,93;IREN MERCATO SPA;14/07/2016;USCITE CORRENTI - ACQUISTO DI BENI E DI SERVIZI
2016;14421;5999,42;IREN MERCATO SPA;14/07/2016;USCITE CORRENTI - ACQUISTO DI BENI E DI SERVIZI
2016;14422;162,2;IREN MERCATO SPA;14/07/2016;USCITE CORRENTI - ACQUISTO DI BENI E DI SERVIZI
2016;14423;1570,99;IREN MERCATO SPA;14/07/2016;USCITE CORRENTI - ACQUISTO DI BENI E DI SERVIZI
2016;14423;782,48;IREN MERCATO SPA;14/07/2016;USCITE CORRENTI - ACQUISTO DI BENI E DI SERVIZI
2016;14423;1210,99;IREN MERCATO SPA;14/07/2016;USCITE CORRENTI - ACQUISTO DI BENI E DI SERVIZI
2016;14423;120,01;IREN MERCATO SPA;14/07/2016;USCITE CORRENTI - ACQUISTO DI BENI E DI SERVIZI
2016;14423;375,72;IREN MERCATO SPA;14/07/2016;USCITE CORRENTI - ACQUISTO DI BENI E DI SERVIZI
2016;14423;93,27;IREN MERCATO SPA;14/07/2016;USCITE CORRENTI - ACQUISTO DI BENI E DI SERVIZI
2016;14423;48,06;IREN MERCATO SPA;14/07/2016;USCITE CORRENTI - ACQUISTO DI BENI E DI SERVIZI
2016;14423;601,15;IREN MERCATO SPA;14/07/2016;USCITE CORRENTI - ACQUISTO DI BENI E DI SERVIZI
2016;14423;923,82;IREN MERCATO SPA;14/07/2016;USCITE CORRENTI - ACQUISTO DI BENI E DI SERVIZI
2016;14423;120,01;IREN MERCATO SPA;14/07/2016;USCITE CORRENTI - ACQUISTO DI BENI E DI SERVIZI
2016;14423;120,01;IREN MERCATO SPA;14/07/2016;USCITE CORRENTI - ACQUISTO DI BENI E DI SERVIZI
2016;14424;62,87;IREN MERCATO SPA;14/07/2016;USCITE CORRENTI - ACQUISTO DI BENI E DI SERVIZI
2016;14425;833,29;IREN MERCATO SPA;14/07/2016;USCITE CORRENTI - ACQUISTO DI BENI E DI SERVIZI
2016;14426;28638,94;IREN MERCATO SPA;14/07/2016;USCITE CORRENTI - ACQUISTO DI BENI E DI SERVIZI
2016;14426;31,58;IREN MERCATO SPA;14/07/2016;USCITE CORRENTI - ACQUISTO DI BENI E DI SERVIZI
2016;14426;2919,73;IREN MERCATO SPA;14/07/2016;USCITE CORRENTI - ACQUISTO DI BENI E DI SERVIZI
2016;14426;1597;IREN MERCATO SPA;14/07/2016;USCITE CORRENTI - ACQUISTO DI BENI E DI SERVIZI
2016;14426;1088,01;IREN MERCATO SPA;14/07/2016;USCITE CORRENTI - ACQUISTO DI BENI E DI SERVIZI
2016;14427;4183,99;IREN MERCATO SPA;14/07/2016;USCITE CORRENTI - ACQUISTO DI BENI E DI SERVIZI
2016;14428;1124,7;IREN MERCATO SPA;14/07/2016;USCITE CORRENTI - ACQUISTO DI BENI E DI SERVIZI
2016;14428;182,88;IREN MERCATO SPA;14/07/2016;USCITE CORRENTI - ACQUISTO DI BENI E DI SERVIZI
2016;14428;88,75;IREN MERCATO SPA;14/07/2016;USCITE CORRENTI - ACQUISTO DI BENI E DI SERVIZI
2016;14428;526,34;IREN MERCATO SPA;14/07/2016;USCITE CORRENTI - ACQUISTO DI BENI E DI SERVIZI
2016;14428;69,91;IREN MERCATO SPA;14/07/2016;USCITE CORRENTI - ACQUISTO DI BENI E DI SERVIZI
2016;14428;145,74;IREN MERCATO SPA;14/07/2016;USCITE CORRENTI - ACQUISTO DI BENI E DI SERVIZI
2016;14429;2980,8;IREN MERCATO SPA;14/07/2016;USCITE CORRENTI - ACQUISTO DI BENI E DI SERVIZI
2016;14429;1070,63;IREN MERCATO SPA;14/07/2016;USCITE CORRENTI - ACQUISTO DI BENI E DI SERVIZI
2016;14430;89,52;IREN MERCATO SPA;14/07/2016;USCITE CORRENTI - ACQUISTO DI BENI E DI SERVIZI
2016;14431;740,14;IREN MERCATO SPA;14/07/2016;USCITE CORRENTI - ACQUISTO DI BENI E DI SERVIZI
2016;14431;87,06;IREN MERCATO SPA;14/07/2016;USCITE CORRENTI - ACQUISTO DI BENI E DI SERVIZI
2016;14431;2598,92;IREN MERCATO SPA;14/07/2016;USCITE CORRENTI - ACQUISTO DI BENI E DI SERVIZI
2016;14432;130,15;IREN MERCATO SPA;14/07/2016;USCITE CORRENTI - ACQUISTO DI BENI E DI SERVIZI
2016;14433;187,92;IREN MERCATO SPA;14/07/2016;USCITE CORRENTI - ACQUISTO DI BENI E DI SERVIZI
2016;14434;120,46;IREN MERCATO SPA;14/07/2016;USCITE CORRENTI - ACQUISTO DI BENI E DI SERVIZI
2016;14434;6200,21;IREN MERCATO SPA;14/07/2016;USCITE CORRENTI - ACQUISTO DI BENI E DI SERVIZI
2016;14435;636,38;IREN MERCATO SPA;14/07/2016;USCITE CORRENTI - ACQUISTO DI BENI E DI SERVIZI
2016;14436;37,19;IREN MERCATO SPA;14/07/2016;USCITE CORRENTI - ACQUISTO DI BENI E DI SERVIZI
2016;14437;826,58;IREN MERCATO SPA;14/07/2016;USCITE CORRENTI - ACQUISTO DI BENI E DI SERVIZI
2016;14438;956,87;IREN MERCATO SPA;14/07/2016;USCITE CORRENTI - ACQUISTO DI BENI E DI SERVIZI
2016;14439;443,33;IREN MERCATO SPA;14/07/2016;USCITE CORRENTI - ACQUISTO DI BENI E DI SERVIZI
2016;14440;875,32;IREN MERCATO SPA;14/07/2016;USCITE CORRENTI - ACQUISTO DI BENI E DI SERVIZI
2016;14440;281,98;IREN MERCATO SPA;14/07/2016;USCITE CORRENTI - ACQUISTO DI BENI E DI SERVIZI
2016;14441;6314,12;IREN MERCATO SPA;14/07/2016;USCITE CORRENTI - ACQUISTO DI BENI E DI SERVIZI
2016;14442;7171,37;IREN MERCATO SPA;14/07/2016;USCITE CORRENTI - ACQUISTO DI BENI E DI SERVIZI
2016;14442;11465,69;IREN MERCATO SPA;14/07/2016;USCITE CORRENTI - ACQUISTO DI BENI E DI SERVIZI
2016;14443;796,95;IREN MERCATO SPA;14/07/2016;USCITE CORRENTI - ACQUISTO DI BENI E DI SERVIZI
2016;14444;5004,64;IST.FIGLIE DIVINO ZELO - ORF. ANTONIANO - CASA ACCOGLIENZA;14/07/2016;USCITE CORRENTI - ACQUISTO DI BENI E DI SERVIZI
2016;14444;110,36;IST.FIGLIE DIVINO ZELO - ORF. ANTONIANO - CASA ACCOGLIENZA;14/07/2016;USCITE CORRENTI - ACQUISTO DI BENI E DI SERVIZI
2016;14445;4500;FILARMONICA SESTRESE DI C. CORRADI E GHIO S.;14/07/2016;USCITE CORRENTI - TRASFERIMENTI CORRENTI
2016;14447;272686,29;AGENZIA DELLE ENTRATE - UFFICIO GENOVA 1;14/07/2016;USCITE CORRENTI -ALTRE SPESE CORRENTI
2016;14448;589;DIVERSI RIMBORSI -  AMBIENTE E IGIENE;14/07/2016;USCITE CORRENTI - ACQUISTO DI BENI E DI SERVIZI
2016;14449;10914,09;DIVERSI RIMBORSI -  AMBIENTE E IGIENE;14/07/2016;USCITE CORRENTI - ACQUISTO DI BENI E DI SERVIZI
2016;14450;5290,06;DIVERSI RIMBORSI -  AMBIENTE E IGIENE;14/07/2016;USCITE CORRENTI - ACQUISTO DI BENI E DI SERVIZI
2016;14451;6648,51;DIVERSI RIMBORSI -  AMBIENTE E IGIENE;14/07/2016;USCITE CORRENTI - ACQUISTO DI BENI E DI SERVIZI
2016;14452;18300;ENGINEERING INGEGNERIA INFORMATICA SPA;14/07/2016;USCITE CORRENTI - ACQUISTO DI BENI E DI SERVIZI
2016;14452;102865,98;ENGINEERING INGEGNERIA INFORMATICA SPA;14/07/2016;USCITE CORRENTI - ACQUISTO DI BENI E DI SERVIZI
2016;14453;7989,3;DIVERSI RIMBORSI -  AMBIENTE E IGIENE;14/07/2016;USCITE CORRENTI - ACQUISTO DI BENI E DI SERVIZI
2016;14454;6409,2;DIVERSI RIMBORSI -  AMBIENTE E IGIENE;14/07/2016;USCITE CORRENTI - ACQUISTO DI BENI E DI SERVIZI
2016;14456;3062;FONDAZIONE SOMASCHI - ONLUS;14/07/2016;USCITE CORRENTI - ACQUISTO DI BENI E DI SERVIZI
2016;14456;3164;FONDAZIONE SOMASCHI - ONLUS;14/07/2016;USCITE CORRENTI - ACQUISTO DI BENI E DI SERVIZI
2016;26175;27,1;I.N.P.D.A.P - GESTIONE AUTONOMA PRESTAZIONI CREDITIZIE;19/12/2016;USCITE CORRENTI - ACQUISTO DI BENI E DI SERVIZI
2016;26175;7,93;I.N.P.D.A.P - GESTIONE AUTONOMA PRESTAZIONI CREDITIZIE;19/12/2016;USCITE CORRENTI - ACQUISTO DI BENI E DI SERVIZI
2016;26175;8,46;I.N.P.D.A.P - GESTIONE AUTONOMA PRESTAZIONI CREDITIZIE;19/12/2016;USCITE CORRENTI - ACQUISTO DI BENI E DI SERVIZI
2016;26175;6,92;I.N.P.D.A.P - GESTIONE AUTONOMA PRESTAZIONI CREDITIZIE;19/12/2016;USCITE CORRENTI - ACQUISTO DI BENI E DI SERVIZI
2016;13511;3464,3;AZIMUT COOP SOCIALE;01/07/2016;USCITE CORRENTI - ACQUISTO DI BENI E DI SERVIZI
2016;13512;4125,37;MERLO, DANIELE;01/07/2016;USCITE IN CONTO CAPITALE - INVESTIMENTI FISSI LORDI E ACQUISTO DI TERRENI
2016;13512;401,94;MERLO, DANIELE;01/07/2016;USCITE IN CONTO CAPITALE - INVESTIMENTI FISSI LORDI E ACQUISTO DI TERRENI
2016;13513;1923,84;TRAVERSO, ALESSANDRO;01/07/2016;USCITE IN CONTO CAPITALE - INVESTIMENTI FISSI LORDI E ACQUISTO DI TERRENI
2016;13514;440,13;GALA S.P.A.;01/07/2016;USCITE IN CONTO CAPITALE - INVESTIMENTI FISSI LORDI E ACQUISTO DI TERRENI
2016;13515;976,58;GALA S.P.A.;01/07/2016;USCITE IN CONTO CAPITALE - INVESTIMENTI FISSI LORDI E ACQUISTO DI TERRENI
2016;13516;668,55;GALA S.P.A.;01/07/2016;USCITE IN CONTO CAPITALE - INVESTIMENTI FISSI LORDI E ACQUISTO DI TERRENI
2016;13517;658,74;GALA S.P.A.;01/07/2016;USCITE IN CONTO CAPITALE - INVESTIMENTI FISSI LORDI E ACQUISTO DI TERRENI
2016;13518;1327,29;GALA S.P.A.;01/07/2016;USCITE IN CONTO CAPITALE - INVESTIMENTI FISSI LORDI E ACQUISTO DI TERRENI
2016;13519;89,01;GALA S.P.A.;01/07/2016;USCITE IN CONTO CAPITALE - INVESTIMENTI FISSI LORDI E ACQUISTO DI TERRENI
2016;13519;376,89;GALA S.P.A.;01/07/2016;USCITE IN CONTO CAPITALE - INVESTIMENTI FISSI LORDI E ACQUISTO DI TERRENI
2016;13519;202,65;GALA S.P.A.;01/07/2016;USCITE IN CONTO CAPITALE - INVESTIMENTI FISSI LORDI E ACQUISTO DI TERRENI
2016;13520;668,55;GALA S.P.A.;01/07/2016;USCITE IN CONTO CAPITALE - INVESTIMENTI FISSI LORDI E ACQUISTO DI TERRENI
2016;13521;208437,73;SCHIAVO SRL CON UNICO SOCIO;01/07/2016;USCITE IN CONTO CAPITALE - INVESTIMENTI FISSI LORDI E ACQUISTO DI TERRENI
2016;13522;9962,3;SCAVI AUTOTRASPORTI S.R.L.;01/07/2016;USCITE IN CONTO CAPITALE - INVESTIMENTI FISSI LORDI E ACQUISTO DI TERRENI
2016;13523;15648,69;C.E M.E. COSTRUZ. E MANUT. EDILI DI PRUZZO M. & C. SNC;01/07/2016;USCITE IN CONTO CAPITALE - INVESTIMENTI FISSI LORDI E ACQUISTO DI TERRENI
2016;13524;6140,51;CALDERAN & MOSCATELLI S.P.A.;01/07/2016;USCITE IN CONTO CAPITALE - INVESTIMENTI FISSI LORDI E ACQUISTO DI TERRENI
2016;13525;16789,44;CO.S.PE.F. SRL UNIPERSONALE;01/07/2016;USCITE IN CONTO CAPITALE - INVESTIMENTI FISSI LORDI E ACQUISTO DI TERRENI
2016;13526;4221,99;I.L.S.E.T.  S.R.L.;01/07/2016;USCITE IN CONTO CAPITALE - INVESTIMENTI FISSI LORDI E ACQUISTO DI TERRENI
2016;13527;17823,47;C.E M.E. COSTRUZ. E MANUT. EDILI DI PRUZZO M. & C. SNC;01/07/2016;USCITE IN CONTO CAPITALE - INVESTIMENTI FISSI LORDI E ACQUISTO DI TERRENI
2016;13528;4755,03;EDIL DUE SRL;01/07/2016;USCITE IN CONTO CAPITALE - INVESTIMENTI FISSI LORDI E ACQUISTO DI TERRENI
2016;13529;1749,2;GSM COSTRUZIONI SRL;01/07/2016;USCITE IN CONTO CAPITALE - INVESTIMENTI FISSI LORDI E ACQUISTO DI TERRENI
2016;13530;1694,1;SER-METAL SRL;01/07/2016;USCITE IN CONTO CAPITALE - INVESTIMENTI FISSI LORDI E ACQUISTO DI TERRENI
2016;13531;17423,63;TEAS S.R.L.;01/07/2016;USCITE IN CONTO CAPITALE - INVESTIMENTI FISSI LORDI E ACQUISTO DI TERRENI
2016;13532;4131,9;EDIL COLOR SERVICE SNC DI CHINDAMO PIERINO & MANDAGLIO;01/07/2016;USCITE IN CONTO CAPITALE - INVESTIMENTI FISSI LORDI E ACQUISTO DI TERRENI
2016;13533;104,74;C.T.I. SRL;01/07/2016;USCITE IN CONTO CAPITALE - INVESTIMENTI FISSI LORDI E ACQUISTO DI TERRENI
2016;13534;9189,38;M.I.T. SRL;01/07/2016;USCITE IN CONTO CAPITALE - INVESTIMENTI FISSI LORDI E ACQUISTO DI TERRENI
2016;13535;19136,65;VIABIT SRL CON UNICO SOCIO;01/07/2016;USCITE IN CONTO CAPITALE - INVESTIMENTI FISSI LORDI E ACQUISTO DI TERRENI
2016;13536;591,22;POWER DI CONTRI ROBERTO & C. SAS;01/07/2016;USCITE IN CONTO CAPITALE - INVESTIMENTI FISSI LORDI E ACQUISTO DI TERRENI
2016;13537;186,82;IST.POLIGRAFICO E ZECCA DELLO STATO SPA;01/07/2016;USCITE IN CONTO CAPITALE - INVESTIMENTI FISSI LORDI E ACQUISTO DI TERRENI
2016;13538;147,08;GALA S.P.A.;01/07/2016;USCITE IN CONTO CAPITALE - INVESTIMENTI FISSI LORDI E ACQUISTO DI TERRENI
2016;13538;147,08;GALA S.P.A.;01/07/2016;USCITE IN CONTO CAPITALE - INVESTIMENTI FISSI LORDI E ACQUISTO DI TERRENI
2016;13539;147,08;GALA S.P.A.;01/07/2016;USCITE IN CONTO CAPITALE - INVESTIMENTI FISSI LORDI E ACQUISTO DI TERRENI
2016;13539;292;GALA S.P.A.;01/07/2016;USCITE IN CONTO CAPITALE - INVESTIMENTI FISSI LORDI E ACQUISTO DI TERRENI
2016;13539;96,83;GALA S.P.A.;01/07/2016;USCITE IN CONTO CAPITALE - INVESTIMENTI FISSI LORDI E ACQUISTO DI TERRENI
2016;13539;214,85;GALA S.P.A.;01/07/2016;USCITE IN CONTO CAPITALE - INVESTIMENTI FISSI LORDI E ACQUISTO DI TERRENI
2016;13539;144,92;GALA S.P.A.;01/07/2016;USCITE IN CONTO CAPITALE - INVESTIMENTI FISSI LORDI E ACQUISTO DI TERRENI
2016;13540;996,23;SCAVI AUTOTRASPORTI S.R.L.;01/07/2016;USCITE IN CONTO CAPITALE - INVESTIMENTI FISSI LORDI E ACQUISTO DI TERRENI
2016;13541;45856,3;SCHIAVO SRL CON UNICO SOCIO;01/07/2016;USCITE IN CONTO CAPITALE - INVESTIMENTI FISSI LORDI E ACQUISTO DI TERRENI
2016;13542;360;TRAVERSO, ALESSANDRO;01/07/2016;USCITE IN CONTO CAPITALE - INVESTIMENTI FISSI LORDI E ACQUISTO DI TERRENI
2016;13543;690,31;CADEMARTORI, MAURO;01/07/2016;USCITE IN CONTO CAPITALE - INVESTIMENTI FISSI LORDI E ACQUISTO DI TERRENI
2016;13544;847,18;MERLO, DANIELE;01/07/2016;USCITE IN CONTO CAPITALE - INVESTIMENTI FISSI LORDI E ACQUISTO DI TERRENI
2016;13545;1500;STUDIO GHIGINO & ASSOCIATI ARCHITETTI;01/07/2016;USCITE IN CONTO CAPITALE - INVESTIMENTI FISSI LORDI E ACQUISTO DI TERRENI
2016;13546;8012,8;CELLA, ALBERTO;01/07/2016;USCITE CORRENTI -ALTRE SPESE CORRENTI
2016;13547;976;ALGRAPHY SRL;01/07/2016;USCITE CORRENTI - ACQUISTO DI BENI E DI SERVIZI
2016;13548;1630,6;GIULIANO ACCOMAZZI SOC.COOP.SOC.;01/07/2016;USCITE CORRENTI - ACQUISTO DI BENI E DI SERVIZI
2016;13549;4052,48;IL CERCHIO DELLE RELAZIONI SOC. COOP. SOCIALE ONLUS;01/07/2016;USCITE CORRENTI - ACQUISTO DI BENI E DI SERVIZI
2016;13549;3352,52;IL CERCHIO DELLE RELAZIONI SOC. COOP. SOCIALE ONLUS;01/07/2016;USCITE CORRENTI - ACQUISTO DI BENI E DI SERVIZI
2016;13550;3189,9;MIMOSA SOC. COOP. SOC.;01/07/2016;USCITE CORRENTI - ACQUISTO DI BENI E DI SERVIZI
2016;13551;3189,9;MIMOSA SOC. COOP. SOC.;01/07/2016;USCITE CORRENTI - ACQUISTO DI BENI E DI SERVIZI
2016;13552;20076,89;PULIRELLA SOC.COOP SOCIALE A R.L.;01/07/2016;USCITE CORRENTI - ACQUISTO DI BENI E DI SERVIZI
2016;13552;14559,72;PULIRELLA SOC.COOP SOCIALE A R.L.;01/07/2016;USCITE CORRENTI - ACQUISTO DI BENI E DI SERVIZI
2016;13553;5672264,3;A.M.T. AZ.MOBILITA' E TRASPORTI SPA;01/07/2016;USCITE CORRENTI - ACQUISTO DI BENI E DI SERVIZI
2016;13553;358835,14;A.M.T. AZ.MOBILITA' E TRASPORTI SPA;01/07/2016;USCITE CORRENTI - ACQUISTO DI BENI E DI SERVIZI
2016;13555;130,05;VETRERIA MURGANTI ITALO DI MURGANTI GIOVANNI IND,;01/07/2016;USCITE CORRENTI - ACQUISTO DI BENI E DI SERVIZI
2016;13555;437,53;VETRERIA MURGANTI ITALO DI MURGANTI GIOVANNI IND,;01/07/2016;USCITE CORRENTI - ACQUISTO DI BENI E DI SERVIZI
2016;13555;160,13;VETRERIA MURGANTI ITALO DI MURGANTI GIOVANNI IND,;01/07/2016;USCITE CORRENTI - ACQUISTO DI BENI E DI SERVIZI
2016;13555;449,39;VETRERIA MURGANTI ITALO DI MURGANTI GIOVANNI IND,;01/07/2016;USCITE CORRENTI - ACQUISTO DI BENI E DI SERVIZI
2016;13555;289,29;VETRERIA MURGANTI ITALO DI MURGANTI GIOVANNI IND,;01/07/2016;USCITE CORRENTI - ACQUISTO DI BENI E DI SERVIZI
2016;13555;237,78;VETRERIA MURGANTI ITALO DI MURGANTI GIOVANNI IND,;01/07/2016;USCITE CORRENTI - ACQUISTO DI BENI E DI SERVIZI
2016;13555;466,69;VETRERIA MURGANTI ITALO DI MURGANTI GIOVANNI IND,;01/07/2016;USCITE CORRENTI - ACQUISTO DI BENI E DI SERVIZI
2016;13555;262,03;VETRERIA MURGANTI ITALO DI MURGANTI GIOVANNI IND,;01/07/2016;USCITE CORRENTI - ACQUISTO DI BENI E DI SERVIZI
2016;13555;477,75;VETRERIA MURGANTI ITALO DI MURGANTI GIOVANNI IND,;01/07/2016;USCITE CORRENTI - ACQUISTO DI BENI E DI SERVIZI
2016;13555;235,7;VETRERIA MURGANTI ITALO DI MURGANTI GIOVANNI IND,;01/07/2016;USCITE CORRENTI - ACQUISTO DI BENI E DI SERVIZI
2016;13556;6258,08;IL CERCHIO DELLE RELAZIONI SOC. COOP. SOCIALE ONLUS;01/07/2016;USCITE CORRENTI - ACQUISTO DI BENI E DI SERVIZI
2016;13557;522,78;PROVINCIA REL.S.BENEDETTO-PICC.COTT.DON ORIONE;01/07/2016;USCITE CORRENTI - ACQUISTO DI BENI E DI SERVIZI
2016;13558;3189,9;MIMOSA SOC. COOP. SOC.;01/07/2016;USCITE CORRENTI - ACQUISTO DI BENI E DI SERVIZI
2016;13558;3189,9;MIMOSA SOC. COOP. SOC.;01/07/2016;USCITE CORRENTI - ACQUISTO DI BENI E DI SERVIZI
2016;13559;99;CAIROCAR SRL;01/07/2016;USCITE CORRENTI - ACQUISTO DI BENI E DI SERVIZI
2016;13560;21294,53;A.P.L. AGENZIA PUBBLICITARIA LIGURE COOP.SOC.;01/07/2016;USCITE CORRENTI - ACQUISTO DI BENI E DI SERVIZI
2016;13561;3189,9;MIMOSA SOC. COOP. SOC.;01/07/2016;USCITE CORRENTI - ACQUISTO DI BENI E DI SERVIZI
2016;13561;3189,9;MIMOSA SOC. COOP. SOC.;01/07/2016;USCITE CORRENTI - ACQUISTO DI BENI E DI SERVIZI
2016;13562;253;CAIROCAR SRL;01/07/2016;USCITE CORRENTI - ACQUISTO DI BENI E DI SERVIZI
2016;13562;181,5;CAIROCAR SRL;01/07/2016;USCITE CORRENTI - ACQUISTO DI BENI E DI SERVIZI
2016;13562;1875,5;CAIROCAR SRL;01/07/2016;USCITE CORRENTI - ACQUISTO DI BENI E DI SERVIZI
2016;13563;20321,7;PULIRELLA SOC.COOP SOCIALE A R.L.;01/07/2016;USCITE CORRENTI - ACQUISTO DI BENI E DI SERVIZI
2016;13564;42,7;PULIRELLA SOC.COOP SOCIALE A R.L.;01/07/2016;USCITE CORRENTI - ACQUISTO DI BENI E DI SERVIZI
2016;13565;522,78;VILLA SAN FORTUNATO SRL;01/07/2016;USCITE CORRENTI - ACQUISTO DI BENI E DI SERVIZI
2016;13566;6500;ALGRAPHY SRL;01/07/2016;USCITE CORRENTI - ACQUISTO DI BENI E DI SERVIZI
2016;13567;3426,54;CRESCERE INSIEME SOC.COOP. SOCIALE;01/07/2016;USCITE CORRENTI - ACQUISTO DI BENI E DI SERVIZI
2016;13568;1180;NUOVA P.BOZZI ABBONAMENTI SNC DI MANGINI CARLO E NICORA PATR;01/07/2016;USCITE CORRENTI - ACQUISTO DI BENI E DI SERVIZI
2016;14457;24400;I.R.E. SPA - INFRASTRUTTURE RECUPERO ENERGIA AGENZIA;14/07/2016;USCITE IN CONTO CAPITALE - INVESTIMENTI FISSI LORDI E ACQUISTO DI TERRENI
2016;14458;270936,15;AZIENDA SERVIZI TERRITORIALI GENOVA SPA - ASTER;14/07/2016;USCITE IN CONTO CAPITALE - INVESTIMENTI FISSI LORDI E ACQUISTO DI TERRENI
2016;14459;2115;DIVERSI SUSSIDI A CITTADINI BISOGNOSI;14/07/2016;USCITE CORRENTI - TRASFERIMENTI CORRENTI
2016;14460;1763;DIVERSI CONTRIBUTI PER AFFIDI ANZIANI;14/07/2016;USCITE CORRENTI - TRASFERIMENTI CORRENTI
2016;14461;1300;DIVERSI SUSSIDI A CITTADINI BISOGNOSI;14/07/2016;USCITE CORRENTI - TRASFERIMENTI CORRENTI
2016;14462;38,34;ASS.MASSOERO 2000 ONLUS;14/07/2016;USCITE CORRENTI - ACQUISTO DI BENI E DI SERVIZI
2016;14463;1531,66;ASS.MASSOERO 2000 ONLUS;14/07/2016;USCITE CORRENTI - ACQUISTO DI BENI E DI SERVIZI
2016;14464;1783,52;C.RE.S.S. CONSORZIO REGIONALE SERVIZI SOCIALI  SOC. COOP.SOC;14/07/2016;USCITE CORRENTI - ACQUISTO DI BENI E DI SERVIZI
2016;14465;17482,41;C.RE.S.S. CONSORZIO REGIONALE SERVIZI SOCIALI  SOC. COOP.SOC;14/07/2016;USCITE CORRENTI - ACQUISTO DI BENI E DI SERVIZI
2016;14466;24769,64;DIVERSI SUSSIDI A MINORI;14/07/2016;USCITE CORRENTI - TRASFERIMENTI CORRENTI
2016;14468;352,35;AUTORITA' PORTUALE DI GENOVA;14/07/2016;USCITE CORRENTI - ACQUISTO DI BENI E DI SERVIZI
2016;14469;1769;DELTA PROGETTI 2000 SRL;14/07/2016;USCITE CORRENTI - ACQUISTO DI BENI E DI SERVIZI
2016;14470;352,35;AUTORITA' PORTUALE DI GENOVA;14/07/2016;USCITE CORRENTI - ACQUISTO DI BENI E DI SERVIZI
2016;14471;1451;FONDAZIONE IST.CONTUBERNIO D'ALBERTIS PER LE SORDOMUTE;14/07/2016;USCITE CORRENTI - ACQUISTO DI BENI E DI SERVIZI
2016;14472;112,5;AGENZIA GENER.GENERALI ITALIA-DIVISIONE INA ASSIT.GE CENTRO;14/07/2016;USCITE CORRENTI - ACQUISTO DI BENI E DI SERVIZI
2016;14472;246;AGENZIA GENER.GENERALI ITALIA-DIVISIONE INA ASSIT.GE CENTRO;14/07/2016;USCITE CORRENTI - ACQUISTO DI BENI E DI SERVIZI
2016;14472;103,29;AGENZIA GENER.GENERALI ITALIA-DIVISIONE INA ASSIT.GE CENTRO;14/07/2016;USCITE CORRENTI - ACQUISTO DI BENI E DI SERVIZI
2016;14473;3219,23;LANZA DEL VASTO SOC.COOP. SOCIALE ONLUS;14/07/2016;USCITE CORRENTI - ACQUISTO DI BENI E DI SERVIZI
2016;14474;12579;DIVERSI CONTRIBUTI EX DGC 722/97 - 1443/97;14/07/2016;USCITE CORRENTI - TRASFERIMENTI CORRENTI
2016;14475;3520;CAIROCAR SRL;14/07/2016;USCITE CORRENTI - ACQUISTO DI BENI E DI SERVIZI
2016;14476;582,15;IL CALAMAIO DI BAFFICO CLAUDIO INDIVID.;14/07/2016;USCITE CORRENTI - ACQUISTO DI BENI E DI SERVIZI
2016;14477;250;COORDINAMENTO LIGURE DONNE LATINO AMERICANE;14/07/2016;USCITE CORRENTI - ACQUISTO DI BENI E DI SERVIZI
2016;14478;400;ASS.CULT.BADABUM;14/07/2016;USCITE CORRENTI - ACQUISTO DI BENI E DI SERVIZI
2016;14479;5978;TIRRENIA SRL;14/07/2016;USCITE IN CONTO CAPITALE - INVESTIMENTI FISSI LORDI E ACQUISTO DI TERRENI
2016;14480;1049,33;VERNAZZA AUTOGRU' SRL;14/07/2016;USCITE CORRENTI - ACQUISTO DI BENI E DI SERVIZI
2016;14480;671,83;VERNAZZA AUTOGRU' SRL;14/07/2016;USCITE CORRENTI - ACQUISTO DI BENI E DI SERVIZI
2016;14480;571,4;VERNAZZA AUTOGRU' SRL;14/07/2016;USCITE CORRENTI - ACQUISTO DI BENI E DI SERVIZI
2016;14480;347,31;VERNAZZA AUTOGRU' SRL;14/07/2016;USCITE CORRENTI - ACQUISTO DI BENI E DI SERVIZI
2016;14481;1942,24;EUREL INFORMATICA SPA;14/07/2016;USCITE CORRENTI - ACQUISTO DI BENI E DI SERVIZI
2016;14482;1942,24;EUREL INFORMATICA SPA;14/07/2016;USCITE CORRENTI - ACQUISTO DI BENI E DI SERVIZI
2016;14483;215,94;A.M.I.U.  GENOVA SPA;14/07/2016;USCITE CORRENTI - ACQUISTO DI BENI E DI SERVIZI
2016;14484;9900;GE.AL SRL;14/07/2016;USCITE CORRENTI - ACQUISTO DI BENI E DI SERVIZI
2016;14485;680,4;AGORA'CONSORZIO SOCIALE SOC.COOP A R.L.(SERV.PER MINORI E ST;14/07/2016;USCITE CORRENTI - ACQUISTO DI BENI E DI SERVIZI
2016;14485;1356,6;AGORA'CONSORZIO SOCIALE SOC.COOP A R.L.(SERV.PER MINORI E ST;14/07/2016;USCITE CORRENTI - ACQUISTO DI BENI E DI SERVIZI
2016;14485;1144,5;AGORA'CONSORZIO SOCIALE SOC.COOP A R.L.(SERV.PER MINORI E ST;14/07/2016;USCITE CORRENTI - ACQUISTO DI BENI E DI SERVIZI
2016;14485;721,35;AGORA'CONSORZIO SOCIALE SOC.COOP A R.L.(SERV.PER MINORI E ST;14/07/2016;USCITE CORRENTI - ACQUISTO DI BENI E DI SERVIZI
2016;14485;1278,9;AGORA'CONSORZIO SOCIALE SOC.COOP A R.L.(SERV.PER MINORI E ST;14/07/2016;USCITE CORRENTI - ACQUISTO DI BENI E DI SERVIZI
2016;14485;1144,5;AGORA'CONSORZIO SOCIALE SOC.COOP A R.L.(SERV.PER MINORI E ST;14/07/2016;USCITE CORRENTI - ACQUISTO DI BENI E DI SERVIZI
2016;14486;102,36;PISTONE GIROLAMO SRL;14/07/2016;USCITE CORRENTI - ACQUISTO DI BENI E DI SERVIZI
2016;14487;2793;PATRONATO S.VINCENZO DE PAOLI;14/07/2016;USCITE CORRENTI - ACQUISTO DI BENI E DI SERVIZI
2016;14488;6822;FONDAZIONE  ENTE MORALE  SORRISO FRANCESCANO;14/07/2016;USCITE CORRENTI - ACQUISTO DI BENI E DI SERVIZI
2016;14489;236,7;SICURITALIA SPA;14/07/2016;USCITE CORRENTI - ACQUISTO DI BENI E DI SERVIZI
2016;14489;111,68;SICURITALIA SPA;14/07/2016;USCITE CORRENTI - ACQUISTO DI BENI E DI SERVIZI
2016;14489;78,9;SICURITALIA SPA;14/07/2016;USCITE CORRENTI - ACQUISTO DI BENI E DI SERVIZI
2016;14489;78,9;SICURITALIA SPA;14/07/2016;USCITE CORRENTI - ACQUISTO DI BENI E DI SERVIZI
2016;14489;78,9;SICURITALIA SPA;14/07/2016;USCITE CORRENTI - ACQUISTO DI BENI E DI SERVIZI
2016;14489;78,9;SICURITALIA SPA;14/07/2016;USCITE CORRENTI - ACQUISTO DI BENI E DI SERVIZI
2016;14489;78,9;SICURITALIA SPA;14/07/2016;USCITE CORRENTI - ACQUISTO DI BENI E DI SERVIZI
2016;14489;78,9;SICURITALIA SPA;14/07/2016;USCITE CORRENTI - ACQUISTO DI BENI E DI SERVIZI
2016;14489;78,9;SICURITALIA SPA;14/07/2016;USCITE CORRENTI - ACQUISTO DI BENI E DI SERVIZI
2016;14489;78,9;SICURITALIA SPA;14/07/2016;USCITE CORRENTI - ACQUISTO DI BENI E DI SERVIZI
2016;14489;78,9;SICURITALIA SPA;14/07/2016;USCITE CORRENTI - ACQUISTO DI BENI E DI SERVIZI
2016;14489;78,9;SICURITALIA SPA;14/07/2016;USCITE CORRENTI - ACQUISTO DI BENI E DI SERVIZI
2016;14489;78,9;SICURITALIA SPA;14/07/2016;USCITE CORRENTI - ACQUISTO DI BENI E DI SERVIZI
2016;14489;78,9;SICURITALIA SPA;14/07/2016;USCITE CORRENTI - ACQUISTO DI BENI E DI SERVIZI
2016;14489;78,9;SICURITALIA SPA;14/07/2016;USCITE CORRENTI - ACQUISTO DI BENI E DI SERVIZI
2016;14489;78,9;SICURITALIA SPA;14/07/2016;USCITE CORRENTI - ACQUISTO DI BENI E DI SERVIZI
2016;14490;4430,62;ASS.NUOVO BUON PASTORE - ORG. DI VOLONT.;14/07/2016;USCITE CORRENTI - ACQUISTO DI BENI E DI SERVIZI
2016;14491;11474,6;C.S.T.A. COOP. SOCIALE A R. L. ONLUS;14/07/2016;USCITE CORRENTI - ACQUISTO DI BENI E DI SERVIZI
2016;14492;200;AUSER LIGURIA E GENOVA - ORG. VOLONT.;14/07/2016;USCITE CORRENTI - TRASFERIMENTI CORRENTI
2016;14493;4695,01;L' AURORA SOC.COOP.SOC. ONLUS;14/07/2016;USCITE CORRENTI - ACQUISTO DI BENI E DI SERVIZI
2016;14494;9580,7;FONDAZIONE  ENTE MORALE  SORRISO FRANCESCANO;14/07/2016;USCITE CORRENTI - ACQUISTO DI BENI E DI SERVIZI
2016;14494;9897,99;FONDAZIONE  ENTE MORALE  SORRISO FRANCESCANO;14/07/2016;USCITE CORRENTI - ACQUISTO DI BENI E DI SERVIZI
2016;14495;851,56;MAC IN SRL;14/07/2016;USCITE CORRENTI - ACQUISTO DI BENI E DI SERVIZI
2016;14496;780,8;NAMIRIAL S.P.A.;14/07/2016;USCITE CORRENTI - ACQUISTO DI BENI E DI SERVIZI
2016;14497;871,42;BECHTLE DIRECT SRL CON UNICO SOCIO;14/07/2016;USCITE CORRENTI - ACQUISTO DI BENI E DI SERVIZI
2016;14498;27490,87;VILLA PERLA SOCIETA' COOP SOCIALE A R.L. ONLUS;14/07/2016;USCITE CORRENTI - ACQUISTO DI BENI E DI SERVIZI
2016;14499;120;TECNOMOTO SNC DI MUZIO M. E GALLO W.;14/07/2016;USCITE CORRENTI - ACQUISTO DI BENI E DI SERVIZI
2016;14499;164,7;TECNOMOTO SNC DI MUZIO M. E GALLO W.;14/07/2016;USCITE CORRENTI - ACQUISTO DI BENI E DI SERVIZI
2016;14499;140;TECNOMOTO SNC DI MUZIO M. E GALLO W.;14/07/2016;USCITE CORRENTI - ACQUISTO DI BENI E DI SERVIZI
2016;14499;146,4;TECNOMOTO SNC DI MUZIO M. E GALLO W.;14/07/2016;USCITE CORRENTI - ACQUISTO DI BENI E DI SERVIZI
2016;14499;39,9;TECNOMOTO SNC DI MUZIO M. E GALLO W.;14/07/2016;USCITE CORRENTI - ACQUISTO DI BENI E DI SERVIZI
2016;14499;149,2;TECNOMOTO SNC DI MUZIO M. E GALLO W.;14/07/2016;USCITE CORRENTI - ACQUISTO DI BENI E DI SERVIZI
2016;14499;123,22;TECNOMOTO SNC DI MUZIO M. E GALLO W.;14/07/2016;USCITE CORRENTI - ACQUISTO DI BENI E DI SERVIZI
2016;14499;209,45;TECNOMOTO SNC DI MUZIO M. E GALLO W.;14/07/2016;USCITE CORRENTI - ACQUISTO DI BENI E DI SERVIZI
2016;14500;10881,09;L'ALTRO SOLE SOC. COOP. SOCIALE;14/07/2016;USCITE CORRENTI - ACQUISTO DI BENI E DI SERVIZI
2016;14501;8421,67;COOP.SOC. IL SENTIERO DEL MOVIMENTO RAGAZZI SCRL ONLUS;14/07/2016;USCITE CORRENTI - ACQUISTO DI BENI E DI SERVIZI
2016;14502;3194,9;FONDAZIONE  ENTE MORALE  SORRISO FRANCESCANO;14/07/2016;USCITE CORRENTI - ACQUISTO DI BENI E DI SERVIZI
2016;14502;3299,33;FONDAZIONE  ENTE MORALE  SORRISO FRANCESCANO;14/07/2016;USCITE CORRENTI - ACQUISTO DI BENI E DI SERVIZI
2016;14503;47,42;FASTWEB SPA;15/07/2016;USCITE CORRENTI - ACQUISTO DI BENI E DI SERVIZI
2016;14503;16,97;FASTWEB SPA;15/07/2016;USCITE CORRENTI - ACQUISTO DI BENI E DI SERVIZI
2016;14504;397,55;FASTWEB SPA;15/07/2016;USCITE CORRENTI - ACQUISTO DI BENI E DI SERVIZI
2016;14504;281,81;FASTWEB SPA;15/07/2016;USCITE CORRENTI - ACQUISTO DI BENI E DI SERVIZI
2016;14504;710,95;FASTWEB SPA;15/07/2016;USCITE CORRENTI - ACQUISTO DI BENI E DI SERVIZI
2016;14504;1026;FASTWEB SPA;15/07/2016;USCITE CORRENTI - ACQUISTO DI BENI E DI SERVIZI
2016;14504;196,45;FASTWEB SPA;15/07/2016;USCITE CORRENTI - ACQUISTO DI BENI E DI SERVIZI
2016;14504;3,36;FASTWEB SPA;15/07/2016;USCITE CORRENTI - ACQUISTO DI BENI E DI SERVIZI
2016;14504;74,55;FASTWEB SPA;15/07/2016;USCITE CORRENTI - ACQUISTO DI BENI E DI SERVIZI
2016;14504;77,95;FASTWEB SPA;15/07/2016;USCITE CORRENTI - ACQUISTO DI BENI E DI SERVIZI
2016;14504;995,46;FASTWEB SPA;15/07/2016;USCITE CORRENTI - ACQUISTO DI BENI E DI SERVIZI
2016;14504;338,75;FASTWEB SPA;15/07/2016;USCITE CORRENTI - ACQUISTO DI BENI E DI SERVIZI
2016;14504;138,01;FASTWEB SPA;15/07/2016;USCITE CORRENTI - ACQUISTO DI BENI E DI SERVIZI
2016;14504;1036,74;FASTWEB SPA;15/07/2016;USCITE CORRENTI - ACQUISTO DI BENI E DI SERVIZI
2016;14505;389,51;FASTWEB SPA;15/07/2016;USCITE CORRENTI - ACQUISTO DI BENI E DI SERVIZI
2016;14505;122,15;FASTWEB SPA;15/07/2016;USCITE CORRENTI - ACQUISTO DI BENI E DI SERVIZI
2016;14505;299,13;FASTWEB SPA;15/07/2016;USCITE CORRENTI - ACQUISTO DI BENI E DI SERVIZI
2016;14505;117,53;FASTWEB SPA;15/07/2016;USCITE CORRENTI - ACQUISTO DI BENI E DI SERVIZI
2016;14505;132,32;FASTWEB SPA;15/07/2016;USCITE CORRENTI - ACQUISTO DI BENI E DI SERVIZI
2016;14505;176,13;FASTWEB SPA;15/07/2016;USCITE CORRENTI - ACQUISTO DI BENI E DI SERVIZI
2016;14505;1567,85;FASTWEB SPA;15/07/2016;USCITE CORRENTI - ACQUISTO DI BENI E DI SERVIZI
2016;14505;394,73;FASTWEB SPA;15/07/2016;USCITE CORRENTI - ACQUISTO DI BENI E DI SERVIZI
2016;14505;885,06;FASTWEB SPA;15/07/2016;USCITE CORRENTI - ACQUISTO DI BENI E DI SERVIZI
2016;14506;175,43;FASTWEB SPA;15/07/2016;USCITE CORRENTI - ACQUISTO DI BENI E DI SERVIZI
2016;14506;223,6;FASTWEB SPA;15/07/2016;USCITE CORRENTI - ACQUISTO DI BENI E DI SERVIZI
2016;14506;84,72;FASTWEB SPA;15/07/2016;USCITE CORRENTI - ACQUISTO DI BENI E DI SERVIZI
2016;14507;6,72;FASTWEB SPA;15/07/2016;USCITE CORRENTI - ACQUISTO DI BENI E DI SERVIZI
2016;14507;67,74;FASTWEB SPA;15/07/2016;USCITE CORRENTI - ACQUISTO DI BENI E DI SERVIZI
2016;14507;94,87;FASTWEB SPA;15/07/2016;USCITE CORRENTI - ACQUISTO DI BENI E DI SERVIZI
2016;14507;23,65;FASTWEB SPA;15/07/2016;USCITE CORRENTI - ACQUISTO DI BENI E DI SERVIZI
2016;14508;57,62;FASTWEB SPA;15/07/2016;USCITE CORRENTI - ACQUISTO DI BENI E DI SERVIZI
2016;14508;57,62;FASTWEB SPA;15/07/2016;USCITE CORRENTI - ACQUISTO DI BENI E DI SERVIZI
2016;14508;74,43;FASTWEB SPA;15/07/2016;USCITE CORRENTI - ACQUISTO DI BENI E DI SERVIZI
2016;14508;84,68;FASTWEB SPA;15/07/2016;USCITE CORRENTI - ACQUISTO DI BENI E DI SERVIZI
2016;14508;199,88;FASTWEB SPA;15/07/2016;USCITE CORRENTI - ACQUISTO DI BENI E DI SERVIZI
2016;14508;127,98;FASTWEB SPA;15/07/2016;USCITE CORRENTI - ACQUISTO DI BENI E DI SERVIZI
2016;14508;260,79;FASTWEB SPA;15/07/2016;USCITE CORRENTI - ACQUISTO DI BENI E DI SERVIZI
2016;14509;13,51;FASTWEB SPA;15/07/2016;USCITE CORRENTI - ACQUISTO DI BENI E DI SERVIZI
2016;14509;3,36;FASTWEB SPA;15/07/2016;USCITE CORRENTI - ACQUISTO DI BENI E DI SERVIZI
2016;14509;6,77;FASTWEB SPA;15/07/2016;USCITE CORRENTI - ACQUISTO DI BENI E DI SERVIZI
2016;14509;3,36;FASTWEB SPA;15/07/2016;USCITE CORRENTI - ACQUISTO DI BENI E DI SERVIZI
2016;14510;142,26;FASTWEB SPA;15/07/2016;USCITE CORRENTI - ACQUISTO DI BENI E DI SERVIZI
2016;14511;60,98;FASTWEB SPA;15/07/2016;USCITE CORRENTI - ACQUISTO DI BENI E DI SERVIZI
2016;14511;214,25;FASTWEB SPA;15/07/2016;USCITE CORRENTI - ACQUISTO DI BENI E DI SERVIZI
2016;14511;532,41;FASTWEB SPA;15/07/2016;USCITE CORRENTI - ACQUISTO DI BENI E DI SERVIZI
2016;14511;202,54;FASTWEB SPA;15/07/2016;USCITE CORRENTI - ACQUISTO DI BENI E DI SERVIZI
2016;14511;33,82;FASTWEB SPA;15/07/2016;USCITE CORRENTI - ACQUISTO DI BENI E DI SERVIZI
2016;14511;131,33;FASTWEB SPA;15/07/2016;USCITE CORRENTI - ACQUISTO DI BENI E DI SERVIZI
2016;14511;47,42;FASTWEB SPA;15/07/2016;USCITE CORRENTI - ACQUISTO DI BENI E DI SERVIZI
2016;14511;10,17;FASTWEB SPA;15/07/2016;USCITE CORRENTI - ACQUISTO DI BENI E DI SERVIZI
2016;14511;145,8;FASTWEB SPA;15/07/2016;USCITE CORRENTI - ACQUISTO DI BENI E DI SERVIZI
2016;14511;6,77;FASTWEB SPA;15/07/2016;USCITE CORRENTI - ACQUISTO DI BENI E DI SERVIZI
2016;14511;3,36;FASTWEB SPA;15/07/2016;USCITE CORRENTI - ACQUISTO DI BENI E DI SERVIZI
2016;14511;3,36;FASTWEB SPA;15/07/2016;USCITE CORRENTI - ACQUISTO DI BENI E DI SERVIZI
2016;14512;20,31;FASTWEB SPA;15/07/2016;USCITE CORRENTI - ACQUISTO DI BENI E DI SERVIZI
2016;14513;115,18;FASTWEB SPA;15/07/2016;USCITE CORRENTI - ACQUISTO DI BENI E DI SERVIZI
2016;14513;16,97;FASTWEB SPA;15/07/2016;USCITE CORRENTI - ACQUISTO DI BENI E DI SERVIZI
2016;14514;59,67;FASTWEB SPA;15/07/2016;USCITE CORRENTI - ACQUISTO DI BENI E DI SERVIZI
2016;14514;33,82;FASTWEB SPA;15/07/2016;USCITE CORRENTI - ACQUISTO DI BENI E DI SERVIZI
2016;14514;47,42;FASTWEB SPA;15/07/2016;USCITE CORRENTI - ACQUISTO DI BENI E DI SERVIZI
2016;14514;23,65;FASTWEB SPA;15/07/2016;USCITE CORRENTI - ACQUISTO DI BENI E DI SERVIZI
2016;14514;64,34;FASTWEB SPA;15/07/2016;USCITE CORRENTI - ACQUISTO DI BENI E DI SERVIZI
2016;14514;6,77;FASTWEB SPA;15/07/2016;USCITE CORRENTI - ACQUISTO DI BENI E DI SERVIZI
2016;14514;3,36;FASTWEB SPA;15/07/2016;USCITE CORRENTI - ACQUISTO DI BENI E DI SERVIZI
2016;14514;37,26;FASTWEB SPA;15/07/2016;USCITE CORRENTI - ACQUISTO DI BENI E DI SERVIZI
2016;14514;122,15;FASTWEB SPA;15/07/2016;USCITE CORRENTI - ACQUISTO DI BENI E DI SERVIZI
2016;14514;27,13;FASTWEB SPA;15/07/2016;USCITE CORRENTI - ACQUISTO DI BENI E DI SERVIZI
2016;14514;10,17;FASTWEB SPA;15/07/2016;USCITE CORRENTI - ACQUISTO DI BENI E DI SERVIZI
2016;14515;1086,09;FASTWEB SPA;15/07/2016;USCITE CORRENTI - ACQUISTO DI BENI E DI SERVIZI
2016;14516;54,14;FASTWEB SPA;15/07/2016;USCITE CORRENTI - ACQUISTO DI BENI E DI SERVIZI
2016;14517;694,5;FASTWEB SPA;15/07/2016;USCITE CORRENTI - ACQUISTO DI BENI E DI SERVIZI
2016;14517;83,82;FASTWEB SPA;15/07/2016;USCITE CORRENTI - ACQUISTO DI BENI E DI SERVIZI
2016;14517;40,69;FASTWEB SPA;15/07/2016;USCITE CORRENTI - ACQUISTO DI BENI E DI SERVIZI
2016;14517;511,38;FASTWEB SPA;15/07/2016;USCITE CORRENTI - ACQUISTO DI BENI E DI SERVIZI
2016;14517;40,62;FASTWEB SPA;15/07/2016;USCITE CORRENTI - ACQUISTO DI BENI E DI SERVIZI
2016;14517;144,72;FASTWEB SPA;15/07/2016;USCITE CORRENTI - ACQUISTO DI BENI E DI SERVIZI
2016;14517;33,82;FASTWEB SPA;15/07/2016;USCITE CORRENTI - ACQUISTO DI BENI E DI SERVIZI
2016;14517;27,13;FASTWEB SPA;15/07/2016;USCITE CORRENTI - ACQUISTO DI BENI E DI SERVIZI
2016;14517;44,08;FASTWEB SPA;15/07/2016;USCITE CORRENTI - ACQUISTO DI BENI E DI SERVIZI
2016;14517;30,49;FASTWEB SPA;15/07/2016;USCITE CORRENTI - ACQUISTO DI BENI E DI SERVIZI
2016;14517;308,29;FASTWEB SPA;15/07/2016;USCITE CORRENTI - ACQUISTO DI BENI E DI SERVIZI
2016;14517;27,13;FASTWEB SPA;15/07/2016;USCITE CORRENTI - ACQUISTO DI BENI E DI SERVIZI
2016;14518;508,14;FASTWEB SPA;15/07/2016;USCITE CORRENTI - ACQUISTO DI BENI E DI SERVIZI
2016;14518;27,13;FASTWEB SPA;15/07/2016;USCITE CORRENTI - ACQUISTO DI BENI E DI SERVIZI
2016;14518;50,78;FASTWEB SPA;15/07/2016;USCITE CORRENTI - ACQUISTO DI BENI E DI SERVIZI
2016;14518;10,17;FASTWEB SPA;15/07/2016;USCITE CORRENTI - ACQUISTO DI BENI E DI SERVIZI
2016;14518;40,69;FASTWEB SPA;15/07/2016;USCITE CORRENTI - ACQUISTO DI BENI E DI SERVIZI
2016;14518;193,22;FASTWEB SPA;15/07/2016;USCITE CORRENTI - ACQUISTO DI BENI E DI SERVIZI
2016;14518;57,62;FASTWEB SPA;15/07/2016;USCITE CORRENTI - ACQUISTO DI BENI E DI SERVIZI
2016;14518;443,76;FASTWEB SPA;15/07/2016;USCITE CORRENTI - ACQUISTO DI BENI E DI SERVIZI
2016;14518;16,97;FASTWEB SPA;15/07/2016;USCITE CORRENTI - ACQUISTO DI BENI E DI SERVIZI
2016;14518;118,55;FASTWEB SPA;15/07/2016;USCITE CORRENTI - ACQUISTO DI BENI E DI SERVIZI
2016;14519;406,23;FASTWEB SPA;15/07/2016;USCITE CORRENTI - ACQUISTO DI BENI E DI SERVIZI
2016;14519;47,42;FASTWEB SPA;15/07/2016;USCITE CORRENTI - ACQUISTO DI BENI E DI SERVIZI
2016;14519;145,65;FASTWEB SPA;15/07/2016;USCITE CORRENTI - ACQUISTO DI BENI E DI SERVIZI
2016;14520;142,44;FASTWEB SPA;15/07/2016;USCITE CORRENTI - ACQUISTO DI BENI E DI SERVIZI
2016;14521;71,07;FASTWEB SPA;15/07/2016;USCITE CORRENTI - ACQUISTO DI BENI E DI SERVIZI
2016;14521;359,25;FASTWEB SPA;15/07/2016;USCITE CORRENTI - ACQUISTO DI BENI E DI SERVIZI
2016;14521;560,26;FASTWEB SPA;15/07/2016;USCITE CORRENTI - ACQUISTO DI BENI E DI SERVIZI
2016;14522;149,02;FASTWEB SPA;15/07/2016;USCITE CORRENTI - ACQUISTO DI BENI E DI SERVIZI
2016;14522;40,69;FASTWEB SPA;15/07/2016;USCITE CORRENTI - ACQUISTO DI BENI E DI SERVIZI
2016;14523;40,69;FASTWEB SPA;15/07/2016;USCITE CORRENTI - ACQUISTO DI BENI E DI SERVIZI
2016;14524;239,11;FASTWEB SPA;15/07/2016;USCITE CORRENTI - ACQUISTO DI BENI E DI SERVIZI
2016;14525;482,9;FASTWEB SPA;15/07/2016;USCITE CORRENTI - ACQUISTO DI BENI E DI SERVIZI
2016;14525;46,49;FASTWEB SPA;15/07/2016;USCITE CORRENTI - ACQUISTO DI BENI E DI SERVIZI
2016;14525;2493,21;FASTWEB SPA;15/07/2016;USCITE CORRENTI - ACQUISTO DI BENI E DI SERVIZI
2016;14525;142,11;FASTWEB SPA;15/07/2016;USCITE CORRENTI - ACQUISTO DI BENI E DI SERVIZI
2016;14526;232,26;FASTWEB SPA;15/07/2016;USCITE CORRENTI - ACQUISTO DI BENI E DI SERVIZI
2016;14526;135,53;FASTWEB SPA;15/07/2016;USCITE CORRENTI - ACQUISTO DI BENI E DI SERVIZI
2016;14526;206,64;FASTWEB SPA;15/07/2016;USCITE CORRENTI - ACQUISTO DI BENI E DI SERVIZI
2016;14527;30,49;FASTWEB SPA;15/07/2016;USCITE CORRENTI - ACQUISTO DI BENI E DI SERVIZI
2016;14528;54,22;FASTWEB SPA;15/07/2016;USCITE CORRENTI - ACQUISTO DI BENI E DI SERVIZI
2016;14528;91,32;FASTWEB SPA;15/07/2016;USCITE CORRENTI - ACQUISTO DI BENI E DI SERVIZI
2016;14529;16,97;FASTWEB SPA;15/07/2016;USCITE CORRENTI - ACQUISTO DI BENI E DI SERVIZI
2016;14530;169,4;FASTWEB SPA;15/07/2016;USCITE CORRENTI - ACQUISTO DI BENI E DI SERVIZI
2016;14531;37,26;FASTWEB SPA;15/07/2016;USCITE CORRENTI - ACQUISTO DI BENI E DI SERVIZI
2016;14531;47,42;FASTWEB SPA;15/07/2016;USCITE CORRENTI - ACQUISTO DI BENI E DI SERVIZI
2016;14532;699,35;FASTWEB SPA;15/07/2016;USCITE CORRENTI - ACQUISTO DI BENI E DI SERVIZI
2016;14533;30,49;FASTWEB SPA;15/07/2016;USCITE CORRENTI - ACQUISTO DI BENI E DI SERVIZI
2016;14534;111,81;FASTWEB SPA;15/07/2016;USCITE CORRENTI - ACQUISTO DI BENI E DI SERVIZI
2016;14535;1579,28;FASTWEB SPA;15/07/2016;USCITE CORRENTI - ACQUISTO DI BENI E DI SERVIZI
2016;14536;145,67;FASTWEB SPA;15/07/2016;USCITE CORRENTI - ACQUISTO DI BENI E DI SERVIZI
2016;14537;430,15;FASTWEB SPA;15/07/2016;USCITE CORRENTI - ACQUISTO DI BENI E DI SERVIZI
2016;14538;43,13;FASTWEB SPA;15/07/2016;USCITE CORRENTI - ACQUISTO DI BENI E DI SERVIZI
2016;14538;6,77;FASTWEB SPA;15/07/2016;USCITE CORRENTI - ACQUISTO DI BENI E DI SERVIZI
2016;14539;555,86;FASTWEB SPA;15/07/2016;USCITE CORRENTI - ACQUISTO DI BENI E DI SERVIZI
2016;14539;392,97;FASTWEB SPA;15/07/2016;USCITE CORRENTI - ACQUISTO DI BENI E DI SERVIZI
2016;14540;3,36;FASTWEB SPA;15/07/2016;USCITE CORRENTI - ACQUISTO DI BENI E DI SERVIZI
2016;14540;54,22;FASTWEB SPA;15/07/2016;USCITE CORRENTI - ACQUISTO DI BENI E DI SERVIZI
2016;14540;81,29;FASTWEB SPA;15/07/2016;USCITE CORRENTI - ACQUISTO DI BENI E DI SERVIZI
2016;14540;3,36;FASTWEB SPA;15/07/2016;USCITE CORRENTI - ACQUISTO DI BENI E DI SERVIZI
2016;14541;200,1;FASTWEB SPA;15/07/2016;USCITE CORRENTI - ACQUISTO DI BENI E DI SERVIZI
2016;14541;1277,1;FASTWEB SPA;15/07/2016;USCITE CORRENTI - ACQUISTO DI BENI E DI SERVIZI
2016;14542;453,89;FASTWEB SPA;15/07/2016;USCITE CORRENTI - ACQUISTO DI BENI E DI SERVIZI
2016;14543;494,84;FASTWEB SPA;15/07/2016;USCITE CORRENTI - ACQUISTO DI BENI E DI SERVIZI
2016;14543;237,33;FASTWEB SPA;15/07/2016;USCITE CORRENTI - ACQUISTO DI BENI E DI SERVIZI
2016;14544;2869;IST.FIGLIE DIVINO ZELO - ORF. ANTONIANO - CASA ACCOGLIENZA;15/07/2016;USCITE CORRENTI - ACQUISTO DI BENI E DI SERVIZI
2016;14545;1433,6;OPERA SS.VERGINE DI  POMPEI -  IST.FASSICOMO;15/07/2016;USCITE CORRENTI - ACQUISTO DI BENI E DI SERVIZI
2016;14546;3464,3;VILLA PERLA SOCIETA' COOP SOCIALE A R.L. ONLUS;15/07/2016;USCITE CORRENTI - ACQUISTO DI BENI E DI SERVIZI
2016;14547;3915,86;COMETA - CONSORZIO  DI COOP.SOC.- SOC.COOP.SOC.;15/07/2016;USCITE CORRENTI - ACQUISTO DI BENI E DI SERVIZI
2016;14549;1172;PEDIGREE MAGAZINES LTD - VAT.GB 156 273796;15/07/2016;USCITE CORRENTI - ACQUISTO DI BENI E DI SERVIZI
2016;14551;1375,9;C.RE.S.S. CONSORZIO REGIONALE SERVIZI SOCIALI  SOC. COOP.SOC;15/07/2016;USCITE CORRENTI - ACQUISTO DI BENI E DI SERVIZI
2016;14552;18130,67;C.RE.S.S. CONSORZIO REGIONALE SERVIZI SOCIALI  SOC. COOP.SOC;15/07/2016;USCITE CORRENTI - ACQUISTO DI BENI E DI SERVIZI
2016;14553;9355,36;QUADRIFOGLIO SOCIETA' SPORTIVA DILETTANTISTICA A R.L.;15/07/2016;USCITE CORRENTI - ACQUISTO DI BENI E DI SERVIZI
2016;14554;19320,9;COOPSERVICE SOC.COOP.P.A.;15/07/2016;USCITE CORRENTI - ACQUISTO DI BENI E DI SERVIZI
2016;14554;9660,44;COOPSERVICE SOC.COOP.P.A.;15/07/2016;USCITE CORRENTI - ACQUISTO DI BENI E DI SERVIZI
2016;14555;75241,73;MY SPORT 2 SOC.SPORT.DILETT.CONSORTILE A R.L.;15/07/2016;USCITE CORRENTI - ACQUISTO DI BENI E DI SERVIZI
2016;14556;30;ASS. SPORT. DILETT. ANZIANI OGGI;15/07/2016;USCITE CORRENTI - TRASFERIMENTI CORRENTI
2016;14557;41542,2;AGORA'CONSORZIO SOCIALE SOC.COOP A R.L.(SERV.PER MINORI E ST;15/07/2016;USCITE CORRENTI - ACQUISTO DI BENI E DI SERVIZI
2016;14558;3295,92;ASS. SOL'UNA;15/07/2016;USCITE CORRENTI - ACQUISTO DI BENI E DI SERVIZI
2016;14559;3250;ASS.LIGURE PER I MINORI ALPIM - ORG.VOLONT.;15/07/2016;USCITE CORRENTI - ACQUISTO DI BENI E DI SERVIZI
2016;14559;1092,54;ASS.LIGURE PER I MINORI ALPIM - ORG.VOLONT.;15/07/2016;USCITE CORRENTI - ACQUISTO DI BENI E DI SERVIZI
2016;14560;3352,54;IL LABORATORIO SOC.COOP SOCIALE ONLUS;15/07/2016;USCITE CORRENTI - ACQUISTO DI BENI E DI SERVIZI
2016;14560;3419,59;IL LABORATORIO SOC.COOP SOCIALE ONLUS;15/07/2016;USCITE CORRENTI - ACQUISTO DI BENI E DI SERVIZI
2016;14561;4999,16;PISTONE GIROLAMO SRL;15/07/2016;USCITE CORRENTI - ACQUISTO DI BENI E DI SERVIZI
2016;14562;19545;DIVERSI CONTRIBUTO FONDO MOROSITA' INCOLPEVOLE;15/07/2016;USCITE CORRENTI - TRASFERIMENTI CORRENTI
2016;14563;492,4;A.R.P.A.L. - AGENZIA REG.PROTEZ.AMBIENTE LIGURE;15/07/2016;USCITE CORRENTI - ACQUISTO DI BENI E DI SERVIZI
2016;14564;8540;ASS.NAZ.UFFICIALI DI STATO CIV.E ANAGR.- ANUSCA;15/07/2016;USCITE IN CONTO CAPITALE - INVESTIMENTI FISSI LORDI E ACQUISTO DI TERRENI
2016;14565;1586;NRG CONSULTING SNC DI DE TOMASI IVAN E BALDINI DOMENICO;15/07/2016;USCITE IN CONTO CAPITALE - INVESTIMENTI FISSI LORDI E ACQUISTO DI TERRENI
